Workbook

Sheet Veileder
C1: Veileder
C3: Slik gjør dere:
D6: 1. Velg riktig skjema for hvert enkelt tiltak dere søker ekstratilskudd for
D8: 2. Dersom lønnsutgiftene gjelder flere ansatte, kan dere enten registrere én beregning per person eller bruke gjennomsnittslønn
D10: 3. Fyll ut feltene markert med grønt
D12: 4. Dersom rød tekst vises i skjemaet, følg instruksjonene | H12: rød tekst
D14: 5. Totalkostnaden vises nederst når alle obligatoriske felt er utfylt | H14: 100000
D16: 6. Fyll inn eventuelle tilleggsopplysninger i kommentarfeltet Dersom kommunen mottar andre tilskudd som delvis dekker de kostnadene dere søker om, oppgi dette i kommentarfeltet. Det kan for eksempel være tilskudd fra Bufdir, Helsedirektoratet eller IMDi. Skriv inn beløp og tidsperiode | H16: Skriv kommentar
D18: 7. Gå til skjemaet Oppsummering for en samlet oversikt over alle tiltakene som er registrert i kostnadsverktøyet | H18: Oppsummering
C22: Har dere spørsmål?
D26: Send supportsak her
D27: digtil@imdi.no
D28: 400 01 960 - tastevalg 4 - tirsdag til torsdag, mellom 09:00 og 11:30
C36: Endringer
C38: 2026-03-18 | E38: v3.4
E39: > fjernet data i «Egenandel»
E40: > fikset formelen i første rad i «Ansvarsgruppekmøter»
C41: 2026-03-02 | E41: v3.3
E42: >endret felt for pensjon
E43: >oppdatert satser for kommunal egenbetaling for statlige barnevernstiltak for 2026
E44: > justerte kolonnebreddene i «Egenandel»
E45: > oppsummering for andre godtgjørelser er rettet
E46: > beregning av antall dager i egenandel er rettet
E47: > lagt til flere beregninger for egenandel
E48: > lagt til 36 timers arbeidsuke
E49: > lagt til en valgfri sletteknapp
C50: 2025-11-17 | E50: v3.2
E51: > beregningen for ubekvemstillegg er rettet
E52: > utskriftsområdene i ark «Lønn med undervisningstid» er utbedret
E53: > lagt til flere linjer og enheter i «Andre eksterne leverandører»
E54: > felter for sosiale kostnader er gjort valgfrie i «Godtgjørelser»
E55: > lagt til flere linjer i «Godtgjørelser»
C56: 2025-09-29 | E56: v3.1
E57: > lagt til signatur linje
E58: > lagt til fast pensjons sats 11%
C59: 2025-09-22 | E59: v3.0
E60: > lagt til oppsummerings side
E61: > lagt til ubekvemstillegg
E62: > lagt til ark for vedtaksbasert tjenester med timesats
E63: > lagt til egenandel til senter for foreldre og barn
E64: > lagt til egenandel til MST /FFT (Multisystemisk/ funksjonell familieterapi)
E65: > fjernet 48-ukers maks grense i lønnskostnader
E66: > fjernet feil varsel i Tolk for beløp over 30 000 kr
E67: > endret besøkshjem fra periode til antall dager
E68: > endret oppsettet for å gjøre side mer utskriftsvennlig
C69: 2025-06-30 | E69: v2.0
E70: > ny versjon
E71: > lagt til begrepsliste
E72: > oppdatert sats for 2025 for grunnstøtte
E73: > korrigert feil i læreres timelønn
C74: 2024-10-07 | E74: v1.0
E75: > publisert på nettsiden

Sheet Begrepsliste
C1: Begrepsliste
C4: A
C5: Antall ansatte
C6: Antall ansatte, i denne sammenhengen, er antall ansatte i beregningen, som enkeltvis - eller samtidig - har direkte oppfølging med flyktningen i løpet av tilskuddsperioden.
C8: Alminnelig arbeidstid
C9: Alminnelig arbeidstid er den vanlige arbeidstiden personalet har i løpet av en uke eller dag, som fastsettes i arbeidsmiljøloven. Mange som har inngått en tariffavtale, har avtale om 37,5 timer per uke. For de som jobber skiftarbeid, turnusarbeid, nattarbeid og søndagsarbeid er den alminnelige ukentlige arbeidstiden kortere, som 35,5 timer per uke.
C11: Arbeidsgiveravgift
C12: Arbeidsgiveravgiften er regionalt differensiert og fastsettes av Stortinget hvert år. Finn riktig arbeidsgiveravgift for din kommune her:
C13: https://www.skatteetaten.no/satser/arbeidsgiveravgift-soneinndeling/
C15: Arbeidstimer per uke
C16: Arbeidstimer per uke, i denne sammenhengen, er totalt antall timer per uke der personalet har oppfølging med flyktningen i tiltaket. Beregner dere for flere ansatte, skriver dere totalt antall timer for alle disse ansatte. Det er direktetid vi ønsker oppgitt, det vil si ekskludert de timene personalet bruker på koordinering, reise, eller administrative oppgaver.
C17: For undervisningspersonale er dette noe annerledes; her ønsker vi at dere oppgir antall timer per uke som den ansatte underviser eleven (altså årstimer). Det vil si at for- og etterarbeid er innbakt i lønnen - les mer under "Timelønn". Fellestid og egentid skal ikke inkluderes i timelønnen for undervisningspersonale.
C18: Arbeidstimer tilsvarer vedtaksfestede timer flyktning har mottatt. Ikke-mottatte timer skal trekkes fra. Tjenester som ikke er levert, faller utenfor ordningen.
C20: Arbeidsuker i tilskuddperioden
C21: Arbeidsuker, i dette tilfellet, er antall uker de(n) ansatte jobber, og har direkte oppfølging med flyktningen - i løpet av flyktningens tilskuddsperiode (altså ikke per kalenderår). Det vil si at dere ikke skal regne med de ukene den ansatte er på ferie, sykmeldt eller i permisjon, eller uker der flyktning av annen grunn ikke følges opp i tiltaket. Det vil si at hverken korttids- eller langtidsfravær dekkes av ekstratilskuddet.
C22: Beregner dere arbeidsuker for flere ansatte, skriver dere totalt antall arbeidsuker for alle disse ansatte.
C24: F
C26: Feriepenger
C27: Feriepenger er tolv prosent av feriepengegrunnlaget ved fem ukers ferie. Personalet over 60 år har rett på 14,3 prosent av feriepengegrunnlaget ved seks ukers ferie.
C29: P
C31: Pensjonskostnader, arbeidsgiversandel
C32: Pensjonskostnader er de kostnadene arbeidsgiver har til pensjonsordninger for sine ansatte. Arbeidsgiver betaler minst 2 % av arbeidstakers lønn som grunnpremie for pensjon.
C33: Den ansattes egenandel for grunnpremien er normalt 2 %. Sett prosenten til 0 % dersom arbeidsgiver ikke trekker egenandel fra lønnen.
C35: S
C37: Stillingsprosent
C38: Stillingsprosent er et mål på hvor stor del av en fulltidsstilling en ansatt jobber. Den angis i prosent og viser forholdet mellom den avtalte arbeidstiden og en fulltidsstilling sin normerte arbeidstid.
C40: Skoleuker
C41: Opplæringsloven fastsetter at opplæringen skal strekke seg over minst 38 skoleuker innenfor en ramme på 45 sammenhengende uker.
C44: T
C46: Timelønn
C47: Timelønn er lønnen en arbeidstaker mottar per time.
C48: En ansatte, som jobber 37,5 timer per uke mandag–fredag, beregnes timelønn etter: Årslønn / 37,5 / 52
C50: Timelønn (for undervisningspersonale i Oslo kommune)
C51: I Oslo kommune beregnes timelønn etter: Årslønn x 1500 / (Årsramme x 1687,5)
C53: Timelønn (for undervisningspersonale i KS-området utenom Oslo)
C54: I kommuner utenom Oslo beregnes timelønn etter: Årslønn x 1400 x 100 / (Årsramme x 1687,5 x 112)
C55: Dette følger av hovedtariffavtalen § 12.4.
C57: Timelønn, inkludert sosiale utgifter
C58: Timelønn inkludert sosiale utgifter er timelønn som inkluderer feriepenger, arbeidsgiveravgift og pensjonsutgifter. I denne sammenheng er forsikringer og andre påslag ikke inkludert, fordi det ikke dekkes av ekstratilskuddet.
C60: Å
C62: Årslønn, eventuelt gjennomsnittslønn
C63: Årslønn (grunnlønn) er den ansattes brutto årslønn, før eventuelle tillegg for overtid, feriepenger og andre tillegg. Årslønnen er det samme beløpet som står i arbeidskontrakten.
C65: I dette hjelpeverktøyet skal dere legge inn den ansattes årslønn (grunnlønn uten tillegg). Selv om den ansatte jobber deltid, skal dere oppgi årslønn for full stilling.
C67: Har dere lønnsutgifter for flere ansatte, for eksempel i en institusjon, kan dere bruke gjennomsnittslønn i feltet "Årslønn". I de tilfellene bruker dere gjennomsnittlig lønn for de aktuelle personene som har fulgt brukeren i tiltaket.
C69: Årsramme
C70: Årsramme er antall timer med undervisning per år i et fag i en 100 prosent stilling. For å omregne eventuelle undervisningstimer à 45 minutter til klokketimer, multipliserer dere årsrammen med 0,75.
C72: Årstimer
C73: Se "Arbeidstimer per uke"

Sheet Oppsummering
C1: Oppsummering
C4: Totalsum for tiltakene beregnet i dette kostnadsverktøyet: | G4: =G6+G13+G20+G32+G25+G36 -> 0
C6: ='1 Lønn'!C2 -> 1 | D6: ='1 Lønn'!E2 -> Lønn | G6: =SUM(G7:G11) -> 0
D7: 1 | E7: =IF(_xlfn.XLOOKUP(D7&"a",'1 Lønn'!P:P,'1 Lønn'!F:F,"-")=0,"-",_xlfn.XLOOKUP(D7&"a",'1 Lønn'!P:P,'1 Lønn'!F:F,"-")) -> - | F7: =IF(_xlfn.XLOOKUP(D7&"b",'1 Lønn'!P:P,'1 Lønn'!F:F,"-")=0,"-",_xlfn.XLOOKUP(D7&"b",'1 Lønn'!P:P,'1 Lønn'!F:F,"-")) -> - | G7: =_xlfn.XLOOKUP(D7&"c",'1 Lønn'!P:P,'1 Lønn'!F:F," ") -> 
D8: 2 | E8: =IF(_xlfn.XLOOKUP(D8&"a",'1 Lønn'!P:P,'1 Lønn'!F:F,"-")=0,"-",_xlfn.XLOOKUP(D8&"a",'1 Lønn'!P:P,'1 Lønn'!F:F,"-")) -> - | F8: =IF(_xlfn.XLOOKUP(D8&"b",'1 Lønn'!P:P,'1 Lønn'!F:F,"-")=0,"-",_xlfn.XLOOKUP(D8&"b",'1 Lønn'!P:P,'1 Lønn'!F:F,"-")) -> - | G8: =_xlfn.XLOOKUP(D8&"c",'1 Lønn'!P:P,'1 Lønn'!F:F," ") -> 
D9: 3 | E9: =IF(_xlfn.XLOOKUP(D9&"a",'1 Lønn'!P:P,'1 Lønn'!F:F,"-")=0,"-",_xlfn.XLOOKUP(D9&"a",'1 Lønn'!P:P,'1 Lønn'!F:F,"-")) -> - | F9: =IF(_xlfn.XLOOKUP(D9&"b",'1 Lønn'!P:P,'1 Lønn'!F:F,"-")=0,"-",_xlfn.XLOOKUP(D9&"b",'1 Lønn'!P:P,'1 Lønn'!F:F,"-")) -> - | G9: =_xlfn.XLOOKUP(D9&"c",'1 Lønn'!P:P,'1 Lønn'!F:F," ") -> 
D10: 4 | E10: =IF(_xlfn.XLOOKUP(D10&"a",'1 Lønn'!P:P,'1 Lønn'!F:F,"-")=0,"-",_xlfn.XLOOKUP(D10&"a",'1 Lønn'!P:P,'1 Lønn'!F:F,"-")) -> - | F10: =IF(_xlfn.XLOOKUP(D10&"b",'1 Lønn'!P:P,'1 Lønn'!F:F,"-")=0,"-",_xlfn.XLOOKUP(D10&"b",'1 Lønn'!P:P,'1 Lønn'!F:F,"-")) -> - | G10: =_xlfn.XLOOKUP(D10&"c",'1 Lønn'!P:P,'1 Lønn'!F:F," ") -> 
D11: 5 | E11: =IF(_xlfn.XLOOKUP(D11&"a",'1 Lønn'!P:P,'1 Lønn'!F:F,"-")=0,"-",_xlfn.XLOOKUP(D11&"a",'1 Lønn'!P:P,'1 Lønn'!F:F,"-")) -> - | F11: =IF(_xlfn.XLOOKUP(D11&"b",'1 Lønn'!P:P,'1 Lønn'!F:F,"-")=0,"-",_xlfn.XLOOKUP(D11&"b",'1 Lønn'!P:P,'1 Lønn'!F:F,"-")) -> - | G11: =_xlfn.XLOOKUP(D11&"c",'1 Lønn'!P:P,'1 Lønn'!F:F," ") -> 
C13: ='2 Lønn med undervisningstid'!C2 -> 2 | D13: ='2 Lønn med undervisningstid'!E2 -> Lønn med undervisningstid | G13: =SUM(G14:G18) -> 0
D14: 1 | E14: =IF(_xlfn.XLOOKUP(D14&"a",'2 Lønn med undervisningstid'!P:P,'2 Lønn med undervisningstid'!F:F,"-")=0,"-",_xlfn.XLOOKUP(D14&"a",'2 Lønn med undervisningstid'!P:P,'2 Lønn med undervisningstid'!F:F,"-")) -> - | F14: =IF(_xlfn.XLOOKUP(D14&"b",'2 Lønn med undervisningstid'!P:P,'2 Lønn med undervisningstid'!F:F,"-")=0,"-",_xlfn.XLOOKUP(D14&"b",'2 Lønn med undervisningstid'!P:P,'2 Lønn med undervisningstid'!F:F,"-")) -> - | G14: =_xlfn.XLOOKUP(D14&"c",'2 Lønn med undervisningstid'!P:P,'2 Lønn med undervisningstid'!F:F," ") -> 
D15: 2 | E15: =IF(_xlfn.XLOOKUP(D15&"a",'2 Lønn med undervisningstid'!P:P,'2 Lønn med undervisningstid'!F:F,"-")=0,"-",_xlfn.XLOOKUP(D15&"a",'2 Lønn med undervisningstid'!P:P,'2 Lønn med undervisningstid'!F:F,"-")) -> - | F15: =IF(_xlfn.XLOOKUP(D15&"b",'2 Lønn med undervisningstid'!P:P,'2 Lønn med undervisningstid'!F:F,"-")=0,"-",_xlfn.XLOOKUP(D15&"b",'2 Lønn med undervisningstid'!P:P,'2 Lønn med undervisningstid'!F:F,"-")) -> - | G15: =_xlfn.XLOOKUP(D15&"c",'2 Lønn med undervisningstid'!P:P,'2 Lønn med undervisningstid'!F:F," ") -> 
D16: 3 | E16: =IF(_xlfn.XLOOKUP(D16&"a",'2 Lønn med undervisningstid'!P:P,'2 Lønn med undervisningstid'!F:F,"-")=0,"-",_xlfn.XLOOKUP(D16&"a",'2 Lønn med undervisningstid'!P:P,'2 Lønn med undervisningstid'!F:F,"-")) -> - | F16: =IF(_xlfn.XLOOKUP(D16&"b",'2 Lønn med undervisningstid'!P:P,'2 Lønn med undervisningstid'!F:F,"-")=0,"-",_xlfn.XLOOKUP(D16&"b",'2 Lønn med undervisningstid'!P:P,'2 Lønn med undervisningstid'!F:F,"-")) -> - | G16: =_xlfn.XLOOKUP(D16&"c",'2 Lønn med undervisningstid'!P:P,'2 Lønn med undervisningstid'!F:F," ") -> 
D17: 4 | E17: =IF(_xlfn.XLOOKUP(D17&"a",'2 Lønn med undervisningstid'!P:P,'2 Lønn med undervisningstid'!F:F,"-")=0,"-",_xlfn.XLOOKUP(D17&"a",'2 Lønn med undervisningstid'!P:P,'2 Lønn med undervisningstid'!F:F,"-")) -> - | F17: =IF(_xlfn.XLOOKUP(D17&"b",'2 Lønn med undervisningstid'!P:P,'2 Lønn med undervisningstid'!F:F,"-")=0,"-",_xlfn.XLOOKUP(D17&"b",'2 Lønn med undervisningstid'!P:P,'2 Lønn med undervisningstid'!F:F,"-")) -> - | G17: =_xlfn.XLOOKUP(D17&"c",'2 Lønn med undervisningstid'!P:P,'2 Lønn med undervisningstid'!F:F," ") -> 
D18: 5 | E18: =IF(_xlfn.XLOOKUP(D18&"a",'2 Lønn med undervisningstid'!P:P,'2 Lønn med undervisningstid'!F:F,"-")=0,"-",_xlfn.XLOOKUP(D18&"a",'2 Lønn med undervisningstid'!P:P,'2 Lønn med undervisningstid'!F:F,"-")) -> - | F18: =IF(_xlfn.XLOOKUP(D18&"b",'2 Lønn med undervisningstid'!P:P,'2 Lønn med undervisningstid'!F:F,"-")=0,"-",_xlfn.XLOOKUP(D18&"b",'2 Lønn med undervisningstid'!P:P,'2 Lønn med undervisningstid'!F:F,"-")) -> - | G18: =_xlfn.XLOOKUP(D18&"c",'2 Lønn med undervisningstid'!P:P,'2 Lønn med undervisningstid'!F:F," ") -> 
C20: ='3 Godtgjørelser'!C2 -> 3 | D20: ='3 Godtgjørelser'!E2 -> Godtgjørelser | G20: =SUM(G21:G23) -> 0
D21: 1 | E21: ='3 Godtgjørelser'!E16 -> Grunnstøtte til ordinært kommunalt fosterhjem | G21: ='3 Godtgjørelser'!F36 -> 
D22: 2 | E22: ='3 Godtgjørelser'!E50 -> Grunnstøtte til besøkshjem | G22: ='3 Godtgjørelser'!F65 -> 
D23: 3 | E23: Andre godtgjørelser | G23: =IF('3 Godtgjørelser'!F109="",0,'3 Godtgjørelser'!F109)+IF('3 Godtgjørelser'!F140="",0,'3 Godtgjørelser'!F140)+IF('3 Godtgjørelser'!F171="",0,'3 Godtgjørelser'!F171)+IF('3 Godtgjørelser'!F202="",0,'3 Godtgjørelser'!F202)+IF('3 Godtgjørelser'!F233="",0,'3 Godtgjørelser'!F233) -> 0
C25: ='4 Egenandel'!C2 -> 4 | D25: ='4 Egenandel'!E2 -> Egenandel | G25: =SUM(G26:G30) -> 0
D26: 1 | E26: =IF(G26="","-",'4 Egenandel'!F17) -> - | G26: ='4 Egenandel'!F41 -> 
D27: 2 | E27: =IF(G27="","-",'4 Egenandel'!F62) -> - | G27: ='4 Egenandel'!F86 -> 
D28: 3 | E28: =IF(G28="","-",'4 Egenandel'!F107) -> - | G28: ='4 Egenandel'!F131 -> 
D29: 4 | E29: =IF(G29="","-",'4 Egenandel'!F152) -> - | G29: ='4 Egenandel'!F176 -> 
D30: 5 | E30: =IF(G30="","-",'4 Egenandel'!F197) -> - | G30: ='4 Egenandel'!F221 -> 
C32: ='5 Fakturabaserte kostnader'!C2 -> 5 | D32: ='5 Fakturabaserte kostnader'!E2 -> Fakturabaserte kostnader | G32: =SUM(G33:G34) -> 0
D33: 1 | E33: Transport | G33: ='5 Fakturabaserte kostnader'!K29 -> 0
D34: 2 | E34: Andre eksterne leverandører | G34: ='5 Fakturabaserte kostnader'!K57 -> 0
C36: ='6 Ansvarsgruppemøter'!C2 -> 6 | D36: ='6 Ansvarsgruppemøter'!E2 -> Ansvarsgruppemøter/ sakkyndig arbeid fra PPT | G36: ='6 Ansvarsgruppemøter'!P48 -> 0
C39: ='1 Lønn'!K2 -> (ver. 3.4)

Sheet kun for IMDI (hidden)
H1: ------UTKAST------
B2: Omregne årslønn fra årslønn med sos. utg. (metode #1) | H2: Omregne særskilt tilksudd til tilskuddsperiode
B3: pension = % av årslønn (kommunes beregningen) | M3: barn | N3: ungdom
H4: Bosettingsdato | I4: 2024-04-04 | L4: sats | M4: 0-16 år | N4: 17-20 år
B5: Årslønn med sos. utg. | C5: 628866.5385 | H5: Fødselsdato | I5: 2008-08-26 | L5: 2023 | M5: 1144400 | N5: 721800
B6: sats feriepenger | C6: 0.12 | E6: ferieuker = | F6: =IF(C6=12%,5,IF(C6=14.3%,6,0)) -> 5 | L6: =1+L5 -> 2024 | M6: 1194800 | N6: 735500
B7: sats pensjon | C7: 0.09 | J7: alder | K7: sats | L7: =1+L6 -> 2025 | M7: 1059100 | N7: 667900
B8: sats arbeidsgiveravgift | C8: 0.141 | H8: =YEAR(I4) -> 2024 | I8: =M6/12*(12-MONTH(I4)+1) -> 896100 | J8: =H8-YEAR($I$5) -> 16 | K8: =IF(J8<17,$M$3,$N$3) -> barn | L8: =1+L7 -> 2026 | M8: 1098700 | N8: 692800
B9: Årslønn | C9: =C5/((1+C8)*((C6*(52-F6)/52)+C7+((52-F6)/52))) -> 500000 | H9: =1+H8 -> 2025 | I9: =N7 -> 667900 | J9: =H9-YEAR($I$5) -> 17 | K9: =IF(J9<17,$M$3,$N$3) -> ungdom
H10: =1+H9 -> 2026 | I10: =N8 -> 692800 | J10: 18 | K10: ungdom
H11: =1+H10 -> 2027 | I11: 0 | J11: 19 | K11: ungdom
H12: =1+H11 -> 2028 | I12: =N10 -> 0 | J12: 20 | K12: ungdom
B13: Omregne årslønn fra årslønn med sos. utg. (metode #2)
B14: pension = % av lønn + fp (IMDIs beregningen)
B16: Årslønn med sos. utg. | C16: 629498.4769
B17: sats feriepenger | C17: 0.12 | E17: ferieuker = | F17: =IF(C17=12%,5,IF(C17=14.3%,6,0)) -> 5
B18: sats pensjon | C18: 0.09
B19: sats arbeidsgiveravgift | C19: 0.141
B20: Årslønn | C20: =C16/(((52-F17)/52)*(1+C17)*(1+C18)*(1+C19)) -> 500000
B24: Omregne 45 mins enhet til klokketimer
B26: timer (45 min enhet) | C26: 26
B27: klokketimer | C27: =C26*45/60 -> 19.5

Sheet 1 Lønn
C2: 1 | E2: Lønn | K2: (ver. 3.4)
E3: ="- til miljøterapeut, sykepleier, skoleassistent, kommunal tolk, eller andre kommunalt ansatte som ikke underviser" -> - til miljøterapeut, sykepleier, skoleassistent, kommunal tolk, eller andre kommunalt ansatte som ikke underviser
Q5: Timesats max | R5: 650
E6: Dekkes av ekstratilskuddet: | I6: Dekkes ikke av ekstratilskuddet: | Q6: Ansattes egenandel for pensjon | R6: 0 | X6: Oppgitt årslønn er høyere enn det IMDi forventer i denne sammenhengen. Legg ved underbilag som dokumenterer den ansattes årslønn.
D7: þDirekte oppfølgingstid: Lønn for den tiden ansatte har direkte oppfølging med flyktningen, altså "ansikt-til-ansikt" þSosiale utgifter til: feriepenger, arbeidsgivers andel av pensjonskostnader og arbeidsgiveravgift | I7: xArbeidstid utenom direkte oppfølging: lønn til koordinering, reisetid og administrative oppgaver xSosiale utgifter til: overtid, vikarutgifter, merverdiavgifter, forsikring og administrative påslag xAnsattes egenandel for pensjon: ansattes egenandel for grunnpremie pensjon er som regel 2 %. Sett prosenten til 0 dersom den ansatte ikke trekkes for egenandel. | Q7: Tekst 1 | R7: *obligatorisk | S7: bruk kun tall og komma, ikke bruk mellomrom og punktum | X7: Legg ved dokumentasjon som viser hvilke kostnader som er inkludert i pensjonskostnaden.
Q8: Tekst 2 | R8: * valgfritt | X8: Bekreft i kommentarfelt at dere ikke trekker den ansatte for egenandel.
Q9: Tekst 3 | R9: ⚠️Vi trenger mer informasjon. Se notat nederst.
Q10: Tekst 4 | R10: Utregnes automatisk etter dere har fylt inn de obligatoriske feltene
I17: Dukker det opp en feilmelding når du trykker på knappen, kan det være at du må aktivere makroer først. For å aktivere makroer, trykk først på knappen "Aktiver innhold" helt øverst, så vil det komme opp en dialogboks, trykk deretter på "Ja". Bruk av knappen er valgfritt i dette regnearket, og makroene trenger derfor ikke å aktiveres hvis du ikke har behov for det. | Q17: !------ikke rediger disse cellene-------------------------------------------------------------------------------------------------------------------------------------------------------------------------------------- | T17: ------------------------------------------------------!
E18: ="Beregning "&P18 -> Beregning 1 | P18: 1 | Q18: Felt | R18: Verdi | S18: Kommentar | T18: Merkander | U18: -
D19: Tiltaket | U19: -
U20: -
E21: Tiltaksnavn | G21: i | I21: =S21 -> *obligatorisk | P21: =P18&"a" -> 1a | Q21: =D19 -> Tiltaket | R21: =F21 -> 0 | S21: =IF(F21="",$R$7,"") -> *obligatorisk | T21: - | U21: -
E22: hvis tolk: hvilket tiltak er tolken brukt i? | G22: i | I22: =S22 ->  | Q22: =E22 -> hvis tolk: hvilket tiltak er tolken brukt i? | R22: =F22 -> 0 | S22: =IF(AND(IFERROR(SEARCH("tolk",F21),0)>0,F22=""),$R$7,"") ->  | T22: - | U22: -
U23: -
E24: Oppfølging i tiltaket: | U24: -
E25: arbeidstimer per uke | G25: i | I25: =S25 -> *obligatorisk | Q25: =E25 -> arbeidstimer per uke | R25: =F25 -> 0 | S25: =IF(F25="",$R$7,"") -> *obligatorisk | T25: - | U25: -
E26: arbeidsuker i tilskuddperioden | G26: i | I26: =S26 -> *obligatorisk | Q26: =E26 -> arbeidsuker i tilskuddperioden | R26: =F26 -> 0 | S26: =IF(F26="",$R$7,"") -> *obligatorisk | T26: - | U26: -
E27: arbeidstimer totalt | F27: =R27 -> 0 | Q27: =E27 -> arbeidstimer totalt | R27: =R25*R26 -> 0 | T27: - | U27: -
U28: -
E29: ="Ubekvemstillegg for de "&IF(F27=0,"timene:",TEXT(F27,"# ##0,0###")&" timene:") -> Ubekvemstillegg for de timene: | Q29: arbeidstimer dag | R29: =(R27-R30-R31) -> 0 | T29: =R29/R27 ->  | U29: -
E30: arbeidstimer kveld | F30: 0 | G30: i | Q30: =E30 -> arbeidstimer kveld | R30: =F30 -> 0 | T30: =R30/R27 ->  | U30: -
E31: arbeidstimer natt | F31: 0 | G31: i | Q31: =E31 -> arbeidstimer natt | R31: =F31 -> 0 | T31: =R31/R27 ->  | U31: -
U32: -
E33: arbeidstimer helg | F33: 0 | G33: i | Q33: =E33 -> arbeidstimer helg | R33: =F33 -> 0 | T33: - | U33: -
E34: arbeidstimer helligdag hverdag | F34: 0 | G34: i | Q34: arbeidstimer helligdag hverdag | R34: 0 | T34: - | U34: -
E35: arbeidstimer helligdag helg (lørdag og søndag) | F35: 0 | G35: i | Q35: arbeidstimer helligdag helg (lørdag og søndag) | R35: 0 | T35: - | U35: -
U36: -
U37: -
D38: Lønnsutgifter per ansatt | U38: -
U39: -
E40: stillingstittel | G40: i | I40: =S40 -> *obligatorisk | P40: =P18&"b" -> 1b | Q40: Tiltak | S40: =IF(F40="",$R$7,"") -> *obligatorisk | T40: - | U40: -
E41: alminnelig arbeidstid for full stilling | F41: Velg fra liste…. | G41: i | I41: *obligatorisk | Q41: =E41 -> alminnelig arbeidstid for full stilling | R41: =_xlfn.XLOOKUP(F41,Innstillinger!$B$48:$B$54,Innstillinger!$C$48:$C$54,0,) -> 0 | S41: =IF(F41="",$R$7,IF(F41=Innstillinger!$B$8,$R$7,"")) -> *obligatorisk | T41: - | U41: -
U42: -
E43: Lønn: (individuell/ gjennomsnitt) | U43: -
E44: årslønn for full stilling | G44: i | I44: =S44 -> *obligatorisk | Q44: =E44 -> årslønn for full stilling | R44: =F44 -> 0 | S44: =IF(R44=0,$R$7,IF(ISERROR(R59)=TRUE,"",IF(R59>$R$5,$R$9,""))) -> *obligatorisk | T44: - | U44: -
E45: timetillegg kveld | F45: 0 | G45: i | I45: =S45 ->  | Q45: =E45 -> timetillegg kveld | R45: =F45 -> 0 | S45: =IF(AND(R30>0,R45=0),$R$7,"") ->  | T45: =R45*R30 -> 0 | U45: -
E46: timetillegg natt | F46: 0 | G46: i | I46: =S46 ->  | Q46: timetillegg natt | R46: =F46 -> 0 | S46: =IF(AND(R31>0,R46=0),$R$7,"") ->  | T46: =R46*R31 -> 0 | U46: -
E47: timetillegg helg | F47: 0 | G47: i | I47: =S47 ->  | Q47: timetillegg helg | R47: =F47 -> 0 | S47: =IF(AND(R33>0,R47=0),$R$7,"") ->  | T47: =R47*R33 -> 0 | U47: -
E48: prosenttillegg helligdag | F48: 0 | G48: i | I48: =S48 ->  | Q48: prosenttillegg helligdag | R48: =F48 -> 0 | S48: =IF(AND(OR(R34>0,R35>0),R48=0),$R$7,"") ->  | T48: =(R48*R58*R34*T29)+(R48*(R58+R45)*R34*T30)+(R48*(R58+R46)*R34*T31)+(R48*(R58+R47)*R35*T29)+(R48*(R58+R45+R47)*R35*T30)+(R48*(R58+R46+R47)*R35*T31) ->  | U48: -
E49: Finn riktig timesats her | U49: -
U50: -
E51: Sosiale utgifter: | U51: -
E52: sats feriepenger | F52: Velg fra liste…. | G52: i | I52: =S52 -> *obligatorisk | Q52: =E52 -> sats feriepenger | R52: =F52 -> Velg fra liste…. | S52: =IF(F52="",$R$7,IF(F52=Innstillinger!$B$8,$R$7,"")) -> *obligatorisk | T52: - | U52: -
E53: sats pensjon | F53: 0.11 | G53: i | Q53: =E53 -> sats pensjon | R53: =F53+F54 -> 0.09 | S53: =IF(R53<2%,$R$7,IF(F53>11%,$R$9,"")) ->  | T53: - | U53: -
E54: (-) ansattes egenandel for pensjon | F54: -0.02 | G54: i | S54: =IF(F54=0%,$R$9,"") -> 
E55: sats arbeidsgiveravgift | F55: Velg fra liste…. | G55: i | I55: =S55 -> *obligatorisk | Q55: =E55 -> sats arbeidsgiveravgift | R55: =F55 -> Velg fra liste…. | S55: =IF(F55="",$R$7,IF(F55=Innstillinger!$B$8,$R$7,"")) -> *obligatorisk | T55: - | U55: -
E56: Finn riktig arbeidsgiveravgift her | Q56: Vis beregningen? | R56: =IF(ISERROR(R70),"Nei",IF(COUNTIF(I19:I55,$R$7)=0,"Ja","Nei")) -> Nei | U56: - | V56: -
U57: - | V57: -
E58: Timelønn, uten sosiale utgifter | F58: =IF(R56="nei","",R58) ->  | I58: =S58 ->  | Q58: Timelønn | R58: =R44/R41/52 ->  | S58: =IF(AND(I70=TRUE,R56="NEI"),$R$10,IF(I70=TRUE,T58,"")) ->  | T58: ="➡️ "&TEXT(R58,"# ##0")&" kr = "&TEXT(R44,"# ##0")&" kr årslønnn ÷ "&TEXT(R41,"#,##")&" timer/uke ÷ 52 uker" ->  | U58: -
E59: Timelønn, inkludert sosiale utgifter | F59: =IF(R56="nei","",R59) ->  | I59: =S59 ->  | Q59: Timelønn, inkludert sosiale utgifter | R59: =(R58*(1+R52+R53+(R52*R53))*(1+R55)) ->  | S59: =IF(AND(I70=TRUE,R56="NEI"),$R$10,IF(I70=TRUE,T59,"")) ->  | T59: ="➡️ "&TEXT(R59,"# ##0")&" kr = "&TEXT(R58,"# ##0,00")&" kr timelønn, uten sosiale utgifter x sosiale utgifter" ->  | U59: -
U60: -
U61: -
D62: Oppsummering | U62: -
U63: -
E64: Lønn | F64: =IF(R56="nei","",R64) ->  | I64: =S64 ->  | Q64: Lønn | R64: =R27*R58 ->  | S64: =IF(AND(I70=TRUE,R56="NEI"),$R$10,IF(I70=TRUE,T64,"")) ->  | T64: ="➡️ "&TEXT(F64,"# ##0")&" kr = "&F27&" total arbeidstimer x "&TEXT(F58,"#,##")&" kroner per time" -> ➡️ kr = 0 total arbeidstimer x kroner per time | U64: -
E65: Ubekvemstillegg | F65: =IF(R56="nei","",R65) ->  | Q65: Ubekvemstillegg | R65: =SUM(T45:T48) ->  | S65: =IF(AND(I70=TRUE,R56="NEI"),$R$10,IF(I70=TRUE,T65,"")) ->  | T65: ="➡️ "&TEXT(F65,"# ##0")&" kr = arbeidstimer i helg / natt / kveld / helligdag x timetillegg" -> ➡️ kr = arbeidstimer i helg / natt / kveld / helligdag x timetillegg | U65: -
E66: Feriepenger | F66: =IF(R56="nei","",R66) ->  | Q66: Feriepenger | R66: =(R64+R65)*R52 ->  | S66: =IF(AND(I70=TRUE,R56="NEI"),$R$10,IF(I70=TRUE,T66,"")) ->  | T66: ="➡️ "&TEXT(F66,"# ##0")&" kr = "&TEXT(F64+F65,"# ##0")&" kr lønn & tillegg x "&TEXT(F52,"#,0 %")&" feriepenger sats" ->  | U66: -
E67: Pensjonskostnader | F67: =IF(R56="nei","",R67) ->  | Q67: Pensjonskostnader | R67: =SUM(R64:R66)*R53 ->  | S67: =IF(AND(I70=TRUE,R56="NEI"),$R$10,IF(I70=TRUE,T67,"")) ->  | T67: ="➡️ "&TEXT(F67,"# ##0")&" kr = ("&TEXT(F64+F65,"# ##0")&" kr lønn & tillegg + "&TEXT(F66,"# ##0")&" kr feriepenger) x "&TEXT(R53,"#,0 %")&" pensjon" ->  | U67: -
E68: Arbeidsgiveravgift | F68: =IF(R56="nei","",R68) ->  | Q68: Arbeidsgiveravgift | R68: =SUM(R64:R67)*R55 ->  | S68: =IF(AND(I70=TRUE,R56="NEI"),$R$10,IF(I70=TRUE,T68,"")) ->  | T68: ="➡️ "&TEXT(F68,"# ##0")&" kr = ("&TEXT(F64+F65,"# ##0")&" kr lønn + "&TEXT(F66,"# ##0")&" kr f.p. + "&TEXT(F67,"# ##0")&" kr pensjon) x "&TEXT(F55,"#,0 %")&" aga " ->  | U68: -
U69: -
E70: Totalkostnad | F70: =IF(R56="nei","",R70) ->  | J70: Kryss av for å se beregning | P70: =P18&"c" -> 1c | Q70: Totalkostnad | R70: =ROUND(SUM(R64:R68),0) ->  | T70: - | U70: -
U71: -
R72: =3-COUNTIF(S73:S75,"") -> 0 | U72: -
E73: =IF(E74="","Skriv kommentar:","") -> Skriv kommentar: | J73: =IF(S73&S74&S75="","","⚠️Vi trenger mer informasjon") ->  | Q73: Hvis timelønn er over 650 kroner | R73: =IF(S73="","",IF(R72=1,"","1. ")) ->  | S73: =IF(S44=$R$9,X$6,"") ->  | T73: - | U73: -
J74: =_xlfn.TEXTJOIN(CHAR(10)&CHAR(10),TRUE,R73&S73,R74&S74,R75&S75) ->  | Q74: Hvis grunnpremie for pensjon er over 11% | R74: =IF(S74="","",IF(R72=1,"",IF(S73="","1. ","2. "))) ->  | S74: =IF(S53=$R$9,$X$7,"") ->  | T74: - | U74: -
Q75: Hvis ansattes egenandel for pensjon er 0% | R75: =IF(S75="","",IF(R72=1,"",IF(R72=2,"2.",IF(R74="1. ","2. ","3. ")))) ->  | S75: =IF(S54=$R$9,$X$8,"") ->  | T75: -
D82: Navn og rolle - ansvarlig for kostnadsberegningen | I82: Sted | K82: Dato
Q88: !------ikke rediger disse cellene-------------------------------------------------------------------------------------------------------------------------------------------------------------------------------------- | T88: ------------------------------------------------------!
E89: ="Beregning "&P89 -> Beregning 2 | P89: =+P18+1 -> 2 | Q89: Felt | R89: Verdi | S89: Kommentar | T89: Merkander | U89: -
D90: Tiltaket | U90: -
U91: -
E92: Tiltaksnavn | G92: i | I92: =S92 -> *obligatorisk | P92: =P89&"a" -> 2a | Q92: =D90 -> Tiltaket | R92: =F92 -> 0 | S92: =IF(F92="",$R$7,"") -> *obligatorisk | T92: - | U92: -
E93: hvis tolk: hvilket tiltak er tolken brukt i? | G93: i | I93: =S93 ->  | Q93: =E93 -> hvis tolk: hvilket tiltak er tolken brukt i? | R93: =F93 -> 0 | S93: =IF(AND(IFERROR(SEARCH("tolk",F92),0)>0,F93=""),$R$7,"") ->  | T93: - | U93: -
U94: -
E95: Oppfølging i tiltaket: | U95: -
E96: arbeidstimer per uke | G96: i | I96: =S96 -> *obligatorisk | Q96: =E96 -> arbeidstimer per uke | R96: =F96 -> 0 | S96: =IF(F96="",$R$7,"") -> *obligatorisk | T96: - | U96: -
E97: arbeidsuker i tilskuddperioden | G97: i | I97: =S97 -> *obligatorisk | Q97: =E97 -> arbeidsuker i tilskuddperioden | R97: =F97 -> 0 | S97: =IF(F97="",$R$7,"") -> *obligatorisk | T97: - | U97: -
E98: arbeidstimer totalt | F98: =R98 -> 0 | Q98: =E98 -> arbeidstimer totalt | R98: =R96*R97 -> 0 | T98: - | U98: -
U99: -
E100: ="Ubekvemstillegg for de "&IF(F98=0,"timene:",TEXT(F98,"# ##0,0###")&" timene:") -> Ubekvemstillegg for de timene: | Q100: arbeidstimer dag | R100: =(R98-R101-R102) -> 0 | T100: =R100/R98 ->  | U100: -
E101: arbeidstimer kveld | F101: 0 | G101: i | Q101: =E101 -> arbeidstimer kveld | R101: =F101 -> 0 | T101: =R101/R98 ->  | U101: -
E102: arbeidstimer natt | F102: 0 | G102: i | Q102: =E102 -> arbeidstimer natt | R102: =F102 -> 0 | T102: =R102/R98 ->  | U102: -
U103: -
E104: arbeidstimer helg | F104: 0 | G104: i | Q104: =E104 -> arbeidstimer helg | R104: =F104 -> 0 | T104: - | U104: -
E105: arbeidstimer helligdag hverdag | F105: 0 | G105: i | Q105: arbeidstimer helligdag hverdag | R105: 0 | T105: - | U105: -
E106: arbeidstimer helligdag helg (lørdag og søndag) | F106: 0 | G106: i | Q106: arbeidstimer helligdag helg (lørdag og søndag) | R106: 0 | T106: - | U106: -
U107: -
U108: -
D109: Lønnsutgifter per ansatt | U109: -
U110: -
E111: stillingstittel | G111: i | I111: =S111 -> *obligatorisk | P111: =P89&"b" -> 2b | Q111: Tiltak | S111: =IF(F111="",$R$7,"") -> *obligatorisk | T111: - | U111: -
E112: alminnelig arbeidstid for full stilling | F112: Velg fra liste…. | G112: i | I112: *obligatorisk | Q112: =E112 -> alminnelig arbeidstid for full stilling | R112: =_xlfn.XLOOKUP(F112,Innstillinger!$B$48:$B$54,Innstillinger!$C$48:$C$54,0,) -> 0 | S112: =IF(F112="",$R$7,IF(F112=Innstillinger!$B$8,$R$7,"")) -> *obligatorisk | T112: - | U112: -
U113: -
E114: Lønn: (individuell/ gjennomsnitt) | U114: -
E115: årslønn for full stilling | G115: i | I115: =S115 -> *obligatorisk | Q115: =E115 -> årslønn for full stilling | R115: =F115 -> 0 | S115: =IF(R115=0,$R$7,IF(ISERROR(R130)=TRUE,"",IF(R130>$R$5,$R$9,""))) -> *obligatorisk | T115: - | U115: -
E116: timetillegg kveld | F116: 0 | G116: i | I116: =S116 ->  | Q116: =E116 -> timetillegg kveld | R116: =F116 -> 0 | S116: =IF(AND(R101>0,R116=0),$R$7,"") ->  | T116: =R116*R101 -> 0 | U116: -
E117: timetillegg natt | F117: 0 | G117: i | I117: =S117 ->  | Q117: timetillegg natt | R117: =F117 -> 0 | S117: =IF(AND(R102>0,R117=0),$R$7,"") ->  | T117: =R117*R102 -> 0 | U117: -
E118: timetillegg helg | F118: 0 | G118: i | I118: =S118 ->  | Q118: timetillegg helg | R118: =F118 -> 0 | S118: =IF(AND(R104>0,R118=0),$R$7,"") ->  | T118: =R118*R104 -> 0 | U118: -
E119: prosenttillegg helligdag | F119: 0 | G119: i | I119: =S119 ->  | Q119: prosenttillegg helligdag | R119: =F119 -> 0 | S119: =IF(AND(OR(R105>0,R106>0),R119=0),$R$7,"") ->  | T119: =(R119*R129*R105*T100)+(R119*(R129+R116)*R105*T101)+(R119*(R129+R117)*R105*T102)+(R119*(R129+R118)*R106*T100)+(R119*(R129+R116+R118)*R106*T101)+(R119*(R129+R117+R118)*R106*T102) ->  | U119: -
E120: Finn riktig timesats her | U120: -
U121: -
E122: Sosiale utgifter: | U122: -
E123: sats feriepenger | F123: Velg fra liste…. | G123: i | I123: =S123 -> *obligatorisk | Q123: =E123 -> sats feriepenger | R123: =F123 -> Velg fra liste…. | S123: =IF(F123="",$R$7,IF(F123=Innstillinger!$B$8,$R$7,"")) -> *obligatorisk | T123: - | U123: -
E124: sats pensjon | F124: 0.11 | G124: i | Q124: =E124 -> sats pensjon | R124: =F124+F125 -> 0.09 | S124: =IF(R124<2%,$R$7,IF(F124>11%,$R$9,"")) ->  | T124: - | U124: -
E125: (-) ansattes egenandel for pensjon | F125: -0.02 | G125: i | S125: =IF(F125=0%,$R$9,"") -> 
E126: sats arbeidsgiveravgift | F126: Velg fra liste…. | G126: i | I126: =S126 -> *obligatorisk | Q126: =E126 -> sats arbeidsgiveravgift | R126: =F126 -> Velg fra liste…. | S126: =IF(F126="",$R$7,IF(F126=Innstillinger!$B$8,$R$7,"")) -> *obligatorisk | T126: - | U126: -
E127: Finn riktig arbeidsgiveravgift her | Q127: Vis beregningen? | R127: =IF(ISERROR(R141),"Nei",IF(COUNTIF(I90:I126,$R$7)=0,"Ja","Nei")) -> Nei | U127: - | V127: -
U128: - | V128: -
E129: Timelønn, uten sosiale utgifter | F129: =IF(R127="nei","",R129) ->  | I129: =S129 ->  | Q129: Timelønn | R129: =R115/R112/52 ->  | S129: =IF(AND(I141=TRUE,R127="NEI"),$R$10,IF(I141=TRUE,T129,"")) ->  | T129: ="➡️ "&TEXT(R129,"# ##0")&" kr = "&TEXT(R115,"# ##0")&" kr årslønnn ÷ "&TEXT(R112,"#,##")&" timer/uke ÷ 52 uker" ->  | U129: -
E130: Timelønn, inkludert sosiale utgifter | F130: =IF(R127="nei","",R130) ->  | I130: =S130 ->  | Q130: Timelønn, inkludert sosiale utgifter | R130: =(R129*(1+R123+R124+(R123*R124))*(1+R126)) ->  | S130: =IF(AND(I141=TRUE,R127="NEI"),$R$10,IF(I141=TRUE,T130,"")) ->  | T130: ="➡️ "&TEXT(R130,"# ##0")&" kr = "&TEXT(R129,"# ##0,00")&" kr timelønn, uten sosiale utgifter x sosiale utgifter" ->  | U130: -
U131: -
U132: -
D133: Oppsummering | U133: -
U134: -
E135: Lønn | F135: =IF(R127="nei","",R135) ->  | I135: =S135 ->  | Q135: Lønn | R135: =R98*R129 ->  | S135: =IF(AND(I141=TRUE,R127="NEI"),$R$10,IF(I141=TRUE,T135,"")) ->  | T135: ="➡️ "&TEXT(F135,"# ##0")&" kr = "&F98&" total arbeidstimer x "&TEXT(F129,"#,##")&" kroner per time" -> ➡️ kr = 0 total arbeidstimer x kroner per time | U135: -
E136: Ubekvemstillegg | F136: =IF(R127="nei","",R136) ->  | Q136: Ubekvemstillegg | R136: =SUM(T116:T119) ->  | S136: =IF(AND(I141=TRUE,R127="NEI"),$R$10,IF(I141=TRUE,T136,"")) ->  | T136: ="➡️ "&TEXT(F136,"# ##0")&" kr = arbeidstimer i helg / natt / kveld / helligdag x timetillegg" -> ➡️ kr = arbeidstimer i helg / natt / kveld / helligdag x timetillegg | U136: -
E137: Feriepenger | F137: =IF(R127="nei","",R137) ->  | Q137: Feriepenger | R137: =(R135+R136)*R123 ->  | S137: =IF(AND(I141=TRUE,R127="NEI"),$R$10,IF(I141=TRUE,T137,"")) ->  | T137: ="➡️ "&TEXT(F137,"# ##0")&" kr = "&TEXT(F135+F136,"# ##0")&" kr lønn & tillegg x "&TEXT(F123,"#,0 %")&" feriepenger sats" ->  | U137: -
E138: Pensjonskostnader | F138: =IF(R127="nei","",R138) ->  | Q138: Pensjonskostnader | R138: =SUM(R135:R137)*R124 ->  | S138: =IF(AND(I141=TRUE,R127="NEI"),$R$10,IF(I141=TRUE,T138,"")) ->  | T138: ="➡️ "&TEXT(F138,"# ##0")&" kr = ("&TEXT(F135+F136,"# ##0")&" kr lønn & tillegg + "&TEXT(F137,"# ##0")&" kr feriepenger) x "&TEXT(R124,"#,0 %")&" pensjon" ->  | U138: -
E139: Arbeidsgiveravgift | F139: =IF(R127="nei","",R139) ->  | Q139: Arbeidsgiveravgift | R139: =SUM(R135:R138)*R126 ->  | S139: =IF(AND(I141=TRUE,R127="NEI"),$R$10,IF(I141=TRUE,T139,"")) ->  | T139: ="➡️ "&TEXT(F139,"# ##0")&" kr = ("&TEXT(F135+F136,"# ##0")&" kr lønn + "&TEXT(F137,"# ##0")&" kr f.p. + "&TEXT(F138,"# ##0")&" kr pensjon) x "&TEXT(F126,"#,0 %")&" aga " ->  | U139: -
U140: -
E141: Totalkostnad | F141: =IF(R127="nei","",R141) ->  | J141: Kryss av for å se beregning | P141: =P89&"c" -> 2c | Q141: Totalkostnad | R141: =ROUND(SUM(R135:R139),0) ->  | T141: - | U141: -
U142: -
R143: =3-COUNTIF(S144:S146,"") -> 0 | U143: -
E144: =IF(E145="","Skriv kommentar:","") -> Skriv kommentar: | J144: =IF(S144&S145&S146="","","⚠️Vi trenger mer informasjon") ->  | Q144: Hvis timelønn er over 650 kroner | R144: =IF(S144="","",IF(R143=1,"","1. ")) ->  | S144: =IF(S115=$R$9,X$6,"") ->  | T144: - | U144: -
J145: =_xlfn.TEXTJOIN(CHAR(10)&CHAR(10),TRUE,R144&S144,R145&S145,R146&S146) ->  | Q145: Hvis grunnpremie for pensjon er over 11% | R145: =IF(S145="","",IF(R143=1,"",IF(S144="","1. ","2. "))) ->  | S145: =IF(S124=$R$9,$X$7,"") ->  | T145: - | U145: -
Q146: Hvis ansattes egenandel for pensjon er 0% | R146: =IF(S146="","",IF(R143=1,"",IF(R143=2,"2.",IF(R145="1. ","2. ","3. ")))) ->  | S146: =IF(S125=$R$9,$X$8,"") ->  | T146: -
D153: Navn og rolle - ansvarlig for kostnadsberegningen | I153: Sted | K153: Dato
Q159: !------ikke rediger disse cellene-------------------------------------------------------------------------------------------------------------------------------------------------------------------------------------- | T159: ------------------------------------------------------!
E160: ="Beregning "&P160 -> Beregning 3 | P160: =+P89+1 -> 3 | Q160: Felt | R160: Verdi | S160: Kommentar | T160: Merkander | U160: -
D161: Tiltaket | U161: -
U162: -
E163: Tiltaksnavn | G163: i | I163: =S163 -> *obligatorisk | P163: =P160&"a" -> 3a | Q163: =D161 -> Tiltaket | R163: =F163 -> 0 | S163: =IF(F163="",$R$7,"") -> *obligatorisk | T163: - | U163: -
E164: hvis tolk: hvilket tiltak er tolken brukt i? | G164: i | I164: =S164 ->  | Q164: =E164 -> hvis tolk: hvilket tiltak er tolken brukt i? | R164: =F164 -> 0 | S164: =IF(AND(IFERROR(SEARCH("tolk",F163),0)>0,F164=""),$R$7,"") ->  | T164: - | U164: -
U165: -
E166: Oppfølging i tiltaket: | U166: -
E167: arbeidstimer per uke | G167: i | I167: =S167 -> *obligatorisk | Q167: =E167 -> arbeidstimer per uke | R167: =F167 -> 0 | S167: =IF(F167="",$R$7,"") -> *obligatorisk | T167: - | U167: -
E168: arbeidsuker i tilskuddperioden | G168: i | I168: =S168 -> *obligatorisk | Q168: =E168 -> arbeidsuker i tilskuddperioden | R168: =F168 -> 0 | S168: =IF(F168="",$R$7,"") -> *obligatorisk | T168: - | U168: -
E169: arbeidstimer totalt | F169: =R169 -> 0 | Q169: =E169 -> arbeidstimer totalt | R169: =R167*R168 -> 0 | T169: - | U169: -
U170: -
E171: ="Ubekvemstillegg for de "&IF(F169=0,"timene:",TEXT(F169,"# ##0,0###")&" timene:") -> Ubekvemstillegg for de timene: | Q171: arbeidstimer dag | R171: =(R169-R172-R173) -> 0 | T171: =R171/R169 ->  | U171: -
E172: arbeidstimer kveld | F172: 0 | G172: i | Q172: =E172 -> arbeidstimer kveld | R172: =F172 -> 0 | T172: =R172/R169 ->  | U172: -
E173: arbeidstimer natt | F173: 0 | G173: i | Q173: =E173 -> arbeidstimer natt | R173: =F173 -> 0 | T173: =R173/R169 ->  | U173: -
U174: -
E175: arbeidstimer helg | F175: 0 | G175: i | Q175: =E175 -> arbeidstimer helg | R175: =F175 -> 0 | T175: - | U175: -
E176: arbeidstimer helligdag hverdag | F176: 0 | G176: i | Q176: arbeidstimer helligdag hverdag | R176: 0 | T176: - | U176: -
E177: arbeidstimer helligdag helg (lørdag og søndag) | F177: 0 | G177: i | Q177: arbeidstimer helligdag helg (lørdag og søndag) | R177: 0 | T177: - | U177: -
U178: -
U179: -
D180: Lønnsutgifter per ansatt | U180: -
U181: -
E182: stillingstittel | G182: i | I182: =S182 -> *obligatorisk | P182: =P160&"b" -> 3b | Q182: Tiltak | S182: =IF(F182="",$R$7,"") -> *obligatorisk | T182: - | U182: -
E183: alminnelig arbeidstid for full stilling | F183: Velg fra liste…. | G183: i | I183: *obligatorisk | Q183: =E183 -> alminnelig arbeidstid for full stilling | R183: =_xlfn.XLOOKUP(F183,Innstillinger!$B$48:$B$54,Innstillinger!$C$48:$C$54,0,) -> 0 | S183: =IF(F183="",$R$7,IF(F183=Innstillinger!$B$8,$R$7,"")) -> *obligatorisk | T183: - | U183: -
U184: -
E185: Lønn: (individuell/ gjennomsnitt) | U185: -
E186: årslønn for full stilling | G186: i | I186: =S186 -> *obligatorisk | Q186: =E186 -> årslønn for full stilling | R186: =F186 -> 0 | S186: =IF(R186=0,$R$7,IF(ISERROR(R201)=TRUE,"",IF(R201>$R$5,$R$9,""))) -> *obligatorisk | T186: - | U186: -
E187: timetillegg kveld | F187: 0 | G187: i | I187: =S187 ->  | Q187: =E187 -> timetillegg kveld | R187: =F187 -> 0 | S187: =IF(AND(R172>0,R187=0),$R$7,"") ->  | T187: =R187*R172 -> 0 | U187: -
E188: timetillegg natt | F188: 0 | G188: i | I188: =S188 ->  | Q188: timetillegg natt | R188: =F188 -> 0 | S188: =IF(AND(R173>0,R188=0),$R$7,"") ->  | T188: =R188*R173 -> 0 | U188: -
E189: timetillegg helg | F189: 0 | G189: i | I189: =S189 ->  | Q189: timetillegg helg | R189: =F189 -> 0 | S189: =IF(AND(R175>0,R189=0),$R$7,"") ->  | T189: =R189*R175 -> 0 | U189: -
E190: prosenttillegg helligdag | F190: 0 | G190: i | I190: =S190 ->  | Q190: prosenttillegg helligdag | R190: =F190 -> 0 | S190: =IF(AND(OR(R176>0,R177>0),R190=0),$R$7,"") ->  | T190: =(R190*R200*R176*T171)+(R190*(R200+R187)*R176*T172)+(R190*(R200+R188)*R176*T173)+(R190*(R200+R189)*R177*T171)+(R190*(R200+R187+R189)*R177*T172)+(R190*(R200+R188+R189)*R177*T173) ->  | U190: -
E191: Finn riktig timesats her | U191: -
U192: -
E193: Sosiale utgifter: | U193: -
E194: sats feriepenger | F194: Velg fra liste…. | G194: i | I194: =S194 -> *obligatorisk | Q194: =E194 -> sats feriepenger | R194: =F194 -> Velg fra liste…. | S194: =IF(F194="",$R$7,IF(F194=Innstillinger!$B$8,$R$7,"")) -> *obligatorisk | T194: - | U194: -
E195: sats pensjon | F195: 0.11 | G195: i | Q195: =E195 -> sats pensjon | R195: =F195+F196 -> 0.09 | S195: =IF(R195<2%,$R$7,IF(F195>11%,$R$9,"")) ->  | U195: -
E196: (-) ansattes egenandel for pensjon | F196: -0.02 | G196: i | S196: =IF(F196=0%,$R$9,"") -> 
E197: sats arbeidsgiveravgift | F197: Velg fra liste…. | G197: i | I197: =S197 -> *obligatorisk | Q197: =E197 -> sats arbeidsgiveravgift | R197: =F197 -> Velg fra liste…. | S197: =IF(F197="",$R$7,IF(F197=Innstillinger!$B$8,$R$7,"")) -> *obligatorisk | T197: - | U197: -
E198: Finn riktig arbeidsgiveravgift her | Q198: Vis beregningen? | R198: =IF(ISERROR(R212),"Nei",IF(COUNTIF(I161:I197,$R$7)=0,"Ja","Nei")) -> Nei | U198: - | V198: -
U199: - | V199: -
E200: Timelønn, uten sosiale utgifter | F200: =IF(R198="nei","",R200) ->  | I200: =S200 ->  | Q200: Timelønn | R200: =R186/R183/52 ->  | S200: =IF(AND(I212=TRUE,R198="NEI"),$R$10,IF(I212=TRUE,T200,"")) ->  | T200: ="➡️ "&TEXT(R200,"# ##0")&" kr = "&TEXT(R186,"# ##0")&" kr årslønnn ÷ "&TEXT(R183,"#,##")&" timer/uke ÷ 52 uker" ->  | U200: -
E201: Timelønn, inkludert sosiale utgifter | F201: =IF(R198="nei","",R201) ->  | I201: =S201 ->  | Q201: Timelønn, inkludert sosiale utgifter | R201: =(R200*(1+R194+R195+(R194*R195))*(1+R197)) ->  | S201: =IF(AND(I212=TRUE,R198="NEI"),$R$10,IF(I212=TRUE,T201,"")) ->  | T201: ="➡️ "&TEXT(R201,"# ##0")&" kr = "&TEXT(R200,"# ##0,00")&" kr timelønn, uten sosiale utgifter x sosiale utgifter" ->  | U201: -
U202: -
U203: -
D204: Oppsummering | U204: -
U205: -
E206: Lønn | F206: =IF(R198="nei","",R206) ->  | I206: =S206 ->  | Q206: Lønn | R206: =R169*R200 ->  | S206: =IF(AND(I212=TRUE,R198="NEI"),$R$10,IF(I212=TRUE,T206,"")) ->  | T206: ="➡️ "&TEXT(F206,"# ##0")&" kr = "&F169&" total arbeidstimer x "&TEXT(F200,"#,##")&" kroner per time" -> ➡️ kr = 0 total arbeidstimer x kroner per time | U206: -
E207: Ubekvemstillegg | F207: =IF(R198="nei","",R207) ->  | Q207: Ubekvemstillegg | R207: =SUM(T187:T190) ->  | S207: =IF(AND(I212=TRUE,R198="NEI"),$R$10,IF(I212=TRUE,T207,"")) ->  | T207: ="➡️ "&TEXT(F207,"# ##0")&" kr = arbeidstimer i helg / natt / kveld / helligdag x timetillegg" -> ➡️ kr = arbeidstimer i helg / natt / kveld / helligdag x timetillegg | U207: -
E208: Feriepenger | F208: =IF(R198="nei","",R208) ->  | Q208: Feriepenger | R208: =(R206+R207)*R194 ->  | S208: =IF(AND(I212=TRUE,R198="NEI"),$R$10,IF(I212=TRUE,T208,"")) ->  | T208: ="➡️ "&TEXT(F208,"# ##0")&" kr = "&TEXT(F206+F207,"# ##0")&" kr lønn & tillegg x "&TEXT(F194,"#,0 %")&" feriepenger sats" ->  | U208: -
E209: Pensjonskostnader | F209: =IF(R198="nei","",R209) ->  | Q209: Pensjonskostnader | R209: =SUM(R206:R208)*R195 ->  | S209: =IF(AND(I212=TRUE,R198="NEI"),$R$10,IF(I212=TRUE,T209,"")) ->  | T209: ="➡️ "&TEXT(F209,"# ##0")&" kr = ("&TEXT(F206+F207,"# ##0")&" kr lønn & tillegg + "&TEXT(F208,"# ##0")&" kr feriepenger) x "&TEXT(R195,"#,0 %")&" pensjon" ->  | U209: -
E210: Arbeidsgiveravgift | F210: =IF(R198="nei","",R210) ->  | Q210: Arbeidsgiveravgift | R210: =SUM(R206:R209)*R197 ->  | S210: =IF(AND(I212=TRUE,R198="NEI"),$R$10,IF(I212=TRUE,T210,"")) ->  | T210: ="➡️ "&TEXT(F210,"# ##0")&" kr = ("&TEXT(F206+F207,"# ##0")&" kr lønn + "&TEXT(F208,"# ##0")&" kr f.p. + "&TEXT(F209,"# ##0")&" kr pensjon) x "&TEXT(F197,"#,0 %")&" aga " ->  | U210: -
U211: -
E212: Totalkostnad | F212: =IF(R198="nei","",R212) ->  | J212: Kryss av for å se beregning | P212: =P160&"c" -> 3c | Q212: Totalkostnad | R212: =ROUND(SUM(R206:R210),0) ->  | T212: - | U212: -
U213: -
R214: =3-COUNTIF(S215:S217,"") -> 0 | U214: -
E215: =IF(E216="","Skriv kommentar:","") -> Skriv kommentar: | J215: =IF(S215&S216&S217="","","⚠️Vi trenger mer informasjon") ->  | Q215: Hvis timelønn er over 650 kroner | R215: =IF(S215="","",IF(R214=1,"","1. ")) ->  | S215: =IF(S186=$R$9,X$6,"") ->  | T215: - | U215: -
J216: =_xlfn.TEXTJOIN(CHAR(10)&CHAR(10),TRUE,R215&S215,R216&S216,R217&S217) ->  | Q216: Hvis grunnpremie for pensjon er over 11% | R216: =IF(S216="","",IF(R214=1,"",IF(S215="","1. ","2. "))) ->  | S216: =IF(S195=$R$9,$X$7,"") ->  | T216: - | U216: -
Q217: Hvis ansattes egenandel for pensjon er 0% | R217: =IF(S217="","",IF(R214=1,"",IF(R214=2,"2.",IF(R216="1. ","2. ","3. ")))) ->  | S217: =IF(S196=$R$9,$X$8,"") ->  | T217: -
D224: Navn og rolle - ansvarlig for kostnadsberegningen | I224: Sted | K224: Dato
Q230: !------ikke rediger disse cellene-------------------------------------------------------------------------------------------------------------------------------------------------------------------------------------- | T230: ------------------------------------------------------!
E231: ="Beregning "&P231 -> Beregning 4 | P231: =+P160+1 -> 4 | Q231: Felt | R231: Verdi | S231: Kommentar | T231: Merkander | U231: -
D232: Tiltaket | U232: -
U233: -
E234: Tiltaksnavn | G234: i | I234: =S234 -> *obligatorisk | P234: =P231&"a" -> 4a | Q234: =D232 -> Tiltaket | R234: =F234 -> 0 | S234: =IF(F234="",$R$7,"") -> *obligatorisk | T234: - | U234: -
E235: hvis tolk: hvilket tiltak er tolken brukt i? | G235: i | I235: =S235 ->  | Q235: =E235 -> hvis tolk: hvilket tiltak er tolken brukt i? | R235: =F235 -> 0 | S235: =IF(AND(IFERROR(SEARCH("tolk",F234),0)>0,F235=""),$R$7,"") ->  | T235: - | U235: -
U236: -
E237: Oppfølging i tiltaket: | U237: -
E238: arbeidstimer per uke | G238: i | I238: =S238 -> *obligatorisk | Q238: =E238 -> arbeidstimer per uke | R238: =F238 -> 0 | S238: =IF(F238="",$R$7,"") -> *obligatorisk | T238: - | U238: -
E239: arbeidsuker i tilskuddperioden | G239: i | I239: =S239 -> *obligatorisk | Q239: =E239 -> arbeidsuker i tilskuddperioden | R239: =F239 -> 0 | S239: =IF(F239="",$R$7,"") -> *obligatorisk | T239: - | U239: -
E240: arbeidstimer totalt | F240: =R240 -> 0 | Q240: =E240 -> arbeidstimer totalt | R240: =R238*R239 -> 0 | T240: - | U240: -
U241: -
... 108 more rows

Sheet 2 Lønn med undervisningstid
C2: 2 | E2: Lønn med undervisningstid | K2: ='1 Lønn'!K2 -> (ver. 3.4)
E3: -til lærer og -lektor, eller andre kommunalt ansatte som underviser i skolen
X5: Forklar i kommentarfeltet hvorfor dere søker om pedagogisk tiltak uten at PPT har tilrådet.
E6: Dekkes av ekstratilskuddet: | I6: Dekkes ikke av ekstratilskuddet: | Q6: Timesats max | R6: 1550 | X6: Forklar i kommentarfeltet hvorfor dere søker på flere timer enn PPT har tilrådet.
D7: þUndervisningstid: Lønn for den tiden den ansatte gir undervisning til flyktningen þFør- og etterarbeid til undervisningstimene: Dette er allerede innbakt i timelønnen. Satsen justeres automatisk etter valgene dere gjør i nedtrekksmenyen "Årsramme", og skal derfor ikke føres opp i eget punkt i beregningen. þSosiale utgifter til: feriepenger, arbeidsgivers andel av pensjonskostnader og arbeidsgiveravgift | I7: xArbeidstid utenom undervisning: Administrativt arbeid, eller "egentid", kompetanseheving, strategisk planlegging, andre oppgaver, eller "fellestid" xSosiale utgifter til: overtid, vikarutgifter, merverdiavgifter, forsikring og administrative påslag xAnsattes egenandel for pensjon: ansattes egenandel for grunnpremie pensjon er som regel 2 %. Sett prosenten til 0 dersom den ansatte ikke trekkes for egenandel. | Q7: Ansattes egenandel for pensjon | R7: 0 | X7: Oppgitt årslønn er høyere enn det IMDi forventer i denne sammenhengen. Legg ved underbilag som dokumenterer den ansattes årslønn.
Q8: Tekst 1 | R8: *obligatorisk | S8: bruk kun tall og komma, ikke bruk mellomrom og punktum | X8: Legg ved dokumentasjon som viser hvilke kostnader som er inkludert i pensjonskostnaden.
Q9: Tekst 2 | R9: * valgfritt | X9: Bekreft i kommentarfelt at dere ikke trekker den ansatte for egenandel.
Q10: Tekst 3 | R10: ⚠️Vi trenger mer informasjon. Se notat nederst.
Q11: Tekst 4 | R11: Utregnes automatisk etter dere har fylt inn de obligatoriske feltene
I18: Dukker det opp en feilmelding når du trykker på knappen, kan det være at du må aktivere makroer først. For å aktivere makroer, trykk først på knappen "Aktiver innhold" helt øverst, så vil det komme opp en dialogboks, trykk deretter på "Ja". Bruk av knappen er valgfritt i dette regnearket, og makroene trenger derfor ikke å aktiveres hvis du ikke har behov for det. | Q18: !------ikke rediger disse cellene--------------------------------------------------------------------------------------------------------------------------------------------------------------------------------------
E19: Beregning 1 | P19: 1 | Q19: Felt | R19: Verdi | S19: Kommentar | T19: Merkander
D20: Tiltaket
E22: Tiltaksnavn | G22: i | I22: =S22 -> *obligatorisk | P22: =P19&"a" -> 1a | Q22: =D20 -> Tiltaket | S22: =IF(F22="",$R$8,"") -> *obligatorisk
E24: Oppfølging i tiltaket:
E25: årstimer tilrådt av PPT (à 60 minutter) | G25: i | I25: =S25 -> *obligatorisk | Q25: =E25 -> årstimer tilrådt av PPT (à 60 minutter) | R25: =F25 -> 0 | S25: =IF(F25="",$R$8,IF(F25=0,$R$10,"")) -> *obligatorisk | T25: -
E26: undervisningstimer i periode totalt | G26: i | I26: =S26 -> *obligatorisk | Q26: =E26 -> undervisningstimer i periode totalt | R26: =F26 -> 0 | S26: =IF(F26="",$R$8,IF(F25=0,"",IF(F26>F25,$R$10,""))) -> *obligatorisk | T26: -
D29: Lønnsutgifter per ansatt
E31: stillingstittel | G31: i | I31: =S31 -> *obligatorisk | P31: =P19&"b" -> 1b | Q31: =E31 -> stillingstittel | S31: =IF(F31="",$R$8,IF(F31=Innstillinger!$B$8,$R$8,"")) -> *obligatorisk
E32: område | F32: Velg fra liste…. | G32: i | I32: *obligatorisk | Q32: =E32 -> område | R32: =F32 -> Velg fra liste…. | S32: =IF(F32="",$R$8,IF(F32=Innstillinger!$B$8,$R$8,"")) -> *obligatorisk | T32: -
E33: årsramme (à 60 minutter) | F33: Velg fra liste…. | G33: i | I33: *obligatorisk | Q33: årsramme (à 60 minutter) | R33: =IF(F33=Innstillinger!$B$25,F34,_xlfn.XLOOKUP(F33,Innstillinger!$B$20:$B$24,Innstillinger!$C$20:$C$24,0)) -> 0 | S33: =IF(F33="",$R$8,IF(F33=Innstillinger!$B$8,$R$8,"")) -> *obligatorisk | T33: -
E34: Finn riktig årsramme her | I34: =S34 ->  | Q34: Finn riktig årsramme her | S34: =IF(AND(F34="",F33=Innstillinger!$B$25),$R$8&"; "&T34,"") ->  | T34: oppgi egen årsramme når ingen fra listen passer | U34: -
E36: Lønn og sosiale utgifter: (individuell/ gjennomsnitt)
E37: årslønn for full stilling | G37: i | I37: =S37 -> *obligatorisk | Q37: =E37 -> årslønn for full stilling | R37: =F37 -> 0 | S37: =IF(R37=0,$R$8,IF(ISERROR(R45)=TRUE,"",IF(R45>$R$6,$R$10,""))) -> *obligatorisk | T37: -
E38: sats feriepenger | F38: Velg fra liste…. | G38: i | I38: =S38 -> *obligatorisk | Q38: =E38 -> sats feriepenger | R38: =F38 -> Velg fra liste…. | S38: =IF(F38="",$R$8,IF(F38=Innstillinger!$B$8,$R$8,"")) -> *obligatorisk | T38: -
E39: sats pensjon | F39: 0.11 | G39: i | Q39: sats pensjon | R39: =F39+F40 -> 0.09 | S39: =IF(R39<2%,$R$7,IF(F39>11%,$R$10,"")) -> 
E40: (-) ansattes egenandel for pensjon | F40: -0.02 | G40: i | S40: =IF(F40=0%,$R$10,"") -> 
E41: sats arbeidsgiveravgift | F41: Velg fra liste…. | G41: i | I41: *obligatorisk | Q41: =E41 -> sats arbeidsgiveravgift | R41: =F41 -> Velg fra liste…. | S41: =IF(F41="",$R$8,IF(F41=Innstillinger!$B$8,$R$8,"")) -> *obligatorisk
E42: Finn riktig arbeidsgiveravgift her
Q43: Vis beregningen? | R43: =_xlfn.IFS(ISERROR(R55),"Nei",COUNTIF(I22:I41,$R$8)=0,"JA",TRUE,"NEI") -> Nei | U43: -
E44: Timelønn, uten sosiale utgifter | F44: =IF(R43="nei","",R44) ->  | I44: =S44 ->  | Q44: Timelønn | R44: =IF(R32=Innstillinger!$B$16,R37*1500/R33/1687.5,R37*1400*100/R33/1687.5/112) ->  | S44: =IF(AND(I55=TRUE,R43="NEI"),$R$11,IF(I55=TRUE,T44,"")) ->  | T44: =IF(R32=Innstillinger!$B$15,"➡️ "&TEXT(R44,"# ##0")&" kr per time = "&TEXT(R37,"# ##0")&" kr årslønn x 1400 x 100 ÷ ("&R33&" ramme x 1687,5 x 112)",IF(R32=Innstillinger!$B$16,"➡️ "&TEXT(R44,"# ##0")&" kr per time = "&TEXT(R37,"# ##0")&" kr årslønn x 1500 ÷ ("&R33&" ramme x 1687,5)","")) ->  | U44: -
E45: Timelønn, inkludert sosiale utgifter | F45: =IF(R43="nei","",R45) ->  | Q45: Timelønn, inkludert sosiale utgifter | R45: =(R44*(1+R38+R39+(R38*R39))*(1+R41)) ->  | S45: =IF(AND(I55=TRUE,R43="NEI"),$R$11,IF(I55=TRUE,T45,"")) ->  | T45: ="➡️ "&TEXT(R45,"# ##0")&" kr = "&TEXT(R44,"# ##0,00")&" kr timelønn, uten sosiale utgifter x sosiale utgifter" ->  | U45: -
U46: -
U47: -
D48: Oppsummering | U48: -
U49: -
E50: Lønn | F50: =IF(R43="nei","",R50) ->  | I50: =S50 ->  | Q50: Lønn | R50: =R26*R44 ->  | S50: =IF(AND(I55=TRUE,R43="NEI"),$R$11,IF(I55=TRUE,T50,"")) ->  | T50: ="➡️ "&TEXT(F50,"# ##0")&" kr = "&F26&" total arbeidstimer x "&TEXT(F44,"#,##")&" kroner per time" -> ➡️ kr = total arbeidstimer x kroner per time | U50: -
E51: Feriepenger | F51: =IF(R43="nei","",R51) ->  | Q51: Feriepenger | R51: =R50*R38 ->  | S51: =IF(AND(I55=TRUE,R43="NEI"),$R$11,IF(I55=TRUE,T51,"")) ->  | T51: ="➡️ "&TEXT(F51,"# ##0")&" kr = "&TEXT(F50,"# ##0")&" kr lønn x "&TEXT(F38,"#,0 %")&" feriepenger sats" -> ➡️ kr = kr lønn x Velg fra liste…. feriepenger sats | U51: -
E52: Pensjonskostnader | F52: =IF(R43="nei","",R52) ->  | Q52: Pensjonskostnader | R52: =SUM(R50:R51)*R39 ->  | S52: =IF(AND(I55=TRUE,R43="NEI"),$R$11,IF(I55=TRUE,T52,"")) ->  | T52: ="➡️ "&TEXT(F52,"# ##0")&" kr = ("&TEXT(F50,"# ##0")&" kr lønn + "&TEXT(F51,"# ##0")&" kr feriepenger) x "&TEXT(R39,"#,0 %")&" pensjon" -> ➡️ kr = ( kr lønn + kr feriepenger) x 9,0 % pensjon | U52: -
E53: Arbeidsgiveravgift | F53: =IF(R43="nei","",R53) ->  | Q53: Arbeidsgiveravgift | R53: =SUM(R50:R52)*R41 ->  | S53: =IF(AND(I55=TRUE,R43="NEI"),$R$11,IF(I55=TRUE,T53,"")) ->  | T53: ="➡️ "&TEXT(F53,"# ##0")&" kr = ("&TEXT(F50,"# ##0")&" kr + "&TEXT(F51,"# ##0")&" kr f.p. + "&TEXT(F52,"# ##0")&" kr pensjon) x "&TEXT(F41,"#,0 %")&" aga " -> ➡️ kr = ( kr + kr f.p. + kr pensjon) x Velg fra liste…. aga | U53: -
E55: Totalkostnad | F55: =IF(R43="nei","",R55) ->  | J55: Kryss av for å se beregning | P55: =P19&"c" -> 1c | Q55: Totalkostnad | R55: =ROUND(SUM(R50:R53),0) -> 
R57: =4-COUNTIF(S58:S61,"") -> 0
E58: =IF(E59="","Skriv kommentar:","") -> Skriv kommentar: | J58: =IF(S58&S59&S60&S61="","","⚠️Vi trenger mer informasjon") ->  | Q58: Tilrådning | R58: =IF(S58="","",IF(R57=1,"","1. ")) ->  | S58: =IF(ISBLANK(F25),"",IF(R25=0,$X$5,IF(R26>R25,$X$6,""))) -> 
J59: =_xlfn.TEXTJOIN(CHAR(10)&CHAR(10),TRUE,R58&S58,R59&S59,R60&S60,R61&S61) ->  | Q59: Hvis timelønn er over 650 kroner | R59: =IF(S59="","",IF(R57=1,"",IF(S58="","1. ","2. "))) ->  | S59: =IF(S37=$R$10,X$7,"") ->  | U59: =_xlfn.IFS(T59="","",T57<>"","2. ",T60<>"","1. ",TRUE,"") -> 
Q60: Hvis grunnpremie for pensjon er over 11% | R60: =IF(S60="","",IF(R57=1,"",IF(AND(R57=2,R58&R59=""),"1. ",IF(AND(R57=2,R58&R59<>""),"2. ","3. ")))) ->  | S60: =IF(S39=$R$10,$X$8,"") ->  | U60: =_xlfn.IFS(T60="","",AND(T57<>"",T59<>""),"3. ",AND(T57="",T59=""),"",TRUE,"2. ") -> 
Q61: Hvis ansattes egenandel for pensjon er 0% | R61: =IF(S61="","",IF(R57=1,"",R57&". ")) ->  | S61: =IF(S40=$R$10,$X$9,"") -> 
D69: Navn og rolle - ansvarlig for kostnadsberegningen | I69: Sted | K69: Dato
Q75: !------ikke rediger disse cellene--------------------------------------------------------------------------------------------------------------------------------------------------------------------------------------
E76: ="Beregning "&P76 -> Beregning 2 | P76: =P19+1 -> 2 | Q76: Felt | R76: Verdi | S76: Kommentar | T76: Merkander
D77: Tiltaket
E79: Tiltaksnavn | G79: i | I79: =S79 -> *obligatorisk | P79: =P76&"a" -> 2a | Q79: =D77 -> Tiltaket | S79: =IF(F79="",$R$8,"") -> *obligatorisk
E81: Oppfølging i tiltaket:
E82: årstimer tilrådt av PPT (à 60 minutter) | G82: i | I82: =S82 -> *obligatorisk | Q82: =E82 -> årstimer tilrådt av PPT (à 60 minutter) | R82: =F82 -> 0 | S82: =IF(F82="",$R$8,IF(F82=0,$R$10,"")) -> *obligatorisk | T82: -
E83: undervisningstimer i periode totalt | G83: i | I83: =S83 -> *obligatorisk | Q83: =E83 -> undervisningstimer i periode totalt | R83: =F83 -> 0 | S83: =IF(F83="",$R$8,IF(F82=0,"",IF(F83>F82,$R$10,""))) -> *obligatorisk | T83: -
D86: Lønnsutgifter per ansatt
E88: stillingstittel | G88: i | I88: =S88 -> *obligatorisk | P88: =P76&"b" -> 2b | Q88: =E88 -> stillingstittel | S88: =IF(F88="",$R$8,IF(F88=Innstillinger!$B$8,$R$8,"")) -> *obligatorisk
E89: område | F89: Velg fra liste…. | G89: i | I89: *obligatorisk | Q89: =E89 -> område | R89: =F89 -> Velg fra liste…. | S89: =IF(F89="",$R$8,IF(F89=Innstillinger!$B$8,$R$8,"")) -> *obligatorisk | T89: -
E90: årsramme (à 60 minutter) | F90: Velg fra liste…. | G90: i | I90: *obligatorisk | Q90: årsramme (à 60 minutter) | R90: =IF(F90=Innstillinger!$B$25,F91,_xlfn.XLOOKUP(F90,Innstillinger!$B$20:$B$24,Innstillinger!$C$20:$C$24,0)) -> 0 | S90: =IF(F90="",$R$8,IF(F90=Innstillinger!$B$8,$R$8,"")) -> *obligatorisk | T90: -
E91: Finn riktig årsramme her | I91: =S91 ->  | Q91: Finn riktig årsramme her | S91: =IF(AND(F91="",F90=Innstillinger!$B$25),$R$8&"; "&T91,"") ->  | T91: oppgi egen årsramme når ingen fra listen passer | U91: -
E93: Lønn og sosiale utgifter: (individuell/ gjennomsnitt)
E94: årslønn for full stilling | G94: i | I94: =S94 -> *obligatorisk | Q94: =E94 -> årslønn for full stilling | R94: =F94 -> 0 | S94: =IF(R94=0,$R$8,IF(ISERROR(R102)=TRUE,"",IF(R102>$R$6,$R$10,""))) -> *obligatorisk | T94: -
E95: sats feriepenger | F95: Velg fra liste…. | G95: i | I95: =S95 -> *obligatorisk | Q95: =E95 -> sats feriepenger | R95: =F95 -> Velg fra liste…. | S95: =IF(F95="",$R$8,IF(F95=Innstillinger!$B$8,$R$8,"")) -> *obligatorisk | T95: -
E96: sats pensjon | F96: 0.11 | G96: i | Q96: sats pensjon | R96: =F96+F97 -> 0.09 | S96: =IF(R96<2%,$R$7,IF(F96>11%,$R$10,"")) -> 
E97: (-) ansattes egenandel for pensjon | F97: -0.02 | G97: i | S97: =IF(F97=0%,$R$10,"") -> 
E98: sats arbeidsgiveravgift | F98: Velg fra liste…. | G98: i | I98: *obligatorisk | Q98: =E98 -> sats arbeidsgiveravgift | R98: =F98 -> Velg fra liste…. | S98: =IF(F98="",$R$8,IF(F98=Innstillinger!$B$8,$R$8,"")) -> *obligatorisk
E99: Finn riktig arbeidsgiveravgift her
Q100: Vis beregningen? | R100: =_xlfn.IFS(ISERROR(R112),"Nei",COUNTIF(I79:I98,$R$8)=0,"JA",TRUE,"NEI") -> Nei | U100: -
E101: Timelønn, uten sosiale utgifter | F101: =IF(R100="nei","",R101) ->  | I101: =S101 ->  | Q101: Timelønn | R101: =IF(R89=Innstillinger!$B$16,R94*1500/R90/1687.5,R94*1400*100/R90/1687.5/112) ->  | S101: =IF(AND(I112=TRUE,R100="NEI"),$R$11,IF(I112=TRUE,T101,"")) ->  | T101: =IF(R89=Innstillinger!$B$15,"➡️ "&TEXT(R101,"# ##0")&" kr per time = "&TEXT(R94,"# ##0")&" kr årslønn x 1400 x 100 ÷ ("&R90&" ramme x 1687,5 x 112)",IF(R89=Innstillinger!$B$16,"➡️ "&TEXT(R101,"# ##0")&" kr per time = "&TEXT(R94,"# ##0")&" kr årslønn x 1500 ÷ ("&R90&" ramme x 1687,5)","")) ->  | U101: -
E102: Timelønn, inkludert sosiale utgifter | F102: =IF(R100="nei","",R102) ->  | Q102: Timelønn, inkludert sosiale utgifter | R102: =(R101*(1+R95+R96+(R95*R96))*(1+R98)) ->  | S102: =IF(AND(I112=TRUE,R100="NEI"),$R$11,IF(I112=TRUE,T102,"")) ->  | T102: ="➡️ "&TEXT(R102,"# ##0")&" kr = "&TEXT(R101,"# ##0,00")&" kr timelønn, uten sosiale utgifter x sosiale utgifter" ->  | U102: -
U103: -
U104: -
D105: Oppsummering | U105: -
U106: -
E107: Lønn | F107: =IF(R100="nei","",R107) ->  | I107: =S107 ->  | Q107: Lønn | R107: =R83*R101 ->  | S107: =IF(AND(I112=TRUE,R100="NEI"),$R$11,IF(I112=TRUE,T107,"")) ->  | T107: ="➡️ "&TEXT(F107,"# ##0")&" kr = "&F83&" total arbeidstimer x "&TEXT(F101,"#,##")&" kroner per time" -> ➡️ kr = total arbeidstimer x kroner per time | U107: -
E108: Feriepenger | F108: =IF(R100="nei","",R108) ->  | Q108: Feriepenger | R108: =R107*R95 ->  | S108: =IF(AND(I112=TRUE,R100="NEI"),$R$11,IF(I112=TRUE,T108,"")) ->  | T108: ="➡️ "&TEXT(F108,"# ##0")&" kr = "&TEXT(F107,"# ##0")&" kr lønn x "&TEXT(F95,"#,0 %")&" feriepenger sats" -> ➡️ kr = kr lønn x Velg fra liste…. feriepenger sats | U108: -
E109: Pensjonskostnader | F109: =IF(R100="nei","",R109) ->  | Q109: Pensjonskostnader | R109: =SUM(R107:R108)*R96 ->  | S109: =IF(AND(I112=TRUE,R100="NEI"),$R$11,IF(I112=TRUE,T109,"")) ->  | T109: ="➡️ "&TEXT(F109,"# ##0")&" kr = ("&TEXT(F107,"# ##0")&" kr lønn + "&TEXT(F108,"# ##0")&" kr feriepenger) x "&TEXT(R96,"#,0 %")&" pensjon" -> ➡️ kr = ( kr lønn + kr feriepenger) x 9,0 % pensjon | U109: -
E110: Arbeidsgiveravgift | F110: =IF(R100="nei","",R110) ->  | Q110: Arbeidsgiveravgift | R110: =SUM(R107:R109)*R98 ->  | S110: =IF(AND(I112=TRUE,R100="NEI"),$R$11,IF(I112=TRUE,T110,"")) ->  | T110: ="➡️ "&TEXT(F110,"# ##0")&" kr = ("&TEXT(F107,"# ##0")&" kr + "&TEXT(F108,"# ##0")&" kr f.p. + "&TEXT(F109,"# ##0")&" kr pensjon) x "&TEXT(F98,"#,0 %")&" aga " -> ➡️ kr = ( kr + kr f.p. + kr pensjon) x Velg fra liste…. aga | U110: -
E112: Totalkostnad | F112: =IF(R100="nei","",R112) ->  | J112: Kryss av for å se beregning | P112: =P76&"c" -> 2c | Q112: Totalkostnad | R112: =ROUND(SUM(R107:R110),0) -> 
R114: =4-COUNTIF(S115:S118,"") -> 0
E115: =IF(E116="","Skriv kommentar:","") -> Skriv kommentar: | J115: =IF(S115&S116&S117&S118="","","⚠️Vi trenger mer informasjon") ->  | Q115: Tilrådning | R115: =IF(S115="","",IF(R114=1,"","1. ")) ->  | S115: =IF(ISBLANK(F82),"",IF(R82=0,$X$5,IF(R83>R82,$X$6,""))) -> 
J116: =_xlfn.TEXTJOIN(CHAR(10)&CHAR(10),TRUE,R115&S115,R116&S116,R117&S117,R118&S118) ->  | Q116: Hvis timelønn er over 650 kroner | R116: =IF(S116="","",IF(R114=1,"",IF(S115="","1. ","2. "))) ->  | S116: =IF(S94=$R$10,X$7,"") ->  | U116: =_xlfn.IFS(T116="","",T114<>"","2. ",T117<>"","1. ",TRUE,"") -> 
Q117: Hvis grunnpremie for pensjon er over 11% | R117: =IF(S117="","",IF(R114=1,"",IF(AND(R114=2,R115&R116=""),"1. ",IF(AND(R114=2,R115&R116<>""),"2. ","3. ")))) ->  | S117: =IF(S96=$R$10,$X$8,"") ->  | U117: =_xlfn.IFS(T117="","",AND(T114<>"",T116<>""),"3. ",AND(T114="",T116=""),"",TRUE,"2. ") -> 
Q118: Hvis ansattes egenandel for pensjon er 0% | R118: =IF(S118="","",IF(R114=1,"",R114&". ")) ->  | S118: =IF(S97=$R$10,$X$9,"") -> 
D126: Navn og rolle - ansvarlig for kostnadsberegningen | I126: Sted | K126: Dato
Q132: !------ikke rediger disse cellene--------------------------------------------------------------------------------------------------------------------------------------------------------------------------------------
E133: Beregning 3 | P133: =1+P76 -> 3 | Q133: Felt | R133: Verdi | S133: Kommentar | T133: Merkander
D134: Tiltaket
E136: Tiltaksnavn | G136: i | I136: =S136 -> *obligatorisk | P136: =P133&"a" -> 3a | Q136: =D134 -> Tiltaket | S136: =IF(F136="",$R$8,"") -> *obligatorisk
E138: Oppfølging i tiltaket:
E139: årstimer tilrådt av PPT (à 60 minutter) | G139: i | I139: =S139 -> *obligatorisk | Q139: =E139 -> årstimer tilrådt av PPT (à 60 minutter) | R139: =F139 -> 0 | S139: =IF(F139="",$R$8,IF(F139=0,$R$10,"")) -> *obligatorisk | T139: -
E140: undervisningstimer i periode totalt | G140: i | I140: =S140 -> *obligatorisk | Q140: =E140 -> undervisningstimer i periode totalt | R140: =F140 -> 0 | S140: =IF(F140="",$R$8,IF(F139=0,"",IF(F140>F139,$R$10,""))) -> *obligatorisk | T140: -
D143: Lønnsutgifter per ansatt
E145: stillingstittel | G145: i | I145: =S145 -> *obligatorisk | P145: =P133&"b" -> 3b | Q145: =E145 -> stillingstittel | S145: =IF(F145="",$R$8,IF(F145=Innstillinger!$B$8,$R$8,"")) -> *obligatorisk
E146: område | F146: Velg fra liste…. | G146: i | I146: *obligatorisk | Q146: =E146 -> område | R146: =F146 -> Velg fra liste…. | S146: =IF(F146="",$R$8,IF(F146=Innstillinger!$B$8,$R$8,"")) -> *obligatorisk | T146: -
E147: årsramme (à 60 minutter) | F147: Velg fra liste…. | G147: i | I147: *obligatorisk | Q147: årsramme (à 60 minutter) | R147: =IF(F147=Innstillinger!$B$25,F148,_xlfn.XLOOKUP(F147,Innstillinger!$B$20:$B$24,Innstillinger!$C$20:$C$24,0)) -> 0 | S147: =IF(F147="",$R$8,IF(F147=Innstillinger!$B$8,$R$8,"")) -> *obligatorisk | T147: -
E148: Finn riktig årsramme her | I148: =S148 ->  | Q148: Finn riktig årsramme her | S148: =IF(AND(F148="",F147=Innstillinger!$B$25),$R$8&"; "&T148,"") ->  | T148: oppgi egen årsramme når ingen fra listen passer | U148: -
E150: Lønn og sosiale utgifter: (individuell/ gjennomsnitt)
E151: årslønn for full stilling | G151: i | I151: =S151 -> *obligatorisk | Q151: =E151 -> årslønn for full stilling | R151: =F151 -> 0 | S151: =IF(R151=0,$R$8,IF(ISERROR(R159)=TRUE,"",IF(R159>$R$6,$R$10,""))) -> *obligatorisk | T151: -
E152: sats feriepenger | F152: Velg fra liste…. | G152: i | I152: =S152 -> *obligatorisk | Q152: =E152 -> sats feriepenger | R152: =F152 -> Velg fra liste…. | S152: =IF(F152="",$R$8,IF(F152=Innstillinger!$B$8,$R$8,"")) -> *obligatorisk | T152: -
E153: sats pensjon | F153: 0.11 | G153: i | Q153: sats pensjon | R153: =F153+F154 -> 0.09 | S153: =IF(R153<2%,$R$7,IF(F153>11%,$R$10,"")) -> 
E154: (-) ansattes egenandel for pensjon | F154: -0.02 | G154: i | S154: =IF(F154=0%,$R$10,"") -> 
E155: sats arbeidsgiveravgift | F155: Velg fra liste…. | G155: i | I155: *obligatorisk | Q155: =E155 -> sats arbeidsgiveravgift | R155: =F155 -> Velg fra liste…. | S155: =IF(F155="",$R$8,IF(F155=Innstillinger!$B$8,$R$8,"")) -> *obligatorisk
E156: Finn riktig arbeidsgiveravgift her
Q157: Vis beregningen? | R157: =_xlfn.IFS(ISERROR(R169),"Nei",COUNTIF(I136:I155,$R$8)=0,"JA",TRUE,"NEI") -> Nei | U157: -
E158: Timelønn, uten sosiale utgifter | F158: =IF(R157="nei","",R158) ->  | I158: =S158 ->  | Q158: Timelønn | R158: =IF(R146=Innstillinger!$B$16,R151*1500/R147/1687.5,R151*1400*100/R147/1687.5/112) ->  | S158: =IF(AND(I169=TRUE,R157="NEI"),$R$11,IF(I169=TRUE,T158,"")) ->  | T158: =IF(R146=Innstillinger!$B$15,"➡️ "&TEXT(R158,"# ##0")&" kr per time = "&TEXT(R151,"# ##0")&" kr årslønn x 1400 x 100 ÷ ("&R147&" ramme x 1687,5 x 112)",IF(R146=Innstillinger!$B$16,"➡️ "&TEXT(R158,"# ##0")&" kr per time = "&TEXT(R151,"# ##0")&" kr årslønn x 1500 ÷ ("&R147&" ramme x 1687,5)","")) ->  | U158: -
E159: Timelønn, inkludert sosiale utgifter | F159: =IF(R157="nei","",R159) ->  | Q159: Timelønn, inkludert sosiale utgifter | R159: =(R158*(1+R152+R153+(R152*R153))*(1+R155)) ->  | S159: =IF(AND(I169=TRUE,R157="NEI"),$R$11,IF(I169=TRUE,T159,"")) ->  | T159: ="➡️ "&TEXT(R159,"# ##0")&" kr = "&TEXT(R158,"# ##0,00")&" kr timelønn, uten sosiale utgifter x sosiale utgifter" ->  | U159: -
U160: -
U161: -
D162: Oppsummering | U162: -
U163: -
E164: Lønn | F164: =IF(R157="nei","",R164) ->  | I164: =S164 ->  | Q164: Lønn | R164: =R140*R158 ->  | S164: =IF(AND(I169=TRUE,R157="NEI"),$R$11,IF(I169=TRUE,T164,"")) ->  | T164: ="➡️ "&TEXT(F164,"# ##0")&" kr = "&F140&" total arbeidstimer x "&TEXT(F158,"#,##")&" kroner per time" -> ➡️ kr = total arbeidstimer x kroner per time | U164: -
E165: Feriepenger | F165: =IF(R157="nei","",R165) ->  | Q165: Feriepenger | R165: =R164*R152 ->  | S165: =IF(AND(I169=TRUE,R157="NEI"),$R$11,IF(I169=TRUE,T165,"")) ->  | T165: ="➡️ "&TEXT(F165,"# ##0")&" kr = "&TEXT(F164,"# ##0")&" kr lønn x "&TEXT(F152,"#,0 %")&" feriepenger sats" -> ➡️ kr = kr lønn x Velg fra liste…. feriepenger sats | U165: -
E166: Pensjonskostnader | F166: =IF(R157="nei","",R166) ->  | Q166: Pensjonskostnader | R166: =SUM(R164:R165)*R153 ->  | S166: =IF(AND(I169=TRUE,R157="NEI"),$R$11,IF(I169=TRUE,T166,"")) ->  | T166: ="➡️ "&TEXT(F166,"# ##0")&" kr = ("&TEXT(F164,"# ##0")&" kr lønn + "&TEXT(F165,"# ##0")&" kr feriepenger) x "&TEXT(R153,"#,0 %")&" pensjon" -> ➡️ kr = ( kr lønn + kr feriepenger) x 9,0 % pensjon | U166: -
E167: Arbeidsgiveravgift | F167: =IF(R157="nei","",R167) ->  | Q167: Arbeidsgiveravgift | R167: =SUM(R164:R166)*R155 ->  | S167: =IF(AND(I169=TRUE,R157="NEI"),$R$11,IF(I169=TRUE,T167,"")) ->  | T167: ="➡️ "&TEXT(F167,"# ##0")&" kr = ("&TEXT(F164,"# ##0")&" kr + "&TEXT(F165,"# ##0")&" kr f.p. + "&TEXT(F166,"# ##0")&" kr pensjon) x "&TEXT(F155,"#,0 %")&" aga " -> ➡️ kr = ( kr + kr f.p. + kr pensjon) x Velg fra liste…. aga | U167: -
E169: Totalkostnad | F169: =IF(R157="nei","",R169) ->  | J169: Kryss av for å se beregning | P169: =P133&"c" -> 3c | Q169: Totalkostnad | R169: =ROUND(SUM(R164:R167),0) -> 
R171: =4-COUNTIF(S172:S175,"") -> 0
E172: =IF(E173="","Skriv kommentar:","") -> Skriv kommentar: | J172: =IF(S172&S173&S174&S175="","","⚠️Vi trenger mer informasjon") ->  | Q172: Tilrådning | R172: =IF(S172="","",IF(R171=1,"","1. ")) ->  | S172: =IF(ISBLANK(F139),"",IF(R139=0,$X$5,IF(R140>R139,$X$6,""))) -> 
J173: =_xlfn.TEXTJOIN(CHAR(10)&CHAR(10),TRUE,R172&S172,R173&S173,R174&S174,R175&S175) ->  | Q173: Hvis timelønn er over 650 kroner | R173: =IF(S173="","",IF(R171=1,"",IF(S172="","1. ","2. "))) ->  | S173: =IF(S151=$R$10,X$7,"") ->  | U173: =_xlfn.IFS(T173="","",T171<>"","2. ",T174<>"","1. ",TRUE,"") -> 
Q174: Hvis grunnpremie for pensjon er over 11% | R174: =IF(S174="","",IF(R171=1,"",IF(AND(R171=2,R172&R173=""),"1. ",IF(AND(R171=2,R172&R173<>""),"2. ","3. ")))) ->  | S174: =IF(S153=$R$10,$X$8,"") ->  | U174: =_xlfn.IFS(T174="","",AND(T171<>"",T173<>""),"3. ",AND(T171="",T173=""),"",TRUE,"2. ") -> 
Q175: Hvis ansattes egenandel for pensjon er 0% | R175: =IF(S175="","",IF(R171=1,"",R171&". ")) ->  | S175: =IF(S154=$R$10,$X$9,"") -> 
D183: Navn og rolle - ansvarlig for kostnadsberegningen | I183: Sted | K183: Dato
Q189: !------ikke rediger disse cellene--------------------------------------------------------------------------------------------------------------------------------------------------------------------------------------
E190: Beregning 4 | P190: =1+P133 -> 4 | Q190: Felt | R190: Verdi | S190: Kommentar | T190: Merkander
D191: Tiltaket
E193: Tiltaksnavn | G193: i | I193: =S193 -> *obligatorisk | P193: =P190&"a" -> 4a | Q193: =D191 -> Tiltaket | S193: =IF(F193="",$R$8,"") -> *obligatorisk
E195: Oppfølging i tiltaket:
E196: årstimer tilrådt av PPT (à 60 minutter) | G196: i | I196: =S196 -> *obligatorisk | Q196: =E196 -> årstimer tilrådt av PPT (à 60 minutter) | R196: =F196 -> 0 | S196: =IF(F196="",$R$8,IF(F196=0,$R$10,"")) -> *obligatorisk | T196: -
E197: undervisningstimer i periode totalt | G197: i | I197: =S197 -> *obligatorisk | Q197: =E197 -> undervisningstimer i periode totalt | R197: =F197 -> 0 | S197: =IF(F197="",$R$8,IF(F196=0,"",IF(F197>F196,$R$10,""))) -> *obligatorisk | T197: -
D200: Lønnsutgifter per ansatt
E202: stillingstittel | G202: i | I202: =S202 -> *obligatorisk | P202: =P190&"b" -> 4b | Q202: =E202 -> stillingstittel | S202: =IF(F202="",$R$8,IF(F202=Innstillinger!$B$8,$R$8,"")) -> *obligatorisk
E203: område | F203: Velg fra liste…. | G203: i | I203: *obligatorisk | Q203: =E203 -> område | R203: =F203 -> Velg fra liste…. | S203: =IF(F203="",$R$8,IF(F203=Innstillinger!$B$8,$R$8,"")) -> *obligatorisk | T203: -
E204: årsramme (à 60 minutter) | F204: Velg fra liste…. | G204: i | I204: *obligatorisk | Q204: årsramme (à 60 minutter) | R204: =IF(F204=Innstillinger!$B$25,F205,_xlfn.XLOOKUP(F204,Innstillinger!$B$20:$B$24,Innstillinger!$C$20:$C$24,0)) -> 0 | S204: =IF(F204="",$R$8,IF(F204=Innstillinger!$B$8,$R$8,"")) -> *obligatorisk | T204: -
E205: Finn riktig årsramme her | I205: =S205 ->  | Q205: Finn riktig årsramme her | S205: =IF(AND(F205="",F204=Innstillinger!$B$25),$R$8&"; "&T205,"") ->  | T205: oppgi egen årsramme når ingen fra listen passer | U205: -
E207: Lønn og sosiale utgifter: (individuell/ gjennomsnitt)
E208: årslønn for full stilling | G208: i | I208: =S208 -> *obligatorisk | Q208: =E208 -> årslønn for full stilling | R208: =F208 -> 0 | S208: =IF(R208=0,$R$8,IF(ISERROR(R216)=TRUE,"",IF(R216>$R$6,$R$10,""))) -> *obligatorisk | T208: -
E209: sats feriepenger | F209: Velg fra liste…. | G209: i | I209: =S209 -> *obligatorisk | Q209: =E209 -> sats feriepenger | R209: =F209 -> Velg fra liste…. | S209: =IF(F209="",$R$8,IF(F209=Innstillinger!$B$8,$R$8,"")) -> *obligatorisk | T209: -
E210: sats pensjon | F210: 0.11 | G210: i | Q210: sats pensjon | R210: =F210+F211 -> 0.09 | S210: =IF(R210<2%,$R$7,IF(F210>11%,$R$10,"")) -> 
E211: (-) ansattes egenandel for pensjon | F211: -0.02 | G211: i | S211: =IF(F211=0%,$R$10,"") -> 
E212: sats arbeidsgiveravgift | F212: Velg fra liste…. | G212: i | I212: *obligatorisk | Q212: =E212 -> sats arbeidsgiveravgift | R212: =F212 -> Velg fra liste…. | S212: =IF(F212="",$R$8,IF(F212=Innstillinger!$B$8,$R$8,"")) -> *obligatorisk
E213: Finn riktig arbeidsgiveravgift her
Q214: Vis beregningen? | R214: =_xlfn.IFS(ISERROR(R226),"Nei",COUNTIF(I193:I212,$R$8)=0,"JA",TRUE,"NEI") -> Nei | U214: -
E215: Timelønn, uten sosiale utgifter | F215: =IF(R214="nei","",R215) ->  | I215: =S215 ->  | Q215: Timelønn | R215: =IF(R203=Innstillinger!$B$16,R208*1500/R204/1687.5,R208*1400*100/R204/1687.5/112) ->  | S215: =IF(AND(I226=TRUE,R214="NEI"),$R$11,IF(I226=TRUE,T215,"")) ->  | T215: =IF(R203=Innstillinger!$B$15,"➡️ "&TEXT(R215,"# ##0")&" kr per time = "&TEXT(R208,"# ##0")&" kr årslønn x 1400 x 100 ÷ ("&R204&" ramme x 1687,5 x 112)",IF(R203=Innstillinger!$B$16,"➡️ "&TEXT(R215,"# ##0")&" kr per time = "&TEXT(R208,"# ##0")&" kr årslønn x 1500 ÷ ("&R204&" ramme x 1687,5)","")) ->  | U215: -
E216: Timelønn, inkludert sosiale utgifter | F216: =IF(R214="nei","",R216) ->  | Q216: Timelønn, inkludert sosiale utgifter | R216: =(R215*(1+R209+R210+(R209*R210))*(1+R212)) ->  | S216: =IF(AND(I226=TRUE,R214="NEI"),$R$11,IF(I226=TRUE,T216,"")) ->  | T216: ="➡️ "&TEXT(R216,"# ##0")&" kr = "&TEXT(R215,"# ##0,00")&" kr timelønn, uten sosiale utgifter x sosiale utgifter" ->  | U216: -
U217: -
U218: -
D219: Oppsummering | U219: -
U220: -
E221: Lønn | F221: =IF(R214="nei","",R221) ->  | I221: =S221 ->  | Q221: Lønn | R221: =R197*R215 ->  | S221: =IF(AND(I226=TRUE,R214="NEI"),$R$11,IF(I226=TRUE,T221,"")) ->  | T221: ="➡️ "&TEXT(F221,"# ##0")&" kr = "&F197&" total arbeidstimer x "&TEXT(F215,"#,##")&" kroner per time" -> ➡️ kr = total arbeidstimer x kroner per time | U221: -
E222: Feriepenger | F222: =IF(R214="nei","",R222) ->  | Q222: Feriepenger | R222: =R221*R209 ->  | S222: =IF(AND(I226=TRUE,R214="NEI"),$R$11,IF(I226=TRUE,T222,"")) ->  | T222: ="➡️ "&TEXT(F222,"# ##0")&" kr = "&TEXT(F221,"# ##0")&" kr lønn x "&TEXT(F209,"#,0 %")&" feriepenger sats" -> ➡️ kr = kr lønn x Velg fra liste…. feriepenger sats | U222: -
E223: Pensjonskostnader | F223: =IF(R214="nei","",R223) ->  | Q223: Pensjonskostnader | R223: =SUM(R221:R222)*R210 ->  | S223: =IF(AND(I226=TRUE,R214="NEI"),$R$11,IF(I226=TRUE,T223,"")) ->  | T223: ="➡️ "&TEXT(F223,"# ##0")&" kr = ("&TEXT(F221,"# ##0")&" kr lønn + "&TEXT(F222,"# ##0")&" kr feriepenger) x "&TEXT(R210,"#,0 %")&" pensjon" -> ➡️ kr = ( kr lønn + kr feriepenger) x 9,0 % pensjon | U223: -
E224: Arbeidsgiveravgift | F224: =IF(R214="nei","",R224) ->  | Q224: Arbeidsgiveravgift | R224: =SUM(R221:R223)*R212 ->  | S224: =IF(AND(I226=TRUE,R214="NEI"),$R$11,IF(I226=TRUE,T224,"")) ->  | T224: ="➡️ "&TEXT(F224,"# ##0")&" kr = ("&TEXT(F221,"# ##0")&" kr + "&TEXT(F222,"# ##0")&" kr f.p. + "&TEXT(F223,"# ##0")&" kr pensjon) x "&TEXT(F212,"#,0 %")&" aga " -> ➡️ kr = ( kr + kr f.p. + kr pensjon) x Velg fra liste…. aga | U224: -
E226: Totalkostnad | F226: =IF(R214="nei","",R226) ->  | J226: Kryss av for å se beregning | P226: =P190&"c" -> 4c | Q226: Totalkostnad | R226: =ROUND(SUM(R221:R224),0) -> 
R228: =4-COUNTIF(S229:S232,"") -> 0
E229: =IF(E230="","Skriv kommentar:","") -> Skriv kommentar: | J229: =IF(S229&S230&S231&S232="","","⚠️Vi trenger mer informasjon") ->  | Q229: Tilrådning | R229: =IF(S229="","",IF(R228=1,"","1. ")) ->  | S229: =IF(ISBLANK(F196),"",IF(R196=0,$X$5,IF(R197>R196,$X$6,""))) -> 
J230: =_xlfn.TEXTJOIN(CHAR(10)&CHAR(10),TRUE,R229&S229,R230&S230,R231&S231,R232&S232) ->  | Q230: Hvis timelønn er over 650 kroner | R230: =IF(S230="","",IF(R228=1,"",IF(S229="","1. ","2. "))) ->  | S230: =IF(S208=$R$10,X$7,"") ->  | U230: =_xlfn.IFS(T230="","",T228<>"","2. ",T231<>"","1. ",TRUE,"") -> 
Q231: Hvis grunnpremie for pensjon er over 11% | R231: =IF(S231="","",IF(R228=1,"",IF(AND(R228=2,R229&R230=""),"1. ",IF(AND(R228=2,R229&R230<>""),"2. ","3. ")))) ->  | S231: =IF(S210=$R$10,$X$8,"") ->  | U231: =_xlfn.IFS(T231="","",AND(T228<>"",T230<>""),"3. ",AND(T228="",T230=""),"",TRUE,"2. ") -> 
Q232: Hvis ansattes egenandel for pensjon er 0% | R232: =IF(S232="","",IF(R228=1,"",R228&". ")) ->  | S232: =IF(S211=$R$10,$X$9,"") -> 
D240: Navn og rolle - ansvarlig for kostnadsberegningen | I240: Sted | K240: Dato
Q246: !------ikke rediger disse cellene--------------------------------------------------------------------------------------------------------------------------------------------------------------------------------------
E247: Beregning 5 | P247: =1+P190 -> 5 | Q247: Felt | R247: Verdi | S247: Kommentar | T247: Merkander
D248: Tiltaket
E250: Tiltaksnavn | G250: i | I250: =S250 -> *obligatorisk | P250: =P247&"a" -> 5a | Q250: =D248 -> Tiltaket | S250: =IF(F250="",$R$8,"") -> *obligatorisk
E252: Oppfølging i tiltaket:
E253: årstimer tilrådt av PPT (à 60 minutter) | G253: i | I253: =S253 -> *obligatorisk | Q253: =E253 -> årstimer tilrådt av PPT (à 60 minutter) | R253: =F253 -> 0 | S253: =IF(F253="",$R$8,IF(F253=0,$R$10,"")) -> *obligatorisk | T253: -
E254: undervisningstimer i periode totalt | G254: i | I254: =S254 -> *obligatorisk | Q254: =E254 -> undervisningstimer i periode totalt | R254: =F254 -> 0 | S254: =IF(F254="",$R$8,IF(F253=0,"",IF(F254>F253,$R$10,""))) -> *obligatorisk | T254: -
D257: Lønnsutgifter per ansatt
E259: stillingstittel | G259: i | I259: =S259 -> *obligatorisk | P259: =P247&"b" -> 5b | Q259: =E259 -> stillingstittel | S259: =IF(F259="",$R$8,IF(F259=Innstillinger!$B$8,$R$8,"")) -> *obligatorisk
E260: område | F260: Velg fra liste…. | G260: i | I260: *obligatorisk | Q260: =E260 -> område | R260: =F260 -> Velg fra liste…. | S260: =IF(F260="",$R$8,IF(F260=Innstillinger!$B$8,$R$8,"")) -> *obligatorisk | T260: -
E261: årsramme (à 60 minutter) | F261: Velg fra liste…. | G261: i | I261: *obligatorisk | Q261: årsramme (à 60 minutter) | R261: =IF(F261=Innstillinger!$B$25,F262,_xlfn.XLOOKUP(F261,Innstillinger!$B$20:$B$24,Innstillinger!$C$20:$C$24,0)) -> 0 | S261: =IF(F261="",$R$8,IF(F261=Innstillinger!$B$8,$R$8,"")) -> *obligatorisk | T261: -
E262: Finn riktig årsramme her | I262: =S262 ->  | Q262: Finn riktig årsramme her | S262: =IF(AND(F262="",F261=Innstillinger!$B$25),$R$8&"; "&T262,"") ->  | T262: oppgi egen årsramme når ingen fra listen passer | U262: -
E264: Lønn og sosiale utgifter: (individuell/ gjennomsnitt)
E265: årslønn for full stilling | G265: i | I265: =S265 -> *obligatorisk | Q265: =E265 -> årslønn for full stilling | R265: =F265 -> 0 | S265: =IF(R265=0,$R$8,IF(ISERROR(R273)=TRUE,"",IF(R273>$R$6,$R$10,""))) -> *obligatorisk | T265: -
E266: sats feriepenger | F266: Velg fra liste…. | G266: i | I266: =S266 -> *obligatorisk | Q266: =E266 -> sats feriepenger | R266: =F266 -> Velg fra liste…. | S266: =IF(F266="",$R$8,IF(F266=Innstillinger!$B$8,$R$8,"")) -> *obligatorisk | T266: -
E267: sats pensjon | F267: 0.11 | G267: i | Q267: sats pensjon | R267: =F267+F268 -> 0.09 | S267: =IF(R267<2%,$R$7,IF(F267>11%,$R$10,"")) -> 
E268: (-) ansattes egenandel for pensjon | F268: -0.02 | G268: i | S268: =IF(F268=0%,$R$10,"") -> 
E269: sats arbeidsgiveravgift | F269: Velg fra liste…. | G269: i | I269: *obligatorisk | Q269: =E269 -> sats arbeidsgiveravgift | R269: =F269 -> Velg fra liste…. | S269: =IF(F269="",$R$8,IF(F269=Innstillinger!$B$8,$R$8,"")) -> *obligatorisk
E270: Finn riktig arbeidsgiveravgift her
Q271: Vis beregningen? | R271: =_xlfn.IFS(ISERROR(R283),"Nei",COUNTIF(I250:I269,$R$8)=0,"JA",TRUE,"NEI") -> Nei | U271: -
E272: Timelønn, uten sosiale utgifter | F272: =IF(R271="nei","",R272) ->  | I272: =S272 ->  | Q272: Timelønn | R272: =IF(R260=Innstillinger!$B$16,R265*1500/R261/1687.5,R265*1400*100/R261/1687.5/112) ->  | S272: =IF(AND(I283=TRUE,R271="NEI"),$R$11,IF(I283=TRUE,T272,"")) ->  | T272: =IF(R260=Innstillinger!$B$15,"➡️ "&TEXT(R272,"# ##0")&" kr per time = "&TEXT(R265,"# ##0")&" kr årslønn x 1400 x 100 ÷ ("&R261&" ramme x 1687,5 x 112)",IF(R260=Innstillinger!$B$16,"➡️ "&TEXT(R272,"# ##0")&" kr per time = "&TEXT(R265,"# ##0")&" kr årslønn x 1500 ÷ ("&R261&" ramme x 1687,5)","")) ->  | U272: -
E273: Timelønn, inkludert sosiale utgifter | F273: =IF(R271="nei","",R273) ->  | Q273: Timelønn, inkludert sosiale utgifter | R273: =(R272*(1+R266+R267+(R266*R267))*(1+R269)) ->  | S273: =IF(AND(I283=TRUE,R271="NEI"),$R$11,IF(I283=TRUE,T273,"")) ->  | T273: ="➡️ "&TEXT(R273,"# ##0")&" kr = "&TEXT(R272,"# ##0,00")&" kr timelønn, uten sosiale utgifter x sosiale utgifter" ->  | U273: -
U274: -
U275: -
D276: Oppsummering | U276: -
U277: -
E278: Lønn | F278: =IF(R271="nei","",R278) ->  | I278: =S278 ->  | Q278: Lønn | R278: =R254*R272 ->  | S278: =IF(AND(I283=TRUE,R271="NEI"),$R$11,IF(I283=TRUE,T278,"")) ->  | T278: ="➡️ "&TEXT(F278,"# ##0")&" kr = "&F254&" total arbeidstimer x "&TEXT(F272,"#,##")&" kroner per time" -> ➡️ kr = total arbeidstimer x kroner per time | U278: -
E279: Feriepenger | F279: =IF(R271="nei","",R279) ->  | Q279: Feriepenger | R279: =R278*R266 ->  | S279: =IF(AND(I283=TRUE,R271="NEI"),$R$11,IF(I283=TRUE,T279,"")) ->  | T279: ="➡️ "&TEXT(F279,"# ##0")&" kr = "&TEXT(F278,"# ##0")&" kr lønn x "&TEXT(F266,"#,0 %")&" feriepenger sats" -> ➡️ kr = kr lønn x Velg fra liste…. feriepenger sats | U279: -
E280: Pensjonskostnader | F280: =IF(R271="nei","",R280) ->  | Q280: Pensjonskostnader | R280: =SUM(R278:R279)*R267 ->  | S280: =IF(AND(I283=TRUE,R271="NEI"),$R$11,IF(I283=TRUE,T280,"")) ->  | T280: ="➡️ "&TEXT(F280,"# ##0")&" kr = ("&TEXT(F278,"# ##0")&" kr lønn + "&TEXT(F279,"# ##0")&" kr feriepenger) x "&TEXT(R267,"#,0 %")&" pensjon" -> ➡️ kr = ( kr lønn + kr feriepenger) x 9,0 % pensjon | U280: -
E281: Arbeidsgiveravgift | F281: =IF(R271="nei","",R281) ->  | Q281: Arbeidsgiveravgift | R281: =SUM(R278:R280)*R269 ->  | S281: =IF(AND(I283=TRUE,R271="NEI"),$R$11,IF(I283=TRUE,T281,"")) ->  | T281: ="➡️ "&TEXT(F281,"# ##0")&" kr = ("&TEXT(F278,"# ##0")&" kr + "&TEXT(F279,"# ##0")&" kr f.p. + "&TEXT(F280,"# ##0")&" kr pensjon) x "&TEXT(F269,"#,0 %")&" aga " -> ➡️ kr = ( kr + kr f.p. + kr pensjon) x Velg fra liste…. aga | U281: -
E283: Totalkostnad | F283: =IF(R271="nei","",R283) ->  | J283: Kryss av for å se beregning | P283: =P247&"c" -> 5c | Q283: Totalkostnad | R283: =ROUND(SUM(R278:R281),0) -> 
R285: =4-COUNTIF(S286:S289,"") -> 0
E286: =IF(E287="","Skriv kommentar:","") -> Skriv kommentar: | J286: =IF(S286&S287&S288&S289="","","⚠️Vi trenger mer informasjon") ->  | Q286: Tilrådning | R286: =IF(S286="","",IF(R285=1,"","1. ")) ->  | S286: =IF(ISBLANK(F253),"",IF(R253=0,$X$5,IF(R254>R253,$X$6,""))) -> 
J287: =_xlfn.TEXTJOIN(CHAR(10)&CHAR(10),TRUE,R286&S286,R287&S287,R288&S288,R289&S289) ->  | Q287: Hvis timelønn er over 650 kroner | R287: =IF(S287="","",IF(R285=1,"",IF(S286="","1. ","2. "))) ->  | S287: =IF(S265=$R$10,X$7,"") ->  | U287: =_xlfn.IFS(T287="","",T285<>"","2. ",T288<>"","1. ",TRUE,"") -> 
Q288: Hvis grunnpremie for pensjon er over 11% | R288: =IF(S288="","",IF(R285=1,"",IF(AND(R285=2,R286&R287=""),"1. ",IF(AND(R285=2,R286&R287<>""),"2. ","3. ")))) ->  | S288: =IF(S267=$R$10,$X$8,"") ->  | U288: =_xlfn.IFS(T288="","",AND(T285<>"",T287<>""),"3. ",AND(T285="",T287=""),"",TRUE,"2. ") -> 
Q289: Hvis ansattes egenandel for pensjon er 0% | R289: =IF(S289="","",IF(R285=1,"",R285&". ")) ->  | S289: =IF(S268=$R$10,$X$9,"") -> 
D297: Navn og rolle - ansvarlig for kostnadsberegningen | I297: Sted | K297: Dato

Sheet 3 Godtgjørelser
C2: 3 | E2: Godtgjørelser | K2: ='1 Lønn'!K2 -> (ver. 3.4)
E3: - som omsorgsstønad, støttekontakt, avlastning og besøkshjem
E6: Dekkes av ekstratilskuddet: | I6: Dekkes ikke av ekstratilskuddet: | Q6: Pensjon max | R6: 0.1 | S6: ='2 Lønn med undervisningstid'!X8 -> Legg ved dokumentasjon som viser hvilke kostnader som er inkludert i pensjonskostnaden.
D7: þLønn og stønad til privataktører som: leverer vedtaksbaserte tjenester etter helse- og omsorgstjenesteloven og barnevernloven þKS-satser: for fosterhjem og besøkshjem - reguleres årlig 01.juli. Mer info: ks.no þAGA: Arbeidsgiveravgift | I7: xMVA: Merverdiavgift xUtgiftsdekning til: mat, klær, fritid og boligkostnader xAnsattes egenandel for pensjon: ansattes egenandel for grunnpremie pensjon er som regel 2 %. Sett prosenten til 0 dersom den ansatte ikke trekkes for egenandel. | Q7: Ansattes egenandel for pensjon | R7: 0 | S7: ='2 Lønn med undervisningstid'!X9 -> Bekreft i kommentarfelt at dere ikke trekker den ansatte for egenandel.
Q8: Text if blank | R8: * Utskrivingdato kan ikke være en dato som kommer før innskrivingdato.
Q9: Text if blank | R9: *obligatorisk
Q10: Text if blank | R10: * valgfritt
Q14: Første måned i år | R14: 7
Q15: Samme satsår? | R15: =_xlfn.IFS(OR(F21="",F22=""),"",T21=T22,"JA",TRUE,"Nei") -> 
E16: Grunnstøtte til ordinært kommunalt fosterhjem | Q16: Felt | R16: Verdi | S16: Kommentar | T16: ÅR
E19: Tidsrommet flyktningen har oppholdt seg i fosterhjem, i tilskuddsperioden:
E21: fra: (dd.mm.åååå) | G21: i | I21: =S21 -> *obligatorisk | Q21: =E21 -> fra: (dd.mm.åååå) | R21: =F21 -> 00:00:00 | S21: =_xlfn.IFS(F21="",$R$9,TRUE,"") -> *obligatorisk | T21: =IF(F21>=DATE(YEAR(F21),R14,1),YEAR(F21),YEAR(F21)-1) -> 1899 | U21: =R21 -> 00:00:00
E22: til: (dd.mm.åååå) | G22: i | I22: =S22 -> *obligatorisk | Q22: =E22 -> til: (dd.mm.åååå) | R22: =F22 -> 00:00:00 | S22: =_xlfn.IFS(F22="",$R$9,F21="","",F21>F22,$R$8,F22>(EDATE(F21,12)-1),$R$7,TRUE,"") -> *obligatorisk | T22: =IF(F22>=DATE(YEAR(F22),R14,1),YEAR(F22),YEAR(F22)-1) -> 1899
Q25: VIS BEREGNINGEN? | R25: =IF(S21&S22="","ja","nei") -> nei
E26: =Q26 -> månedlig sats | F26: =IF(R25="nei","",R26) ->  | Q26: =IFERROR(IF(T21>2021,"månedlig sats fra 1.juli."&T21&T26&" til 30.juni."&T21+1,"månedlig sats"),"månedlig sats") -> månedlig sats | R26: =_xlfn.XLOOKUP(T21,Innstillinger!$B$38:$B$44,Grunnstøtte,"-") -> - | S26: =IF(S21&S22="",_xlfn.XLOOKUP(T21,Innstillinger!$B$29:$B$35,Innstillinger!$I$29:$I$35,""),"") ->  | T26: =IF(_xlfn.XLOOKUP(T21,Innstillinger!B29:B35,Innstillinger!J29:J35,"")="-","*","") -> 
E27: =Q27 -> døgnsats | F27: =IF(R25="nei","",R27) ->  | Q27: =IFERROR(IF(T21>2021,"døgnsats fra 1.juli."&T21&T26&" til 30.juni."&T21+1,"døgnsats"),"døgnsats") -> døgnsats | R27: =R26*12/T28 -> 
E28: antall dager | F28: =IF(R25="nei","",R28) ->  | Q28: =IFERROR(IF(T21>2021,"antall dager fra 1.juli."&T21&T26&" til 30.juni."&T21+1,"antall dager"),"antall dager") -> antall dager | R28: =_xlfn.IFS(F22="","",F21="","",R15="JA",F22-F21,1=1,(DATE(T21+1,R14,1)-1)-F21+1) ->  | T28: =(DATE(T21+1,R14,1)-1)-(DATE(T21,R14,1))+1 -> -693596 | U28: =R21 -> 00:00:00 | V28: =_xlfn.IFS(MONTH(R21)>6,DATE(YEAR(R21)+1,6,30),MONTH(R21)>0,DATE(YEAR(R21),6,30)) -> 1900-06-30
E29: =S26 ->  | Q29: VIS DEL 2? | R29: =IF(R25="nei","nei",IF(R15="ja","nei","ja")) -> nei
E31: =IF(R29="ja",Q31:R33,"") ->  | Q31: ="månedlig sats fra 1.juli."&T22&" til 30.juni"&T22+1 -> månedlig sats fra 1.juli.1899 til 30.juni1900 | R31: =_xlfn.XLOOKUP(T22,Innstillinger!$B$38:$B$44,Grunnstøtte,"-") -> - | S31: =IF(R29="nei","",IF(R25="ja",_xlfn.XLOOKUP(T22,Innstillinger!$B$29:$B$35,Innstillinger!$I$29:$I$35,""),"")) ->  | T31: =IF(_xlfn.XLOOKUP(T22,Innstillinger!B29:B35,Innstillinger!J29:J35,"")="-","*","") -> 
Q32: ="døgnsats fra 1.juli."&T22&" til 30.juni"&T22+1 -> døgnsats fra 1.juli.1899 til 30.juni1900 | R32: =R31*12/T33 -> 
Q33: ="antall dager fra 1.juli."&T22&" til 30.juni"&T22+1 -> antall dager fra 1.juli.1899 til 30.juni1900 | R33: =IF(R15="Ja","",F22-(DATE(T22,R14,1))) -> -693779 | T33: =IF(R15="Ja","",(DATE(T22+1,R14,1)-1)-(DATE(T22,R14,1))+1) -> -693596 | U33: =IF(R15="ja",R22,DATE(T21,7,1)) -> 3799-07-01
E34: =S31 -> 
E36: Totalkostnad | F36: =R36 ->  | Q36: =E36 -> Totalkostnad | R36: =IF(R25="NEI","",R27*R28+IF(R15="Nei",R32*R33,0)) -> 
E39: =IF(E40="","Skriv kommentar:","") -> Skriv kommentar:
Q48: Første måned i år | R48: 7 | U48: måned | V48: =MONTH(U57) -> 1
Q49: Samme satsår? | R49: =_xlfn.IFS(F53="","",U50=V50,"ja",ABS(U50-V50)>0,"nei",TRUE,"") ->  | U49: dag | V49: =DAY(U57) -> 0
E50: Grunnstøtte til besøkshjem | Q50: Felt | R50: Verdi | S50: Kommentar | T50: ÅR | U50: =IF(U53>=DATE(YEAR(U53),R48,1),YEAR(U53),YEAR(U53)-1) -> 1899 | V50: =IF(V53>=DATE(YEAR(V53),R48,1),YEAR(V53),YEAR(V53)-1) -> 1900
E53: Tilskuddsperiode startdato (dd.mm.åååå) | G53: i | I53: =S53 -> *obligatorisk | Q53: =E53 -> Tilskuddsperiode startdato (dd.mm.åååå) | R53: =F53 -> 00:00:00 | S53: =_xlfn.IFS(F53="",$R$9,TRUE,"") -> *obligatorisk | U53: =F53 -> 00:00:00 | V53: =EDATE(F53,12)-1 -> 1900-12-30
Q56: VIS BEREGNINGEN? | R56: =IFERROR(IF(S53&S57&S61="","ja","nei"),"nei") -> nei
E57: =Q57 -> antall dager | G57: i | I57: =S57 -> *obligatorisk | Q57: =IFERROR(_xlfn.IFS(F53="","antall dager",F53<44562,"antall dager",V57="",TEXT(U57,"dd.mm.åååå"),TRUE,"antall dager fra "&TEXT(U57,"dd.mm.åååå")&" til "&TEXT(V57,"dd.mm.åååå")),"antall dager") -> antall dager | R57: =F57 -> 0 | S57: =_xlfn.IFS(F57="",$R$9,F57>T57,"* antall kan ikke overstige "&T57&" dag"&IF(T57>1,"er",""),TRUE,"") -> *obligatorisk | T57: =IFERROR(V57-U57,0)+1 -> 183 | U57: =U53 -> 00:00:00 | V57: =_xlfn.IFS(AND(V48=6,V49=30),"",V48<R48,DATE(YEAR(U53),6,30),TRUE,DATE(YEAR(U53)+1,6,30)) -> 1900-06-30
E58: =Q58 -> døgnsats | F58: =R58 -> - | Q58: =IFERROR(_xlfn.IFS(F53="","døgnsats",F53>=44562,"døgnsats for "&U50&T58,TRUE,"døgnsats"),"døgnsats") -> døgnsats | R58: =_xlfn.XLOOKUP(U50,Innstillinger!$B$38:$B$44,Besøksjem,"-") -> - | S58: =IF(F62>0,_xlfn.XLOOKUP(U50,Innstillinger!$B$38:$B$44,Innstillinger!$I$38:$I$44,""),"") ->  | T58: =IF(_xlfn.XLOOKUP(U50,Innstillinger!$B$38:$B$44,Innstillinger!$J$38:$J$44,"")="-","*","") -> 
E59: =S58 ->  | Q59: VIS DEL 2? | R59: =IF(R49="nei","ja","nei") -> nei
E61: =IF(R59="ja",Q61:Q62,"") ->  | F61: 9 | G61: i | I61: =S61 ->  | Q61: =_xlfn.IFS( V50<2022,"", V61="",TEXT(U61,"dd.mm.åååå"), TRUE,"antall dager fra "&TEXT(U61,"dd.mm.åååå")&" til "&TEXT(V61,"dd.mm.åååå")) ->  | R61: =F61 -> 9 | S61: =_xlfn.IFS(R59="nei","",F61="",$R$9,F61>T61,"* antall kan ikke overstige "&T61&" dag"&IF(T61>1,"er",""),TRUE,"") ->  | T61: =IFERROR(V61-U61,0)+1 -> 183 | U61: =_xlfn.IFS(AND(V48=7,V49=1),"",V48<R48,DATE(YEAR(U53),7,1),TRUE,DATE(YEAR(U53)+1,7,1)) -> 1900-07-01 | V61: =_xlfn.IFS(U61="","",AND(V48=7,V49=2),"",TRUE,V53) -> 1900-12-30
F62: =IF(R59="ja",R62,"") ->  | Q62: ="døgnsats for "&V50&T62 -> døgnsats for 1900 | R62: =_xlfn.XLOOKUP(V50,Innstillinger!$B$38:$B$44,Besøksjem,"-") -> - | S62: =IF(F62>0,_xlfn.XLOOKUP(V50,Innstillinger!$B$38:$B$44,Innstillinger!$I$38:$I$44,""),"") ->  | T62: =IF(_xlfn.XLOOKUP(V50,Innstillinger!$B$38:$B$44,Innstillinger!$J$38:$J$44,"")="-","*","") -> 
E63: =S62 -> 
E65: Totalkostnad | F65: =R65 ->  | Q65: =E65 -> Totalkostnad | R65: =IF(R56="NEI","",R57*R58+IF(R49="Nei",R61*R62,0)) -> 
E68: =IF(E69="","Skriv kommentar:","") -> Skriv kommentar:
E79: Veiledende satser for 2025
E80: Avlastere og støttekontakter med fast arbeidsgiver - omfattet av tariffavtale (SGS 1030)
E83: avlastere, etter helse- og omsorgstjenesteloven | F83: 107
E84: avlastere, etter barnevernloven | F84: 86
E85: støttekontakt, arbeidstakere over 18 år | F85: 180
E86: støttekontakt, arbeidstakere fra 16 til 18 år | F86: 162
E87: støttekontakt, arbeidstakere under 16 år | F87: 144
E88: Les om satser her
E95: Andre godtgjørelser 1
Q97: VIS BEREGNINGEN? | R97: =IF(S98&S99&S100&S101&S103&S104&S107&S106="","ja","nei") -> nei
E98: Tiltaksnavn | F98: Velg fra liste…. | G98: i | I98: =S98 -> *obligatorisk | Q98: =E98 -> Tiltaksnavn | S98: =IF(F98="",$R$9,IF(F98=Innstillinger!$B$8,$R$9,"")) -> *obligatorisk
E99: Oppgi type tiltak (hvis annet): | I99: =S99 ->  | Q99: =E99 -> Oppgi type tiltak (hvis annet): | S99: =IF(AND(F99="",F98="annet tiltak"),$R$9,"") -> 
E100: Timesats | G100: i | I100: =S100 -> *obligatorisk | Q100: =E100 -> Timesats | R100: =F100 -> 0 | S100: =IF(F100="",$R$9,"") -> *obligatorisk
E101: Arbeidstimer totalt | G101: i | I101: =S101 -> *obligatorisk | Q101: =E101 -> Arbeidstimer totalt | R101: =F101 -> 0 | S101: =IF(F101="",$R$9,"") -> *obligatorisk
T102: Velg fra liste….
E103: sats feriepenger | F103: Velg fra liste…. | G103: i | I103: =S103 -> *obligatorisk | Q103: =E103 -> sats feriepenger | R103: =F103 -> Velg fra liste…. | S103: =IF(F103="",$R$9,IF(F103=Innstillinger!$B$8,$R$9,"")) -> *obligatorisk | T103: 0
E104: sats pensjon | G104: i | I104: *obligatorisk | Q104: =E104 -> sats pensjon | R104: =MAXA(F104+F105,0%) ->  | S104: =IF(F104="",$R$9,IF(F104=Innstillinger!$B$8,$R$9,IF(F104>11%,$S$6,""))) -> *obligatorisk | T104: -0.02
E105: (-) ansattes egenandel for pensjon | F105: Velg fra liste…. | G105: i | I105: =S105 -> *obligatorisk | S105: =IF(F105=T102,$R$9,IF(AND(F105=0%,F104>=4%),$S$7,"")) -> *obligatorisk
E106: sats arbeidsgiveravgift | F106: Velg fra liste…. | G106: i | I106: =S106 -> *obligatorisk | Q106: =E106 -> sats arbeidsgiveravgift | R106: =F106 -> Velg fra liste…. | S106: =IF(F106="",$R$9,IF(F106=Innstillinger!$B$8,$R$9,"")) -> *obligatorisk
E107: Finn riktig arbeidsgiveravgift her | S107: =IF(S105=$R$9,$R$9,"") -> *obligatorisk
E109: Totalkostnad | F109: =R109 ->  | R109: =IF(R97="ja",(R101*R100)*(1+R103+R104+(R103*R104))*(1+R106),"") -> 
E112: =IF(E113="","Skriv kommentar:","") -> Skriv kommentar:
D119: Navn og rolle - ansvarlig for kostnadsberegningen | I119: Sted | K119: Dato
E126: Andre godtgjørelser 2
Q128: VIS BEREGNINGEN? | R128: =IF(S129&S130&S131&S132&S134&S135&S138&S137="","ja","nei") -> nei
E129: Tiltaksnavn | F129: Velg fra liste…. | G129: i | I129: =S129 -> *obligatorisk | Q129: =E129 -> Tiltaksnavn | S129: =IF(F129="",$R$9,IF(F129=Innstillinger!$B$8,$R$9,"")) -> *obligatorisk
E130: Oppgi type tiltak (hvis annet): | I130: =S130 ->  | Q130: =E130 -> Oppgi type tiltak (hvis annet): | S130: =IF(AND(F130="",F129="annet tiltak"),$R$9,"") -> 
E131: Timesats | G131: i | I131: =S131 -> *obligatorisk | Q131: =E131 -> Timesats | R131: =F131 -> 0 | S131: =IF(F131="",$R$9,"") -> *obligatorisk
E132: Arbeidstimer totalt | G132: i | I132: =S132 -> *obligatorisk | Q132: =E132 -> Arbeidstimer totalt | R132: =F132 -> 0 | S132: =IF(F132="",$R$9,"") -> *obligatorisk
T133: Velg fra liste….
E134: sats feriepenger | F134: Velg fra liste…. | G134: i | I134: =S134 -> *obligatorisk | Q134: =E134 -> sats feriepenger | R134: =F134 -> Velg fra liste…. | S134: =IF(F134="",$R$9,IF(F134=Innstillinger!$B$8,$R$9,"")) -> *obligatorisk | T134: 0
E135: sats pensjon | G135: i | I135: *obligatorisk | Q135: =E135 -> sats pensjon | R135: =MAXA(F135+F136,0%) ->  | S135: =IF(F135="",$R$9,IF(F135=Innstillinger!$B$8,$R$9,IF(F135>11%,$S$6,""))) -> *obligatorisk | T135: -0.02
E136: (-) ansattes egenandel for pensjon | F136: Velg fra liste…. | G136: i | I136: =S136 -> *obligatorisk | S136: =IF(F136=T133,$R$9,IF(AND(F136=0%,F135>=4%),$S$7,"")) -> *obligatorisk
E137: sats arbeidsgiveravgift | F137: Velg fra liste…. | G137: i | I137: =S137 -> *obligatorisk | Q137: =E137 -> sats arbeidsgiveravgift | R137: =F137 -> Velg fra liste…. | S137: =IF(F137="",$R$9,IF(F137=Innstillinger!$B$8,$R$9,"")) -> *obligatorisk
E138: Finn riktig arbeidsgiveravgift her | S138: =IF(S136=$R$9,$R$9,"") -> *obligatorisk
E140: Totalkostnad | F140: =R140 ->  | R140: =IF(R128="ja",(R132*R131)*(1+R134+R135+(R134*R135))*(1+R137),"") -> 
E143: =IF(E144="","Skriv kommentar:","") -> Skriv kommentar:
D150: Navn og rolle - ansvarlig for kostnadsberegningen | I150: Sted | K150: Dato
E157: Andre godtgjørelser 3
Q159: VIS BEREGNINGEN? | R159: =IF(S160&S161&S162&S163&S165&S166&S169&S168="","ja","nei") -> nei
E160: Tiltaksnavn | F160: Velg fra liste…. | G160: i | I160: =S160 -> *obligatorisk | Q160: =E160 -> Tiltaksnavn | S160: =IF(F160="",$R$9,IF(F160=Innstillinger!$B$8,$R$9,"")) -> *obligatorisk
E161: Oppgi type tiltak (hvis annet): | I161: =S161 ->  | Q161: =E161 -> Oppgi type tiltak (hvis annet): | S161: =IF(AND(F161="",F160="annet tiltak"),$R$9,"") -> 
E162: Timesats | G162: i | I162: =S162 -> *obligatorisk | Q162: =E162 -> Timesats | R162: =F162 -> 0 | S162: =IF(F162="",$R$9,"") -> *obligatorisk
E163: Arbeidstimer totalt | G163: i | I163: =S163 -> *obligatorisk | Q163: =E163 -> Arbeidstimer totalt | R163: =F163 -> 0 | S163: =IF(F163="",$R$9,"") -> *obligatorisk
T164: Velg fra liste….
E165: sats feriepenger | F165: Velg fra liste…. | G165: i | I165: =S165 -> *obligatorisk | Q165: =E165 -> sats feriepenger | R165: =F165 -> Velg fra liste…. | S165: =IF(F165="",$R$9,IF(F165=Innstillinger!$B$8,$R$9,"")) -> *obligatorisk | T165: 0
E166: sats pensjon | G166: i | I166: *obligatorisk | Q166: =E166 -> sats pensjon | R166: =MAXA(F166+F167,0%) ->  | S166: =IF(F166="",$R$9,IF(F166=Innstillinger!$B$8,$R$9,IF(F166>11%,$S$6,""))) -> *obligatorisk | T166: -0.02
E167: (-) ansattes egenandel for pensjon | F167: Velg fra liste…. | G167: i | I167: =S167 -> *obligatorisk | S167: =IF(F167=T164,$R$9,IF(AND(F167=0%,F166>=4%),$S$7,"")) -> *obligatorisk
E168: sats arbeidsgiveravgift | F168: Velg fra liste…. | G168: i | I168: =S168 -> *obligatorisk | Q168: =E168 -> sats arbeidsgiveravgift | R168: =F168 -> Velg fra liste…. | S168: =IF(F168="",$R$9,IF(F168=Innstillinger!$B$8,$R$9,"")) -> *obligatorisk
E169: Finn riktig arbeidsgiveravgift her | S169: =IF(S167=$R$9,$R$9,"") -> *obligatorisk
E171: Totalkostnad | F171: =R171 ->  | R171: =IF(R159="ja",(R163*R162)*(1+R165+R166+(R165*R166))*(1+R168),"") -> 
E174: =IF(E175="","Skriv kommentar:","") -> Skriv kommentar:
D181: Navn og rolle - ansvarlig for kostnadsberegningen | I181: Sted | K181: Dato
E188: Andre godtgjørelser 4
Q190: VIS BEREGNINGEN? | R190: =IF(S191&S192&S193&S194&S196&S197&S200&S199="","ja","nei") -> nei
E191: Tiltaksnavn | F191: Velg fra liste…. | G191: i | I191: =S191 -> *obligatorisk | Q191: =E191 -> Tiltaksnavn | S191: =IF(F191="",$R$9,IF(F191=Innstillinger!$B$8,$R$9,"")) -> *obligatorisk
E192: Oppgi type tiltak (hvis annet): | I192: =S192 ->  | Q192: =E192 -> Oppgi type tiltak (hvis annet): | S192: =IF(AND(F192="",F191="annet tiltak"),$R$9,"") -> 
E193: Timesats | G193: i | I193: =S193 -> *obligatorisk | Q193: =E193 -> Timesats | R193: =F193 -> 0 | S193: =IF(F193="",$R$9,"") -> *obligatorisk
E194: Arbeidstimer totalt | G194: i | I194: =S194 -> *obligatorisk | Q194: =E194 -> Arbeidstimer totalt | R194: =F194 -> 0 | S194: =IF(F194="",$R$9,"") -> *obligatorisk
T195: Velg fra liste….
E196: sats feriepenger | F196: Velg fra liste…. | G196: i | I196: =S196 -> *obligatorisk | Q196: =E196 -> sats feriepenger | R196: =F196 -> Velg fra liste…. | S196: =IF(F196="",$R$9,IF(F196=Innstillinger!$B$8,$R$9,"")) -> *obligatorisk | T196: 0
E197: sats pensjon | G197: i | I197: *obligatorisk | Q197: =E197 -> sats pensjon | R197: =MAXA(F197+F198,0%) ->  | S197: =IF(F197="",$R$9,IF(F197=Innstillinger!$B$8,$R$9,IF(F197>11%,$S$6,""))) -> *obligatorisk | T197: -0.02
E198: (-) ansattes egenandel for pensjon | F198: Velg fra liste…. | G198: i | I198: =S198 -> *obligatorisk | S198: =IF(F198=T195,$R$9,IF(AND(F198=0%,F197>=4%),$S$7,"")) -> *obligatorisk
E199: sats arbeidsgiveravgift | F199: Velg fra liste…. | G199: i | I199: =S199 -> *obligatorisk | Q199: =E199 -> sats arbeidsgiveravgift | R199: =F199 -> Velg fra liste…. | S199: =IF(F199="",$R$9,IF(F199=Innstillinger!$B$8,$R$9,"")) -> *obligatorisk
E200: Finn riktig arbeidsgiveravgift her | S200: =IF(S198=$R$9,$R$9,"") -> *obligatorisk
E202: Totalkostnad | F202: =R202 ->  | R202: =IF(R190="ja",(R194*R193)*(1+R196+R197+(R196*R197))*(1+R199),"") -> 
E205: =IF(E206="","Skriv kommentar:","") -> Skriv kommentar:
D212: Navn og rolle - ansvarlig for kostnadsberegningen | I212: Sted | K212: Dato
E219: Andre godtgjørelser 5
Q221: VIS BEREGNINGEN? | R221: =IF(S222&S223&S224&S225&S227&S228&S231&S230="","ja","nei") -> nei
E222: Tiltaksnavn | F222: Velg fra liste…. | G222: i | I222: =S222 -> *obligatorisk | Q222: =E222 -> Tiltaksnavn | S222: =IF(F222="",$R$9,IF(F222=Innstillinger!$B$8,$R$9,"")) -> *obligatorisk
E223: Oppgi type tiltak (hvis annet): | I223: =S223 ->  | Q223: =E223 -> Oppgi type tiltak (hvis annet): | S223: =IF(AND(F223="",F222="annet tiltak"),$R$9,"") -> 
E224: Timesats | G224: i | I224: =S224 -> *obligatorisk | Q224: =E224 -> Timesats | R224: =F224 -> 0 | S224: =IF(F224="",$R$9,"") -> *obligatorisk
E225: Arbeidstimer totalt | G225: i | I225: =S225 -> *obligatorisk | Q225: =E225 -> Arbeidstimer totalt | R225: =F225 -> 0 | S225: =IF(F225="",$R$9,"") -> *obligatorisk
T226: Velg fra liste….
E227: sats feriepenger | F227: Velg fra liste…. | G227: i | I227: =S227 -> *obligatorisk | Q227: =E227 -> sats feriepenger | R227: =F227 -> Velg fra liste…. | S227: =IF(F227="",$R$9,IF(F227=Innstillinger!$B$8,$R$9,"")) -> *obligatorisk | T227: 0
E228: sats pensjon | G228: i | I228: *obligatorisk | Q228: =E228 -> sats pensjon | R228: =MAXA(F228+F229,0%) ->  | S228: =IF(F228="",$R$9,IF(F228=Innstillinger!$B$8,$R$9,IF(F228>11%,$S$6,""))) -> *obligatorisk | T228: -0.02
E229: (-) ansattes egenandel for pensjon | F229: Velg fra liste…. | G229: i | I229: =S229 -> *obligatorisk | S229: =IF(F229=T226,$R$9,IF(AND(F229=0%,F228>=4%),$S$7,"")) -> *obligatorisk
E230: sats arbeidsgiveravgift | F230: Velg fra liste…. | G230: i | I230: =S230 -> *obligatorisk | Q230: =E230 -> sats arbeidsgiveravgift | R230: =F230 -> Velg fra liste…. | S230: =IF(F230="",$R$9,IF(F230=Innstillinger!$B$8,$R$9,"")) -> *obligatorisk
E231: Finn riktig arbeidsgiveravgift her | S231: =IF(S229=$R$9,$R$9,"") -> *obligatorisk
E233: Totalkostnad | F233: =R233 ->  | R233: =IF(R221="ja",(R225*R224)*(1+R227+R228+(R227*R228))*(1+R230),"") -> 
E236: =IF(E237="","Skriv kommentar:","") -> Skriv kommentar:
D243: Navn og rolle - ansvarlig for kostnadsberegningen | I243: Sted | K243: Dato

Sheet 4 Egenandel
C2: 4 | E2: Egenandel | J2: ='1 Lønn'!K2 -> (ver. 3.4)
E3: =" - til statlige barnevernstiltak som barnevernsinstutisjoner, senter for foreldre og barn, beredskapshjem og spesialiserte fosterhjem, og MST / FFT" -> - til statlige barnevernstiltak som barnevernsinstutisjoner, senter for foreldre og barn, beredskapshjem og spesialiserte fosterhjem, og MST / FFT
V5: Velg fra liste…
E6: Dekkes av ekstratilskuddet: | I6: Dekkes ikke av ekstratilskuddet: | P6: Text if blank | Q6: * Perioden kan ikke overstige ett år. | U6: 1 | V6: opphold, én foresatt og ett barn (en sats)
D7: þKommunal egenandel til: fosterhjemsplassering, institusjon og hjemmebaserte tiltak, inntil kommunens satser for egenbetaling for statlige barnevernstiltak. | I7: xUtgiftsdekning: til husleie, strøm, mat, utstyr, fritidsaktiviteter xLønn til: administrativt personale, undersøkelsessak og ordinær oppfølging av fosterhjem | P7: Text if blank | Q7: * Til dato kan ikke være en dato som kommer før fra dato. | U7: 1.5 | V7: opphold, to foresatte og ett barn (en og en halv sats)
P8: Text if blank | Q8: *obligatorisk | U8: 0.5 | V8: opphold, ett barn (halv sats)
P13: Vis beregningen? | Q13: =IF(I17&I21&I22&I18="","ja","nei") -> nei
E14: Egenandel #1 | P14: Felt | Q14: Verdi | R14: Kommentar
E17: Tiltak: | F17: Velg fra liste…. | G17: i | I17: =R17 -> *obligatorisk | P17: =IF(OR(F17="",F17=$Y$25),"-",F17) -> - | R17: =IF(F17="",$Q$8,IF(F17=$Y$25,$Q$8,"")) -> *obligatorisk
E18: Hvis "senter for foreldre og barn", antall personer med opphold: | F18: opphold, én foresatt og ett barn (en sats) | G18: i | I18: =R18 ->  | P18: =F18 -> opphold, én foresatt og ett barn (en sats) | Q18: =IF(T18="ja",_xlfn.XLOOKUP(P18,$V$5:$V$8,$U$5:$U$8,1),1) -> 1 | R18: =IF(AND(T18="ja",Q18=0),$Q$8,"") ->  | S18: "Senter for foreldre og barn"? | T18: =IF(LEN(P17)-LEN(SUBSTITUTE(P17,"Senter",""))=0,"Nei","Ja") -> Nei
E20: =_xlfn.XLOOKUP(F17,$Y$25:$Y$31,$Z$25:$Z$31,$Z$25) -> Tiltaksperiode: | P20: =E20 -> Tiltaksperiode:
E21: fra: (dd.mm.åååå) | G21: i | I21: =R21 -> *obligatorisk | P21: =E21 -> fra: (dd.mm.åååå) | R21: =IF(F21="",$Q$8,"") -> *obligatorisk
E22: til: (dd.mm.åååå) | G22: i | I22: =R22 -> *obligatorisk | P22: =E22 -> til: (dd.mm.åååå) | R22: =IF(F22="",$Q$8,IF(F21>F22,$Q$7,IF(AND(F22>=EDATE(F21,12),F21<>""),$Q$6,""))) -> *obligatorisk
P25: start dato | Q25: hel sats | R25: hel måned | S25: dalgig sats | T25: antall dager | U25: kostnad | Y25: Velg fra liste…. | Z25: Tiltaksperiode:
E26: =IF(Q13="nei","",IF(T26>0,TEXT(P26,"mmm åååÅ")&" : "&TEXT(S26,"# ###")&" kr døgnsats x "&T26&" dag"&IF(T26>1,"er","")&IF(Q18=1,""," x "&Q18&" sats"),"-")) ->  | F26: =IF(Q13="nei","",IF(T26>0,U26,"")) ->  | O26: 1 | P26: =F21 -> 00:00:00 | Q26: =INDEX(Innstillinger!$B$28:$H$35,MATCH(YEAR('4 Egenandel'!P26),Innstillinger!$B$28:$B$35,0),MATCH('4 Egenandel'!F17,Innstillinger!$B$28:$H$28,0)) ->  | R26: =DAY(EOMONTH(P26,0)) -> 31 | S26: =Q26/R26 ->  | T26: =IF(P26>F22,0,MIN(F22,EOMONTH(P26,0))-P26+1) -> 32 | U26: =ROUND(S26*T26,0)*Q18 ->  | Y26: Barnevernsinstitusjoner | Z26: Tidsrommet flyktningen har oppholdt seg på institusjonen i tilskuddsperioden:
E27: =IF(Q13="nei","",IF(T27>0,TEXT(P27,"mmm åååÅ")&" : "&TEXT(S27,"# ###")&" kr døgnsats x "&T27&" dag"&IF(T27>1,"er","")&IF(Q18=1,""," x "&Q18&" sats"),"-")) ->  | F27: =IF(Q13="nei","",IF(T27>0,U27,"")) ->  | O27: =+O26+1 -> 2 | P27: =EOMONTH(F21,-1+O26)+1 -> 1900-02-01 | Q27: =INDEX(Innstillinger!$B$28:$H$35,MATCH(YEAR('4 Egenandel'!P27),Innstillinger!$B$28:$B$35,0),MATCH('4 Egenandel'!F17,Innstillinger!$B$28:$H$28,0)) ->  | R27: 28 | T27: =IF(P27>F22,0,MIN(F22,EOMONTH(P27,0))-P27+1) -> 0 | U27: =ROUND(S27*T27,0)*Q18 ->  | Y27: Senter for foreldre og barn (døgnopphold på senter) | Z27: Tidsrommet flyktningen har utredning i tilskuddsperioden:
E28: =IF(Q13="nei","",IF(T28>0,TEXT(P28,"mmm åååÅ")&" : "&TEXT(S28,"# ###")&" kr døgnsats x "&T28&" dag"&IF(T28>1,"er","")&IF(Q18=1,""," x "&Q18&" sats"),"-")) ->  | F28: =IF(Q13="nei","",IF(T28>0,U28,"")) ->  | O28: =+O27+1 -> 3 | P28: =EOMONTH(F21,-1+O27)+1 -> 60 | Q28: =INDEX(Innstillinger!$B$28:$H$35,MATCH(YEAR('4 Egenandel'!P28),Innstillinger!$B$28:$B$35,0),MATCH('4 Egenandel'!F17,Innstillinger!$B$28:$H$28,0)) ->  | R28: 28 | T28: =IF(P28>F22,0,MIN(F22,EOMONTH(P28,0))-P28+1) -> 0 | U28: =ROUND(S28*T28,0)*Q18 ->  | Y28: Senter for foreldre og barn (hjemmebasert/poliklinisk) | Z28: Tidsrommet flyktningen har utredning i tilskuddsperioden:
E29: =IF(Q13="nei","",IF(T29>0,TEXT(P29,"mmm åååÅ")&" : "&TEXT(S29,"# ###")&" kr døgnsats x "&T29&" dag"&IF(T29>1,"er","")&IF(Q18=1,""," x "&Q18&" sats"),"-")) ->  | F29: =IF(Q13="nei","",IF(T29>0,U29,"")) ->  | O29: 4 | P29: =EOMONTH(F21,-1+O28)+1 -> 1900-04-01 | Q29: =INDEX(Innstillinger!$B$28:$H$35,MATCH(YEAR('4 Egenandel'!P29),Innstillinger!$B$28:$B$35,0),MATCH('4 Egenandel'!F17,Innstillinger!$B$28:$H$28,0)) ->  | R29: 30 | T29: =IF(P29>F22,0,MIN(F22,EOMONTH(P29,0))-P29+1) -> 0 | U29: =ROUND(S29*T29,0)*Q18 ->  | Y29: Beredskapshjem og spesialiserte fosterhjem (plassert 01.01.2022 eller etter) | Z29: Tidsrommet flyktningen har oppholdt seg i beredskapshjem/ fosterhjem i tilskuddsperioden:
E30: =IF(Q13="nei","",IF(T30>0,TEXT(P30,"mmm åååÅ")&" : "&TEXT(S30,"# ###")&" kr døgnsats x "&T30&" dag"&IF(T30>1,"er","")&IF(Q18=1,""," x "&Q18&" sats"),"-")) ->  | F30: =IF(Q13="nei","",IF(T30>0,U30,"")) ->  | O30: 5 | P30: =EOMONTH(F21,-1+O29)+1 -> 1900-05-01 | Q30: =INDEX(Innstillinger!$B$28:$H$35,MATCH(YEAR('4 Egenandel'!P30),Innstillinger!$B$28:$B$35,0),MATCH('4 Egenandel'!F17,Innstillinger!$B$28:$H$28,0)) ->  | R30: 31 | T30: =IF(P30>F22,0,MIN(F22,EOMONTH(P30,0))-P30+1) -> 0 | U30: =ROUND(S30*T30,0)*Q18 ->  | Y30: Beredskapshjem og spesialiserte fosterhjem (plassert 31.12.2021 eller før) | Z30: Tidsrommet flyktningen har oppholdt seg i beredskapshjem/ fosterhjem i tilskuddsperioden:
E31: =IF(Q13="nei","",IF(T31>0,TEXT(P31,"mmm åååÅ")&" : "&TEXT(S31,"# ###")&" kr døgnsats x "&T31&" dag"&IF(T31>1,"er","")&IF(Q18=1,""," x "&Q18&" sats"),"-")) ->  | F31: =IF(Q13="nei","",IF(T31>0,U31,"")) ->  | O31: 6 | P31: =EOMONTH(F21,-1+O30)+1 -> 1900-06-01 | Q31: =INDEX(Innstillinger!$B$28:$H$35,MATCH(YEAR('4 Egenandel'!P31),Innstillinger!$B$28:$B$35,0),MATCH('4 Egenandel'!F17,Innstillinger!$B$28:$H$28,0)) ->  | R31: 30 | T31: =IF(P31>F22,0,MIN(F22,EOMONTH(P31,0))-P31+1) -> 0 | U31: =ROUND(S31*T31,0)*Q18 ->  | Y31: MST (Multisystemisk terapi) / FFT (Funksjonell familieterapi) | Z31: Tiltaksperiode:
E32: =IF(Q13="nei","",IF(T32>0,TEXT(P32,"mmm åååÅ")&" : "&TEXT(S32,"# ###")&" kr døgnsats x "&T32&" dag"&IF(T32>1,"er","")&IF(Q18=1,""," x "&Q18&" sats"),"-")) ->  | F32: =IF(Q13="nei","",IF(T32>0,U32,"")) ->  | O32: 7 | P32: =EOMONTH(F21,-1+O31)+1 -> 1900-07-01 | Q32: =INDEX(Innstillinger!$B$28:$H$35,MATCH(YEAR('4 Egenandel'!P32),Innstillinger!$B$28:$B$35,0),MATCH('4 Egenandel'!F17,Innstillinger!$B$28:$H$28,0)) ->  | R32: 31 | T32: =IF(P32>F22,0,MIN(F22,EOMONTH(P32,0))-P32+1) -> 0 | U32: =ROUND(S32*T32,0)*Q18 -> 
E33: =IF(Q13="nei","",IF(T33>0,TEXT(P33,"mmm åååÅ")&" : "&TEXT(S33,"# ###")&" kr døgnsats x "&T33&" dag"&IF(T33>1,"er","")&IF(Q18=1,""," x "&Q18&" sats"),"-")) ->  | F33: =IF(Q13="nei","",IF(T33>0,U33,"")) ->  | O33: 8 | P33: =EOMONTH(F21,-1+O32)+1 -> 1900-08-01 | Q33: =INDEX(Innstillinger!$B$28:$H$35,MATCH(YEAR('4 Egenandel'!P33),Innstillinger!$B$28:$B$35,0),MATCH('4 Egenandel'!F17,Innstillinger!$B$28:$H$28,0)) ->  | R33: 31 | T33: =IF(P33>F22,0,MIN(F22,EOMONTH(P33,0))-P33+1) -> 0 | U33: =ROUND(S33*T33,0)*Q18 -> 
E34: =IF(Q13="nei","",IF(T34>0,TEXT(P34,"mmm åååÅ")&" : "&TEXT(S34,"# ###")&" kr døgnsats x "&T34&" dag"&IF(T34>1,"er","")&IF(Q18=1,""," x "&Q18&" sats"),"-")) ->  | F34: =IF(Q13="nei","",IF(T34>0,U34,"")) ->  | O34: 9 | P34: =EOMONTH(F21,-1+O33)+1 -> 1900-09-01 | Q34: =INDEX(Innstillinger!$B$28:$H$35,MATCH(YEAR('4 Egenandel'!P34),Innstillinger!$B$28:$B$35,0),MATCH('4 Egenandel'!F17,Innstillinger!$B$28:$H$28,0)) ->  | R34: 30 | T34: =IF(P34>F22,0,MIN(F22,EOMONTH(P34,0))-P34+1) -> 0 | U34: =ROUND(S34*T34,0)*Q18 -> 
E35: =IF(Q13="nei","",IF(T35>0,TEXT(P35,"mmm åååÅ")&" : "&TEXT(S35,"# ###")&" kr døgnsats x "&T35&" dag"&IF(T35>1,"er","")&IF(Q18=1,""," x "&Q18&" sats"),"-")) ->  | F35: =IF(Q13="nei","",IF(T35>0,U35,"")) ->  | O35: 10 | P35: =EOMONTH(F21,-1+O34)+1 -> 1900-10-01 | Q35: =INDEX(Innstillinger!$B$28:$H$35,MATCH(YEAR('4 Egenandel'!P35),Innstillinger!$B$28:$B$35,0),MATCH('4 Egenandel'!F17,Innstillinger!$B$28:$H$28,0)) ->  | R35: 31 | T35: =IF(P35>F22,0,MIN(F22,EOMONTH(P35,0))-P35+1) -> 0 | U35: =ROUND(S35*T35,0)*Q18 -> 
E36: =IF(Q13="nei","",IF(T36>0,TEXT(P36,"mmm åååÅ")&" : "&TEXT(S36,"# ###")&" kr døgnsats x "&T36&" dag"&IF(T36>1,"er","")&IF(Q18=1,""," x "&Q18&" sats"),"-")) ->  | F36: =IF(Q13="nei","",IF(T36>0,U36,"")) ->  | O36: 11 | P36: =EOMONTH(F21,-1+O35)+1 -> 1900-11-01 | Q36: =INDEX(Innstillinger!$B$28:$H$35,MATCH(YEAR('4 Egenandel'!P36),Innstillinger!$B$28:$B$35,0),MATCH('4 Egenandel'!F17,Innstillinger!$B$28:$H$28,0)) ->  | R36: 30 | T36: =IF(P36>F22,0,MIN(F22,EOMONTH(P36,0))-P36+1) -> 0 | U36: =ROUND(S36*T36,0)*Q18 -> 
E37: =IF(Q13="nei","",IF(T37>0,TEXT(P37,"mmm åååÅ")&" : "&TEXT(S37,"# ###")&" kr døgnsats x "&T37&" dag"&IF(T37>1,"er","")&IF(Q18=1,""," x "&Q18&" sats"),"-")) ->  | F37: =IF(Q13="nei","",IF(T37>0,U37,"")) ->  | O37: 12 | P37: =EOMONTH(F21,-1+O36)+1 -> 1900-12-01 | Q37: =INDEX(Innstillinger!$B$28:$H$35,MATCH(YEAR('4 Egenandel'!P37),Innstillinger!$B$28:$B$35,0),MATCH('4 Egenandel'!F17,Innstillinger!$B$28:$H$28,0)) ->  | R37: 31 | T37: =IF(P37>F22,0,MIN(F22,EOMONTH(P37,0))-P37+1) -> 0 | U37: =ROUND(S37*T37,0)*Q18 -> 
E38: =IF(Q13="nei","",IF(T38>0,TEXT(P38,"mmm åååÅ")&" : "&TEXT(S38,"# ###")&" kr døgnsats x "&T38&" dag"&IF(T38>1,"er","")&IF(Q18=1,""," x "&Q18&" sats"),"-")) ->  | F38: =IF(Q13="nei","",IF(T38>0,U38,"")) ->  | O38: 13 | P38: =EOMONTH(F21,-1+O37)+1 -> 1901-01-01 | Q38: =INDEX(Innstillinger!$B$28:$H$35,MATCH(YEAR('4 Egenandel'!P38),Innstillinger!$B$28:$B$35,0),MATCH('4 Egenandel'!F17,Innstillinger!$B$28:$H$28,0)) ->  | R38: 31 | T38: =IF(P38>F22,0,MIN(F22,EOMONTH(P38,0))-P38+1) -> 0 | U38: =ROUND(S38*T38,0)*Q18 -> 
E41: Totalkostnad | F41: =IF(Q13="nei","",SUMPRODUCT(S26:S38,T26:T38)) ->  | P41: =E41 -> Totalkostnad | U41: =IF(Q13="NEI","",SUMPRODUCT(S26:S38,T26:T38)) -> 
E44: =IF(E45="","Skriv kommentar:","") -> Skriv kommentar:
D52: Navn og rolle - ansvarlig for kostnadsberegningen | I52: Sted | J52: Dato
P58: Vis beregningen? | Q58: =IF(I62&I66&I67&I63="","ja","nei") -> nei
E59: Egenandel #2 | P59: Felt | Q59: Verdi | R59: Kommentar
E62: Tiltak: | F62: Velg fra liste…. | G62: i | I62: =R62 -> *obligatorisk | P62: =IF(OR(F62="",F62=$Y$25),"-",F62) -> - | R62: =IF(F62="",$Q$8,IF(F62=$Y$25,$Q$8,"")) -> *obligatorisk
E63: Hvis "senter for foreldre og barn", antall personer med opphold: | F63: Velg fra liste… | G63: i | I63: =R63 ->  | P63: =F63 -> Velg fra liste… | Q63: =IF(T63="ja",_xlfn.XLOOKUP(P63,$V$5:$V$8,$U$5:$U$8,1),1) -> 1 | R63: =IF(AND(T63="ja",Q63=0),$Q$8,"") ->  | S63: "Senter for foreldre og barn"? | T63: =IF(LEN(P62)-LEN(SUBSTITUTE(P62,"Senter",""))=0,"Nei","Ja") -> Nei
E65: =_xlfn.XLOOKUP(F62,$Y$25:$Y$31,$Z$25:$Z$31,$Z$25) -> Tiltaksperiode: | P65: =E65 -> Tiltaksperiode:
E66: fra: (dd.mm.åååå) | G66: i | I66: =R66 -> *obligatorisk | P66: =E66 -> fra: (dd.mm.åååå) | R66: =IF(F66="",$Q$8,"") -> *obligatorisk
E67: til: (dd.mm.åååå) | G67: i | I67: =R67 -> *obligatorisk | P67: =E67 -> til: (dd.mm.åååå) | R67: =IF(F67="",$Q$8,IF(F66>F67,$Q$7,IF(AND(F67>=EDATE(F66,12),F66<>""),$Q$6,""))) -> *obligatorisk
P70: start dato | Q70: hel sats | R70: hel måned | S70: dalgig sats | T70: antall dager | U70: kostnad | Y70: Velg fra liste…. | Z70: Tiltaksperiode:
E71: =IF(Q58="nei","",IF(T71>0,TEXT(P71,"mmm åååÅ")&" : "&TEXT(S71,"# ###")&" kr døgnsats x "&T71&" dag"&IF(T71>1,"er","")&IF(Q63=1,""," x "&Q63&" sats"),"-")) ->  | F71: =IF(Q58="nei","",IF(T71>0,U71,"")) ->  | O71: 1 | P71: =F66 -> 00:00:00 | Q71: =INDEX(Innstillinger!$B$28:$H$35,MATCH(YEAR('4 Egenandel'!P71),Innstillinger!$B$28:$B$35,0),MATCH('4 Egenandel'!F62,Innstillinger!$B$28:$H$28,0)) ->  | R71: =DAY(EOMONTH(P71,0)) -> 31 | S71: =Q71/R71 ->  | T71: =IF(P71>F67,0,MIN(F67,EOMONTH(P71,0))-P71+1) -> 32 | U71: =ROUND(S71*T71,0)*Q63 ->  | Y71: Barnevernsinstitusjoner | Z71: Tidsrommet flyktningen har oppholdt seg på institusjonen i tilskuddsperioden:
E72: =IF(Q58="nei","",IF(T72>0,TEXT(P72,"mmm åååÅ")&" : "&TEXT(S72,"# ###")&" kr døgnsats x "&T72&" dag"&IF(T72>1,"er","")&IF(Q63=1,""," x "&Q63&" sats"),"-")) ->  | F72: =IF(Q58="nei","",IF(T72>0,U72,"")) ->  | O72: =+O71+1 -> 2 | P72: =EOMONTH(F66,-1+O71)+1 -> 1900-02-01 | Q72: =INDEX(Innstillinger!$B$28:$H$35,MATCH(YEAR('4 Egenandel'!P72),Innstillinger!$B$28:$B$35,0),MATCH('4 Egenandel'!F62,Innstillinger!$B$28:$H$28,0)) ->  | R72: 28 | T72: =IF(P72>F67,0,MIN(F67,EOMONTH(P72,0))-P72+1) -> 0 | U72: =ROUND(S72*T72,0)*Q63 ->  | Y72: Senter for foreldre og barn (døgnopphold på senter) | Z72: Tidsrommet flyktningen har utredning i tilskuddsperioden:
E73: =IF(Q58="nei","",IF(T73>0,TEXT(P73,"mmm åååÅ")&" : "&TEXT(S73,"# ###")&" kr døgnsats x "&T73&" dag"&IF(T73>1,"er","")&IF(Q63=1,""," x "&Q63&" sats"),"-")) ->  | F73: =IF(Q58="nei","",IF(T73>0,U73,"")) ->  | O73: =+O72+1 -> 3 | P73: =EOMONTH(F66,-1+O72)+1 -> 60 | Q73: =INDEX(Innstillinger!$B$28:$H$35,MATCH(YEAR('4 Egenandel'!P73),Innstillinger!$B$28:$B$35,0),MATCH('4 Egenandel'!F62,Innstillinger!$B$28:$H$28,0)) ->  | R73: 28 | T73: =IF(P73>F67,0,MIN(F67,EOMONTH(P73,0))-P73+1) -> 0 | U73: =ROUND(S73*T73,0)*Q63 ->  | Y73: Senter for foreldre og barn (hjemmebasert/poliklinisk) | Z73: Tidsrommet flyktningen har utredning i tilskuddsperioden:
E74: =IF(Q58="nei","",IF(T74>0,TEXT(P74,"mmm åååÅ")&" : "&TEXT(S74,"# ###")&" kr døgnsats x "&T74&" dag"&IF(T74>1,"er","")&IF(Q63=1,""," x "&Q63&" sats"),"-")) ->  | F74: =IF(Q58="nei","",IF(T74>0,U74,"")) ->  | O74: 4 | P74: =EOMONTH(F66,-1+O73)+1 -> 1900-04-01 | Q74: =INDEX(Innstillinger!$B$28:$H$35,MATCH(YEAR('4 Egenandel'!P74),Innstillinger!$B$28:$B$35,0),MATCH('4 Egenandel'!F62,Innstillinger!$B$28:$H$28,0)) ->  | R74: 30 | T74: =IF(P74>F67,0,MIN(F67,EOMONTH(P74,0))-P74+1) -> 0 | U74: =ROUND(S74*T74,0)*Q63 ->  | Y74: Beredskapshjem og spesialiserte fosterhjem (plassert 01.01.2022 eller etter) | Z74: Tidsrommet flyktningen har oppholdt seg i beredskapshjem/ fosterhjem i tilskuddsperioden:
E75: =IF(Q58="nei","",IF(T75>0,TEXT(P75,"mmm åååÅ")&" : "&TEXT(S75,"# ###")&" kr døgnsats x "&T75&" dag"&IF(T75>1,"er","")&IF(Q63=1,""," x "&Q63&" sats"),"-")) ->  | F75: =IF(Q58="nei","",IF(T75>0,U75,"")) ->  | O75: 5 | P75: =EOMONTH(F66,-1+O74)+1 -> 1900-05-01 | Q75: =INDEX(Innstillinger!$B$28:$H$35,MATCH(YEAR('4 Egenandel'!P75),Innstillinger!$B$28:$B$35,0),MATCH('4 Egenandel'!F62,Innstillinger!$B$28:$H$28,0)) ->  | R75: 31 | T75: =IF(P75>F67,0,MIN(F67,EOMONTH(P75,0))-P75+1) -> 0 | U75: =ROUND(S75*T75,0)*Q63 ->  | Y75: Beredskapshjem og spesialiserte fosterhjem (plassert 31.12.2021 eller før) | Z75: Tidsrommet flyktningen har oppholdt seg i beredskapshjem/ fosterhjem i tilskuddsperioden:
E76: =IF(Q58="nei","",IF(T76>0,TEXT(P76,"mmm åååÅ")&" : "&TEXT(S76,"# ###")&" kr døgnsats x "&T76&" dag"&IF(T76>1,"er","")&IF(Q63=1,""," x "&Q63&" sats"),"-")) ->  | F76: =IF(Q58="nei","",IF(T76>0,U76,"")) ->  | O76: 6 | P76: =EOMONTH(F66,-1+O75)+1 -> 1900-06-01 | Q76: =INDEX(Innstillinger!$B$28:$H$35,MATCH(YEAR('4 Egenandel'!P76),Innstillinger!$B$28:$B$35,0),MATCH('4 Egenandel'!F62,Innstillinger!$B$28:$H$28,0)) ->  | R76: 30 | T76: =IF(P76>F67,0,MIN(F67,EOMONTH(P76,0))-P76+1) -> 0 | U76: =ROUND(S76*T76,0)*Q63 ->  | Y76: MST (Multisystemisk terapi) / FFT (Funksjonell familieterapi) | Z76: Tiltaksperiode:
E77: =IF(Q58="nei","",IF(T77>0,TEXT(P77,"mmm åååÅ")&" : "&TEXT(S77,"# ###")&" kr døgnsats x "&T77&" dag"&IF(T77>1,"er","")&IF(Q63=1,""," x "&Q63&" sats"),"-")) ->  | F77: =IF(Q58="nei","",IF(T77>0,U77,"")) ->  | O77: 7 | P77: =EOMONTH(F66,-1+O76)+1 -> 1900-07-01 | Q77: =INDEX(Innstillinger!$B$28:$H$35,MATCH(YEAR('4 Egenandel'!P77),Innstillinger!$B$28:$B$35,0),MATCH('4 Egenandel'!F62,Innstillinger!$B$28:$H$28,0)) ->  | R77: 31 | T77: =IF(P77>F67,0,MIN(F67,EOMONTH(P77,0))-P77+1) -> 0 | U77: =ROUND(S77*T77,0)*Q63 -> 
E78: =IF(Q58="nei","",IF(T78>0,TEXT(P78,"mmm åååÅ")&" : "&TEXT(S78,"# ###")&" kr døgnsats x "&T78&" dag"&IF(T78>1,"er","")&IF(Q63=1,""," x "&Q63&" sats"),"-")) ->  | F78: =IF(Q58="nei","",IF(T78>0,U78,"")) ->  | O78: 8 | P78: =EOMONTH(F66,-1+O77)+1 -> 1900-08-01 | Q78: =INDEX(Innstillinger!$B$28:$H$35,MATCH(YEAR('4 Egenandel'!P78),Innstillinger!$B$28:$B$35,0),MATCH('4 Egenandel'!F62,Innstillinger!$B$28:$H$28,0)) ->  | R78: 31 | T78: =IF(P78>F67,0,MIN(F67,EOMONTH(P78,0))-P78+1) -> 0 | U78: =ROUND(S78*T78,0)*Q63 -> 
E79: =IF(Q58="nei","",IF(T79>0,TEXT(P79,"mmm åååÅ")&" : "&TEXT(S79,"# ###")&" kr døgnsats x "&T79&" dag"&IF(T79>1,"er","")&IF(Q63=1,""," x "&Q63&" sats"),"-")) ->  | F79: =IF(Q58="nei","",IF(T79>0,U79,"")) ->  | O79: 9 | P79: =EOMONTH(F66,-1+O78)+1 -> 1900-09-01 | Q79: =INDEX(Innstillinger!$B$28:$H$35,MATCH(YEAR('4 Egenandel'!P79),Innstillinger!$B$28:$B$35,0),MATCH('4 Egenandel'!F62,Innstillinger!$B$28:$H$28,0)) ->  | R79: 30 | T79: =IF(P79>F67,0,MIN(F67,EOMONTH(P79,0))-P79+1) -> 0 | U79: =ROUND(S79*T79,0)*Q63 -> 
E80: =IF(Q58="nei","",IF(T80>0,TEXT(P80,"mmm åååÅ")&" : "&TEXT(S80,"# ###")&" kr døgnsats x "&T80&" dag"&IF(T80>1,"er","")&IF(Q63=1,""," x "&Q63&" sats"),"-")) ->  | F80: =IF(Q58="nei","",IF(T80>0,U80,"")) ->  | O80: 10 | P80: =EOMONTH(F66,-1+O79)+1 -> 1900-10-01 | Q80: =INDEX(Innstillinger!$B$28:$H$35,MATCH(YEAR('4 Egenandel'!P80),Innstillinger!$B$28:$B$35,0),MATCH('4 Egenandel'!F62,Innstillinger!$B$28:$H$28,0)) ->  | R80: 31 | T80: =IF(P80>F67,0,MIN(F67,EOMONTH(P80,0))-P80+1) -> 0 | U80: =ROUND(S80*T80,0)*Q63 -> 
E81: =IF(Q58="nei","",IF(T81>0,TEXT(P81,"mmm åååÅ")&" : "&TEXT(S81,"# ###")&" kr døgnsats x "&T81&" dag"&IF(T81>1,"er","")&IF(Q63=1,""," x "&Q63&" sats"),"-")) ->  | F81: =IF(Q58="nei","",IF(T81>0,U81,"")) ->  | O81: 11 | P81: =EOMONTH(F66,-1+O80)+1 -> 1900-11-01 | Q81: =INDEX(Innstillinger!$B$28:$H$35,MATCH(YEAR('4 Egenandel'!P81),Innstillinger!$B$28:$B$35,0),MATCH('4 Egenandel'!F62,Innstillinger!$B$28:$H$28,0)) ->  | R81: 30 | T81: =IF(P81>F67,0,MIN(F67,EOMONTH(P81,0))-P81+1) -> 0 | U81: =ROUND(S81*T81,0)*Q63 -> 
E82: =IF(Q58="nei","",IF(T82>0,TEXT(P82,"mmm åååÅ")&" : "&TEXT(S82,"# ###")&" kr døgnsats x "&T82&" dag"&IF(T82>1,"er","")&IF(Q63=1,""," x "&Q63&" sats"),"-")) ->  | F82: =IF(Q58="nei","",IF(T82>0,U82,"")) ->  | O82: 12 | P82: =EOMONTH(F66,-1+O81)+1 -> 1900-12-01 | Q82: =INDEX(Innstillinger!$B$28:$H$35,MATCH(YEAR('4 Egenandel'!P82),Innstillinger!$B$28:$B$35,0),MATCH('4 Egenandel'!F62,Innstillinger!$B$28:$H$28,0)) ->  | R82: 31 | T82: =IF(P82>F67,0,MIN(F67,EOMONTH(P82,0))-P82+1) -> 0 | U82: =ROUND(S82*T82,0)*Q63 -> 
E83: =IF(Q58="nei","",IF(T83>0,TEXT(P83,"mmm åååÅ")&" : "&TEXT(S83,"# ###")&" kr døgnsats x "&T83&" dag"&IF(T83>1,"er","")&IF(Q63=1,""," x "&Q63&" sats"),"-")) ->  | F83: =IF(Q58="nei","",IF(T83>0,U83,"")) ->  | O83: 13 | P83: =EOMONTH(F66,-1+O82)+1 -> 1901-01-01 | Q83: =INDEX(Innstillinger!$B$28:$H$35,MATCH(YEAR('4 Egenandel'!P83),Innstillinger!$B$28:$B$35,0),MATCH('4 Egenandel'!F62,Innstillinger!$B$28:$H$28,0)) ->  | R83: 31 | T83: =IF(P83>F67,0,MIN(F67,EOMONTH(P83,0))-P83+1) -> 0 | U83: =ROUND(S83*T83,0)*Q63 -> 
E86: Totalkostnad | F86: =IF(Q58="nei","",SUMPRODUCT(S71:S83,T71:T83)) ->  | P86: =E86 -> Totalkostnad | U86: =IF(Q58="NEI","",SUMPRODUCT(S71:S83,T71:T83)) -> 
E89: =IF(E90="","Skriv kommentar:","") -> Skriv kommentar:
D97: Navn og rolle - ansvarlig for kostnadsberegningen | I97: Sted | J97: Dato
P103: Vis beregningen? | Q103: =IF(I107&I111&I112&I108="","ja","nei") -> nei
E104: Egenandel #3 | P104: Felt | Q104: Verdi | R104: Kommentar
E107: Tiltak: | F107: Velg fra liste…. | G107: i | I107: =R107 -> *obligatorisk | P107: =IF(OR(F107="",F107=$Y$25),"-",F107) -> - | R107: =IF(F107="",$Q$8,IF(F107=$Y$25,$Q$8,"")) -> *obligatorisk
E108: Hvis "senter for foreldre og barn", antall personer med opphold: | F108: Velg fra liste… | G108: i | I108: =R108 ->  | P108: =F108 -> Velg fra liste… | Q108: =IF(T108="ja",_xlfn.XLOOKUP(P108,$V$5:$V$8,$U$5:$U$8,1),1) -> 1 | R108: =IF(AND(T108="ja",Q108=0),$Q$8,"") ->  | S108: "Senter for foreldre og barn"? | T108: =IF(LEN(P107)-LEN(SUBSTITUTE(P107,"Senter",""))=0,"Nei","Ja") -> Nei
E110: =_xlfn.XLOOKUP(F107,$Y$25:$Y$31,$Z$25:$Z$31,$Z$25) -> Tiltaksperiode: | P110: =E110 -> Tiltaksperiode:
E111: fra: (dd.mm.åååå) | G111: i | I111: =R111 -> *obligatorisk | P111: =E111 -> fra: (dd.mm.åååå) | R111: =IF(F111="",$Q$8,"") -> *obligatorisk
E112: til: (dd.mm.åååå) | G112: i | I112: =R112 -> *obligatorisk | P112: =E112 -> til: (dd.mm.åååå) | R112: =IF(F112="",$Q$8,IF(F111>F112,$Q$7,IF(AND(F112>=EDATE(F111,12),F111<>""),$Q$6,""))) -> *obligatorisk
P115: start dato | Q115: hel sats | R115: hel måned | S115: dalgig sats | T115: antall dager | U115: kostnad | Y115: Velg fra liste…. | Z115: Tiltaksperiode:
E116: =IF(Q103="nei","",IF(T116>0,TEXT(P116,"mmm åååÅ")&" : "&TEXT(S116,"# ###")&" kr døgnsats x "&T116&" dag"&IF(T116>1,"er","")&IF(Q108=1,""," x "&Q108&" sats"),"-")) ->  | F116: =IF(Q103="nei","",IF(T116>0,U116,"")) ->  | O116: 1 | P116: =F111 -> 00:00:00 | Q116: =INDEX(Innstillinger!$B$28:$H$35,MATCH(YEAR('4 Egenandel'!P116),Innstillinger!$B$28:$B$35,0),MATCH('4 Egenandel'!F107,Innstillinger!$B$28:$H$28,0)) ->  | R116: =DAY(EOMONTH(P116,0)) -> 31 | S116: =Q116/R116 ->  | T116: =IF(P116>F112,0,MIN(F112,EOMONTH(P116,0))-P116+1) -> 32 | U116: =ROUND(S116*T116,0)*Q108 ->  | Y116: Barnevernsinstitusjoner | Z116: Tidsrommet flyktningen har oppholdt seg på institusjonen i tilskuddsperioden:
E117: =IF(Q103="nei","",IF(T117>0,TEXT(P117,"mmm åååÅ")&" : "&TEXT(S117,"# ###")&" kr døgnsats x "&T117&" dag"&IF(T117>1,"er","")&IF(Q108=1,""," x "&Q108&" sats"),"-")) ->  | F117: =IF(Q103="nei","",IF(T117>0,U117,"")) ->  | O117: =+O116+1 -> 2 | P117: =EOMONTH(F111,-1+O116)+1 -> 1900-02-01 | Q117: =INDEX(Innstillinger!$B$28:$H$35,MATCH(YEAR('4 Egenandel'!P117),Innstillinger!$B$28:$B$35,0),MATCH('4 Egenandel'!F107,Innstillinger!$B$28:$H$28,0)) ->  | R117: 28 | T117: =IF(P117>F112,0,MIN(F112,EOMONTH(P117,0))-P117+1) -> 0 | U117: =ROUND(S117*T117,0)*Q108 ->  | Y117: Senter for foreldre og barn (døgnopphold på senter) | Z117: Tidsrommet flyktningen har utredning i tilskuddsperioden:
E118: =IF(Q103="nei","",IF(T118>0,TEXT(P118,"mmm åååÅ")&" : "&TEXT(S118,"# ###")&" kr døgnsats x "&T118&" dag"&IF(T118>1,"er","")&IF(Q108=1,""," x "&Q108&" sats"),"-")) ->  | F118: =IF(Q103="nei","",IF(T118>0,U118,"")) ->  | O118: =+O117+1 -> 3 | P118: =EOMONTH(F111,-1+O117)+1 -> 60 | Q118: =INDEX(Innstillinger!$B$28:$H$35,MATCH(YEAR('4 Egenandel'!P118),Innstillinger!$B$28:$B$35,0),MATCH('4 Egenandel'!F107,Innstillinger!$B$28:$H$28,0)) ->  | R118: 28 | T118: =IF(P118>F112,0,MIN(F112,EOMONTH(P118,0))-P118+1) -> 0 | U118: =ROUND(S118*T118,0)*Q108 ->  | Y118: Senter for foreldre og barn (hjemmebasert/poliklinisk) | Z118: Tidsrommet flyktningen har utredning i tilskuddsperioden:
E119: =IF(Q103="nei","",IF(T119>0,TEXT(P119,"mmm åååÅ")&" : "&TEXT(S119,"# ###")&" kr døgnsats x "&T119&" dag"&IF(T119>1,"er","")&IF(Q108=1,""," x "&Q108&" sats"),"-")) ->  | F119: =IF(Q103="nei","",IF(T119>0,U119,"")) ->  | O119: 4 | P119: =EOMONTH(F111,-1+O118)+1 -> 1900-04-01 | Q119: =INDEX(Innstillinger!$B$28:$H$35,MATCH(YEAR('4 Egenandel'!P119),Innstillinger!$B$28:$B$35,0),MATCH('4 Egenandel'!F107,Innstillinger!$B$28:$H$28,0)) ->  | R119: 30 | T119: =IF(P119>F112,0,MIN(F112,EOMONTH(P119,0))-P119+1) -> 0 | U119: =ROUND(S119*T119,0)*Q108 ->  | Y119: Beredskapshjem og spesialiserte fosterhjem (plassert 01.01.2022 eller etter) | Z119: Tidsrommet flyktningen har oppholdt seg i beredskapshjem/ fosterhjem i tilskuddsperioden:
E120: =IF(Q103="nei","",IF(T120>0,TEXT(P120,"mmm åååÅ")&" : "&TEXT(S120,"# ###")&" kr døgnsats x "&T120&" dag"&IF(T120>1,"er","")&IF(Q108=1,""," x "&Q108&" sats"),"-")) ->  | F120: =IF(Q103="nei","",IF(T120>0,U120,"")) ->  | O120: 5 | P120: =EOMONTH(F111,-1+O119)+1 -> 1900-05-01 | Q120: =INDEX(Innstillinger!$B$28:$H$35,MATCH(YEAR('4 Egenandel'!P120),Innstillinger!$B$28:$B$35,0),MATCH('4 Egenandel'!F107,Innstillinger!$B$28:$H$28,0)) ->  | R120: 31 | T120: =IF(P120>F112,0,MIN(F112,EOMONTH(P120,0))-P120+1) -> 0 | U120: =ROUND(S120*T120,0)*Q108 ->  | Y120: Beredskapshjem og spesialiserte fosterhjem (plassert 31.12.2021 eller før) | Z120: Tidsrommet flyktningen har oppholdt seg i beredskapshjem/ fosterhjem i tilskuddsperioden:
E121: =IF(Q103="nei","",IF(T121>0,TEXT(P121,"mmm åååÅ")&" : "&TEXT(S121,"# ###")&" kr døgnsats x "&T121&" dag"&IF(T121>1,"er","")&IF(Q108=1,""," x "&Q108&" sats"),"-")) ->  | F121: =IF(Q103="nei","",IF(T121>0,U121,"")) ->  | O121: 6 | P121: =EOMONTH(F111,-1+O120)+1 -> 1900-06-01 | Q121: =INDEX(Innstillinger!$B$28:$H$35,MATCH(YEAR('4 Egenandel'!P121),Innstillinger!$B$28:$B$35,0),MATCH('4 Egenandel'!F107,Innstillinger!$B$28:$H$28,0)) ->  | R121: 30 | T121: =IF(P121>F112,0,MIN(F112,EOMONTH(P121,0))-P121+1) -> 0 | U121: =ROUND(S121*T121,0)*Q108 ->  | Y121: MST (Multisystemisk terapi) / FFT (Funksjonell familieterapi) | Z121: Tiltaksperiode:
E122: =IF(Q103="nei","",IF(T122>0,TEXT(P122,"mmm åååÅ")&" : "&TEXT(S122,"# ###")&" kr døgnsats x "&T122&" dag"&IF(T122>1,"er","")&IF(Q108=1,""," x "&Q108&" sats"),"-")) ->  | F122: =IF(Q103="nei","",IF(T122>0,U122,"")) ->  | O122: 7 | P122: =EOMONTH(F111,-1+O121)+1 -> 1900-07-01 | Q122: =INDEX(Innstillinger!$B$28:$H$35,MATCH(YEAR('4 Egenandel'!P122),Innstillinger!$B$28:$B$35,0),MATCH('4 Egenandel'!F107,Innstillinger!$B$28:$H$28,0)) ->  | R122: 31 | T122: =IF(P122>F112,0,MIN(F112,EOMONTH(P122,0))-P122+1) -> 0 | U122: =ROUND(S122*T122,0)*Q108 -> 
E123: =IF(Q103="nei","",IF(T123>0,TEXT(P123,"mmm åååÅ")&" : "&TEXT(S123,"# ###")&" kr døgnsats x "&T123&" dag"&IF(T123>1,"er","")&IF(Q108=1,""," x "&Q108&" sats"),"-")) ->  | F123: =IF(Q103="nei","",IF(T123>0,U123,"")) ->  | O123: 8 | P123: =EOMONTH(F111,-1+O122)+1 -> 1900-08-01 | Q123: =INDEX(Innstillinger!$B$28:$H$35,MATCH(YEAR('4 Egenandel'!P123),Innstillinger!$B$28:$B$35,0),MATCH('4 Egenandel'!F107,Innstillinger!$B$28:$H$28,0)) ->  | R123: 31 | T123: =IF(P123>F112,0,MIN(F112,EOMONTH(P123,0))-P123+1) -> 0 | U123: =ROUND(S123*T123,0)*Q108 -> 
E124: =IF(Q103="nei","",IF(T124>0,TEXT(P124,"mmm åååÅ")&" : "&TEXT(S124,"# ###")&" kr døgnsats x "&T124&" dag"&IF(T124>1,"er","")&IF(Q108=1,""," x "&Q108&" sats"),"-")) ->  | F124: =IF(Q103="nei","",IF(T124>0,U124,"")) ->  | O124: 9 | P124: =EOMONTH(F111,-1+O123)+1 -> 1900-09-01 | Q124: =INDEX(Innstillinger!$B$28:$H$35,MATCH(YEAR('4 Egenandel'!P124),Innstillinger!$B$28:$B$35,0),MATCH('4 Egenandel'!F107,Innstillinger!$B$28:$H$28,0)) ->  | R124: 30 | T124: =IF(P124>F112,0,MIN(F112,EOMONTH(P124,0))-P124+1) -> 0 | U124: =ROUND(S124*T124,0)*Q108 -> 
E125: =IF(Q103="nei","",IF(T125>0,TEXT(P125,"mmm åååÅ")&" : "&TEXT(S125,"# ###")&" kr døgnsats x "&T125&" dag"&IF(T125>1,"er","")&IF(Q108=1,""," x "&Q108&" sats"),"-")) ->  | F125: =IF(Q103="nei","",IF(T125>0,U125,"")) ->  | O125: 10 | P125: =EOMONTH(F111,-1+O124)+1 -> 1900-10-01 | Q125: =INDEX(Innstillinger!$B$28:$H$35,MATCH(YEAR('4 Egenandel'!P125),Innstillinger!$B$28:$B$35,0),MATCH('4 Egenandel'!F107,Innstillinger!$B$28:$H$28,0)) ->  | R125: 31 | T125: =IF(P125>F112,0,MIN(F112,EOMONTH(P125,0))-P125+1) -> 0 | U125: =ROUND(S125*T125,0)*Q108 -> 
E126: =IF(Q103="nei","",IF(T126>0,TEXT(P126,"mmm åååÅ")&" : "&TEXT(S126,"# ###")&" kr døgnsats x "&T126&" dag"&IF(T126>1,"er","")&IF(Q108=1,""," x "&Q108&" sats"),"-")) ->  | F126: =IF(Q103="nei","",IF(T126>0,U126,"")) ->  | O126: 11 | P126: =EOMONTH(F111,-1+O125)+1 -> 1900-11-01 | Q126: =INDEX(Innstillinger!$B$28:$H$35,MATCH(YEAR('4 Egenandel'!P126),Innstillinger!$B$28:$B$35,0),MATCH('4 Egenandel'!F107,Innstillinger!$B$28:$H$28,0)) ->  | R126: 30 | T126: =IF(P126>F112,0,MIN(F112,EOMONTH(P126,0))-P126+1) -> 0 | U126: =ROUND(S126*T126,0)*Q108 -> 
E127: =IF(Q103="nei","",IF(T127>0,TEXT(P127,"mmm åååÅ")&" : "&TEXT(S127,"# ###")&" kr døgnsats x "&T127&" dag"&IF(T127>1,"er","")&IF(Q108=1,""," x "&Q108&" sats"),"-")) ->  | F127: =IF(Q103="nei","",IF(T127>0,U127,"")) ->  | O127: 12 | P127: =EOMONTH(F111,-1+O126)+1 -> 1900-12-01 | Q127: =INDEX(Innstillinger!$B$28:$H$35,MATCH(YEAR('4 Egenandel'!P127),Innstillinger!$B$28:$B$35,0),MATCH('4 Egenandel'!F107,Innstillinger!$B$28:$H$28,0)) ->  | R127: 31 | T127: =IF(P127>F112,0,MIN(F112,EOMONTH(P127,0))-P127+1) -> 0 | U127: =ROUND(S127*T127,0)*Q108 -> 
E128: =IF(Q103="nei","",IF(T128>0,TEXT(P128,"mmm åååÅ")&" : "&TEXT(S128,"# ###")&" kr døgnsats x "&T128&" dag"&IF(T128>1,"er","")&IF(Q108=1,""," x "&Q108&" sats"),"-")) ->  | F128: =IF(Q103="nei","",IF(T128>0,U128,"")) ->  | O128: 13 | P128: =EOMONTH(F111,-1+O127)+1 -> 1901-01-01 | Q128: =INDEX(Innstillinger!$B$28:$H$35,MATCH(YEAR('4 Egenandel'!P128),Innstillinger!$B$28:$B$35,0),MATCH('4 Egenandel'!F107,Innstillinger!$B$28:$H$28,0)) ->  | R128: 31 | T128: =IF(P128>F112,0,MIN(F112,EOMONTH(P128,0))-P128+1) -> 0 | U128: =ROUND(S128*T128,0)*Q108 -> 
E131: Totalkostnad | F131: =IF(Q103="nei","",SUMPRODUCT(S116:S128,T116:T128)) ->  | P131: =E131 -> Totalkostnad | U131: =IF(Q103="NEI","",SUMPRODUCT(S116:S128,T116:T128)) -> 
E134: =IF(E135="","Skriv kommentar:","") -> Skriv kommentar:
D142: Navn og rolle - ansvarlig for kostnadsberegningen | I142: Sted | J142: Dato
P148: Vis beregningen? | Q148: =IF(I152&I156&I157&I153="","ja","nei") -> nei
E149: Egenandel #4 | P149: Felt | Q149: Verdi | R149: Kommentar
E152: Tiltak: | F152: Velg fra liste…. | G152: i | I152: =R152 -> *obligatorisk | P152: =IF(OR(F152="",F152=$Y$25),"-",F152) -> - | R152: =IF(F152="",$Q$8,IF(F152=$Y$25,$Q$8,"")) -> *obligatorisk
E153: Hvis "senter for foreldre og barn", antall personer med opphold: | F153: Velg fra liste… | G153: i | I153: =R153 ->  | P153: =F153 -> Velg fra liste… | Q153: =IF(T153="ja",_xlfn.XLOOKUP(P153,$V$5:$V$8,$U$5:$U$8,1),1) -> 1 | R153: =IF(AND(T153="ja",Q153=0),$Q$8,"") ->  | S153: "Senter for foreldre og barn"? | T153: =IF(LEN(P152)-LEN(SUBSTITUTE(P152,"Senter",""))=0,"Nei","Ja") -> Nei
E155: =_xlfn.XLOOKUP(F152,$Y$25:$Y$31,$Z$25:$Z$31,$Z$25) -> Tiltaksperiode: | P155: =E155 -> Tiltaksperiode:
E156: fra: (dd.mm.åååå) | G156: i | I156: =R156 -> *obligatorisk | P156: =E156 -> fra: (dd.mm.åååå) | R156: =IF(F156="",$Q$8,"") -> *obligatorisk
E157: til: (dd.mm.åååå) | G157: i | I157: =R157 -> *obligatorisk | P157: =E157 -> til: (dd.mm.åååå) | R157: =IF(F157="",$Q$8,IF(F156>F157,$Q$7,IF(AND(F157>=EDATE(F156,12),F156<>""),$Q$6,""))) -> *obligatorisk
P160: start dato | Q160: hel sats | R160: hel måned | S160: dalgig sats | T160: antall dager | U160: kostnad | Y160: Velg fra liste…. | Z160: Tiltaksperiode:
E161: =IF(Q148="nei","",IF(T161>0,TEXT(P161,"mmm åååÅ")&" : "&TEXT(S161,"# ###")&" kr døgnsats x "&T161&" dag"&IF(T161>1,"er","")&IF(Q153=1,""," x "&Q153&" sats"),"-")) ->  | F161: =IF(Q148="nei","",IF(T161>0,U161,"")) ->  | O161: 1 | P161: =F156 -> 00:00:00 | Q161: =INDEX(Innstillinger!$B$28:$H$35,MATCH(YEAR('4 Egenandel'!P161),Innstillinger!$B$28:$B$35,0),MATCH('4 Egenandel'!F152,Innstillinger!$B$28:$H$28,0)) ->  | R161: =DAY(EOMONTH(P161,0)) -> 31 | S161: =Q161/R161 ->  | T161: =IF(P161>F157,0,MIN(F157,EOMONTH(P161,0))-P161+1) -> 32 | U161: =ROUND(S161*T161,0)*Q153 ->  | Y161: Barnevernsinstitusjoner | Z161: Tidsrommet flyktningen har oppholdt seg på institusjonen i tilskuddsperioden:
E162: =IF(Q148="nei","",IF(T162>0,TEXT(P162,"mmm åååÅ")&" : "&TEXT(S162,"# ###")&" kr døgnsats x "&T162&" dag"&IF(T162>1,"er","")&IF(Q153=1,""," x "&Q153&" sats"),"-")) ->  | F162: =IF(Q148="nei","",IF(T162>0,U162,"")) ->  | O162: =+O161+1 -> 2 | P162: =EOMONTH(F156,-1+O161)+1 -> 1900-02-01 | Q162: =INDEX(Innstillinger!$B$28:$H$35,MATCH(YEAR('4 Egenandel'!P162),Innstillinger!$B$28:$B$35,0),MATCH('4 Egenandel'!F152,Innstillinger!$B$28:$H$28,0)) ->  | R162: 28 | T162: =IF(P162>F157,0,MIN(F157,EOMONTH(P162,0))-P162+1) -> 0 | U162: =ROUND(S162*T162,0)*Q153 ->  | Y162: Senter for foreldre og barn (døgnopphold på senter) | Z162: Tidsrommet flyktningen har utredning i tilskuddsperioden:
E163: =IF(Q148="nei","",IF(T163>0,TEXT(P163,"mmm åååÅ")&" : "&TEXT(S163,"# ###")&" kr døgnsats x "&T163&" dag"&IF(T163>1,"er","")&IF(Q153=1,""," x "&Q153&" sats"),"-")) ->  | F163: =IF(Q148="nei","",IF(T163>0,U163,"")) ->  | O163: =+O162+1 -> 3 | P163: =EOMONTH(F156,-1+O162)+1 -> 60 | Q163: =INDEX(Innstillinger!$B$28:$H$35,MATCH(YEAR('4 Egenandel'!P163),Innstillinger!$B$28:$B$35,0),MATCH('4 Egenandel'!F152,Innstillinger!$B$28:$H$28,0)) ->  | R163: 28 | T163: =IF(P163>F157,0,MIN(F157,EOMONTH(P163,0))-P163+1) -> 0 | U163: =ROUND(S163*T163,0)*Q153 ->  | Y163: Senter for foreldre og barn (hjemmebasert/poliklinisk) | Z163: Tidsrommet flyktningen har utredning i tilskuddsperioden:
E164: =IF(Q148="nei","",IF(T164>0,TEXT(P164,"mmm åååÅ")&" : "&TEXT(S164,"# ###")&" kr døgnsats x "&T164&" dag"&IF(T164>1,"er","")&IF(Q153=1,""," x "&Q153&" sats"),"-")) ->  | F164: =IF(Q148="nei","",IF(T164>0,U164,"")) ->  | O164: 4 | P164: =EOMONTH(F156,-1+O163)+1 -> 1900-04-01 | Q164: =INDEX(Innstillinger!$B$28:$H$35,MATCH(YEAR('4 Egenandel'!P164),Innstillinger!$B$28:$B$35,0),MATCH('4 Egenandel'!F152,Innstillinger!$B$28:$H$28,0)) ->  | R164: 30 | T164: =IF(P164>F157,0,MIN(F157,EOMONTH(P164,0))-P164+1) -> 0 | U164: =ROUND(S164*T164,0)*Q153 ->  | Y164: Beredskapshjem og spesialiserte fosterhjem (plassert 01.01.2022 eller etter) | Z164: Tidsrommet flyktningen har oppholdt seg i beredskapshjem/ fosterhjem i tilskuddsperioden:
E165: =IF(Q148="nei","",IF(T165>0,TEXT(P165,"mmm åååÅ")&" : "&TEXT(S165,"# ###")&" kr døgnsats x "&T165&" dag"&IF(T165>1,"er","")&IF(Q153=1,""," x "&Q153&" sats"),"-")) ->  | F165: =IF(Q148="nei","",IF(T165>0,U165,"")) ->  | O165: 5 | P165: =EOMONTH(F156,-1+O164)+1 -> 1900-05-01 | Q165: =INDEX(Innstillinger!$B$28:$H$35,MATCH(YEAR('4 Egenandel'!P165),Innstillinger!$B$28:$B$35,0),MATCH('4 Egenandel'!F152,Innstillinger!$B$28:$H$28,0)) ->  | R165: 31 | T165: =IF(P165>F157,0,MIN(F157,EOMONTH(P165,0))-P165+1) -> 0 | U165: =ROUND(S165*T165,0)*Q153 ->  | Y165: Beredskapshjem og spesialiserte fosterhjem (plassert 31.12.2021 eller før) | Z165: Tidsrommet flyktningen har oppholdt seg i beredskapshjem/ fosterhjem i tilskuddsperioden:
E166: =IF(Q148="nei","",IF(T166>0,TEXT(P166,"mmm åååÅ")&" : "&TEXT(S166,"# ###")&" kr døgnsats x "&T166&" dag"&IF(T166>1,"er","")&IF(Q153=1,""," x "&Q153&" sats"),"-")) ->  | F166: =IF(Q148="nei","",IF(T166>0,U166,"")) ->  | O166: 6 | P166: =EOMONTH(F156,-1+O165)+1 -> 1900-06-01 | Q166: =INDEX(Innstillinger!$B$28:$H$35,MATCH(YEAR('4 Egenandel'!P166),Innstillinger!$B$28:$B$35,0),MATCH('4 Egenandel'!F152,Innstillinger!$B$28:$H$28,0)) ->  | R166: 30 | T166: =IF(P166>F157,0,MIN(F157,EOMONTH(P166,0))-P166+1) -> 0 | U166: =ROUND(S166*T166,0)*Q153 ->  | Y166: MST (Multisystemisk terapi) / FFT (Funksjonell familieterapi) | Z166: Tiltaksperiode:
E167: =IF(Q148="nei","",IF(T167>0,TEXT(P167,"mmm åååÅ")&" : "&TEXT(S167,"# ###")&" kr døgnsats x "&T167&" dag"&IF(T167>1,"er","")&IF(Q153=1,""," x "&Q153&" sats"),"-")) ->  | F167: =IF(Q148="nei","",IF(T167>0,U167,"")) ->  | O167: 7 | P167: =EOMONTH(F156,-1+O166)+1 -> 1900-07-01 | Q167: =INDEX(Innstillinger!$B$28:$H$35,MATCH(YEAR('4 Egenandel'!P167),Innstillinger!$B$28:$B$35,0),MATCH('4 Egenandel'!F152,Innstillinger!$B$28:$H$28,0)) ->  | R167: 31 | T167: =IF(P167>F157,0,MIN(F157,EOMONTH(P167,0))-P167+1) -> 0 | U167: =ROUND(S167*T167,0)*Q153 -> 
E168: =IF(Q148="nei","",IF(T168>0,TEXT(P168,"mmm åååÅ")&" : "&TEXT(S168,"# ###")&" kr døgnsats x "&T168&" dag"&IF(T168>1,"er","")&IF(Q153=1,""," x "&Q153&" sats"),"-")) ->  | F168: =IF(Q148="nei","",IF(T168>0,U168,"")) ->  | O168: 8 | P168: =EOMONTH(F156,-1+O167)+1 -> 1900-08-01 | Q168: =INDEX(Innstillinger!$B$28:$H$35,MATCH(YEAR('4 Egenandel'!P168),Innstillinger!$B$28:$B$35,0),MATCH('4 Egenandel'!F152,Innstillinger!$B$28:$H$28,0)) ->  | R168: 31 | T168: =IF(P168>F157,0,MIN(F157,EOMONTH(P168,0))-P168+1) -> 0 | U168: =ROUND(S168*T168,0)*Q153 -> 
E169: =IF(Q148="nei","",IF(T169>0,TEXT(P169,"mmm åååÅ")&" : "&TEXT(S169,"# ###")&" kr døgnsats x "&T169&" dag"&IF(T169>1,"er","")&IF(Q153=1,""," x "&Q153&" sats"),"-")) ->  | F169: =IF(Q148="nei","",IF(T169>0,U169,"")) ->  | O169: 9 | P169: =EOMONTH(F156,-1+O168)+1 -> 1900-09-01 | Q169: =INDEX(Innstillinger!$B$28:$H$35,MATCH(YEAR('4 Egenandel'!P169),Innstillinger!$B$28:$B$35,0),MATCH('4 Egenandel'!F152,Innstillinger!$B$28:$H$28,0)) ->  | R169: 30 | T169: =IF(P169>F157,0,MIN(F157,EOMONTH(P169,0))-P169+1) -> 0 | U169: =ROUND(S169*T169,0)*Q153 -> 
E170: =IF(Q148="nei","",IF(T170>0,TEXT(P170,"mmm åååÅ")&" : "&TEXT(S170,"# ###")&" kr døgnsats x "&T170&" dag"&IF(T170>1,"er","")&IF(Q153=1,""," x "&Q153&" sats"),"-")) ->  | F170: =IF(Q148="nei","",IF(T170>0,U170,"")) ->  | O170: 10 | P170: =EOMONTH(F156,-1+O169)+1 -> 1900-10-01 | Q170: =INDEX(Innstillinger!$B$28:$H$35,MATCH(YEAR('4 Egenandel'!P170),Innstillinger!$B$28:$B$35,0),MATCH('4 Egenandel'!F152,Innstillinger!$B$28:$H$28,0)) ->  | R170: 31 | T170: =IF(P170>F157,0,MIN(F157,EOMONTH(P170,0))-P170+1) -> 0 | U170: =ROUND(S170*T170,0)*Q153 -> 
E171: =IF(Q148="nei","",IF(T171>0,TEXT(P171,"mmm åååÅ")&" : "&TEXT(S171,"# ###")&" kr døgnsats x "&T171&" dag"&IF(T171>1,"er","")&IF(Q153=1,""," x "&Q153&" sats"),"-")) ->  | F171: =IF(Q148="nei","",IF(T171>0,U171,"")) ->  | O171: 11 | P171: =EOMONTH(F156,-1+O170)+1 -> 1900-11-01 | Q171: =INDEX(Innstillinger!$B$28:$H$35,MATCH(YEAR('4 Egenandel'!P171),Innstillinger!$B$28:$B$35,0),MATCH('4 Egenandel'!F152,Innstillinger!$B$28:$H$28,0)) ->  | R171: 30 | T171: =IF(P171>F157,0,MIN(F157,EOMONTH(P171,0))-P171+1) -> 0 | U171: =ROUND(S171*T171,0)*Q153 -> 
E172: =IF(Q148="nei","",IF(T172>0,TEXT(P172,"mmm åååÅ")&" : "&TEXT(S172,"# ###")&" kr døgnsats x "&T172&" dag"&IF(T172>1,"er","")&IF(Q153=1,""," x "&Q153&" sats"),"-")) ->  | F172: =IF(Q148="nei","",IF(T172>0,U172,"")) ->  | O172: 12 | P172: =EOMONTH(F156,-1+O171)+1 -> 1900-12-01 | Q172: =INDEX(Innstillinger!$B$28:$H$35,MATCH(YEAR('4 Egenandel'!P172),Innstillinger!$B$28:$B$35,0),MATCH('4 Egenandel'!F152,Innstillinger!$B$28:$H$28,0)) ->  | R172: 31 | T172: =IF(P172>F157,0,MIN(F157,EOMONTH(P172,0))-P172+1) -> 0 | U172: =ROUND(S172*T172,0)*Q153 -> 
E173: =IF(Q148="nei","",IF(T173>0,TEXT(P173,"mmm åååÅ")&" : "&TEXT(S173,"# ###")&" kr døgnsats x "&T173&" dag"&IF(T173>1,"er","")&IF(Q153=1,""," x "&Q153&" sats"),"-")) ->  | F173: =IF(Q148="nei","",IF(T173>0,U173,"")) ->  | O173: 13 | P173: =EOMONTH(F156,-1+O172)+1 -> 1901-01-01 | Q173: =INDEX(Innstillinger!$B$28:$H$35,MATCH(YEAR('4 Egenandel'!P173),Innstillinger!$B$28:$B$35,0),MATCH('4 Egenandel'!F152,Innstillinger!$B$28:$H$28,0)) ->  | R173: 31 | T173: =IF(P173>F157,0,MIN(F157,EOMONTH(P173,0))-P173+1) -> 0 | U173: =ROUND(S173*T173,0)*Q153 -> 
E176: Totalkostnad | F176: =IF(Q148="nei","",SUMPRODUCT(S161:S173,T161:T173)) ->  | P176: =E176 -> Totalkostnad | U176: =IF(Q148="NEI","",SUMPRODUCT(S161:S173,T161:T173)) -> 
E179: =IF(E180="","Skriv kommentar:","") -> Skriv kommentar:
D187: Navn og rolle - ansvarlig for kostnadsberegningen | I187: Sted | J187: Dato
P193: Vis beregningen? | Q193: =IF(I197&I201&I202&I198="","ja","nei") -> nei
E194: Egenandel #5 | P194: Felt | Q194: Verdi | R194: Kommentar
E197: Tiltak: | F197: Velg fra liste…. | G197: i | I197: =R197 -> *obligatorisk | P197: =IF(OR(F197="",F197=$Y$25),"-",F197) -> - | R197: =IF(F197="",$Q$8,IF(F197=$Y$25,$Q$8,"")) -> *obligatorisk
E198: Hvis "senter for foreldre og barn", antall personer med opphold: | F198: Velg fra liste… | G198: i | I198: =R198 ->  | P198: =F198 -> Velg fra liste… | Q198: =IF(T198="ja",_xlfn.XLOOKUP(P198,$V$5:$V$8,$U$5:$U$8,1),1) -> 1 | R198: =IF(AND(T198="ja",Q198=0),$Q$8,"") ->  | S198: "Senter for foreldre og barn"? | T198: =IF(LEN(P197)-LEN(SUBSTITUTE(P197,"Senter",""))=0,"Nei","Ja") -> Nei
E200: =_xlfn.XLOOKUP(F197,$Y$25:$Y$31,$Z$25:$Z$31,$Z$25) -> Tiltaksperiode: | P200: =E200 -> Tiltaksperiode:
E201: fra: (dd.mm.åååå) | G201: i | I201: =R201 -> *obligatorisk | P201: =E201 -> fra: (dd.mm.åååå) | R201: =IF(F201="",$Q$8,"") -> *obligatorisk
E202: til: (dd.mm.åååå) | G202: i | I202: =R202 -> *obligatorisk | P202: =E202 -> til: (dd.mm.åååå) | R202: =IF(F202="",$Q$8,IF(F201>F202,$Q$7,IF(AND(F202>=EDATE(F201,12),F201<>""),$Q$6,""))) -> *obligatorisk
P205: start dato | Q205: hel sats | R205: hel måned | S205: dalgig sats | T205: antall dager | U205: kostnad | Y205: Velg fra liste…. | Z205: Tiltaksperiode:
E206: =IF(Q193="nei","",IF(T206>0,TEXT(P206,"mmm åååÅ")&" : "&TEXT(S206,"# ###")&" kr døgnsats x "&T206&" dag"&IF(T206>1,"er","")&IF(Q198=1,""," x "&Q198&" sats"),"-")) ->  | F206: =IF(Q193="nei","",IF(T206>0,U206,"")) ->  | O206: 1 | P206: =F201 -> 00:00:00 | Q206: =INDEX(Innstillinger!$B$28:$H$35,MATCH(YEAR('4 Egenandel'!P206),Innstillinger!$B$28:$B$35,0),MATCH('4 Egenandel'!F197,Innstillinger!$B$28:$H$28,0)) ->  | R206: =DAY(EOMONTH(P206,0)) -> 31 | S206: =Q206/R206 ->  | T206: =IF(P206>F202,0,MIN(F202,EOMONTH(P206,0))-P206+1) -> 32 | U206: =ROUND(S206*T206,0)*Q198 ->  | Y206: Barnevernsinstitusjoner | Z206: Tidsrommet flyktningen har oppholdt seg på institusjonen i tilskuddsperioden:
E207: =IF(Q193="nei","",IF(T207>0,TEXT(P207,"mmm åååÅ")&" : "&TEXT(S207,"# ###")&" kr døgnsats x "&T207&" dag"&IF(T207>1,"er","")&IF(Q198=1,""," x "&Q198&" sats"),"-")) ->  | F207: =IF(Q193="nei","",IF(T207>0,U207,"")) ->  | O207: =+O206+1 -> 2 | P207: =EOMONTH(F201,-1+O206)+1 -> 1900-02-01 | Q207: =INDEX(Innstillinger!$B$28:$H$35,MATCH(YEAR('4 Egenandel'!P207),Innstillinger!$B$28:$B$35,0),MATCH('4 Egenandel'!F197,Innstillinger!$B$28:$H$28,0)) ->  | R207: 28 | T207: =IF(P207>F202,0,MIN(F202,EOMONTH(P207,0))-P207+1) -> 0 | U207: =ROUND(S207*T207,0)*Q198 ->  | Y207: Senter for foreldre og barn (døgnopphold på senter) | Z207: Tidsrommet flyktningen har utredning i tilskuddsperioden:
E208: =IF(Q193="nei","",IF(T208>0,TEXT(P208,"mmm åååÅ")&" : "&TEXT(S208,"# ###")&" kr døgnsats x "&T208&" dag"&IF(T208>1,"er","")&IF(Q198=1,""," x "&Q198&" sats"),"-")) ->  | F208: =IF(Q193="nei","",IF(T208>0,U208,"")) ->  | O208: =+O207+1 -> 3 | P208: =EOMONTH(F201,-1+O207)+1 -> 60 | Q208: =INDEX(Innstillinger!$B$28:$H$35,MATCH(YEAR('4 Egenandel'!P208),Innstillinger!$B$28:$B$35,0),MATCH('4 Egenandel'!F197,Innstillinger!$B$28:$H$28,0)) ->  | R208: 28 | T208: =IF(P208>F202,0,MIN(F202,EOMONTH(P208,0))-P208+1) -> 0 | U208: =ROUND(S208*T208,0)*Q198 ->  | Y208: Senter for foreldre og barn (hjemmebasert/poliklinisk) | Z208: Tidsrommet flyktningen har utredning i tilskuddsperioden:
E209: =IF(Q193="nei","",IF(T209>0,TEXT(P209,"mmm åååÅ")&" : "&TEXT(S209,"# ###")&" kr døgnsats x "&T209&" dag"&IF(T209>1,"er","")&IF(Q198=1,""," x "&Q198&" sats"),"-")) ->  | F209: =IF(Q193="nei","",IF(T209>0,U209,"")) ->  | O209: 4 | P209: =EOMONTH(F201,-1+O208)+1 -> 1900-04-01 | Q209: =INDEX(Innstillinger!$B$28:$H$35,MATCH(YEAR('4 Egenandel'!P209),Innstillinger!$B$28:$B$35,0),MATCH('4 Egenandel'!F197,Innstillinger!$B$28:$H$28,0)) ->  | R209: 30 | T209: =IF(P209>F202,0,MIN(F202,EOMONTH(P209,0))-P209+1) -> 0 | U209: =ROUND(S209*T209,0)*Q198 ->  | Y209: Beredskapshjem og spesialiserte fosterhjem (plassert 01.01.2022 eller etter) | Z209: Tidsrommet flyktningen har oppholdt seg i beredskapshjem/ fosterhjem i tilskuddsperioden:
E210: =IF(Q193="nei","",IF(T210>0,TEXT(P210,"mmm åååÅ")&" : "&TEXT(S210,"# ###")&" kr døgnsats x "&T210&" dag"&IF(T210>1,"er","")&IF(Q198=1,""," x "&Q198&" sats"),"-")) ->  | F210: =IF(Q193="nei","",IF(T210>0,U210,"")) ->  | O210: 5 | P210: =EOMONTH(F201,-1+O209)+1 -> 1900-05-01 | Q210: =INDEX(Innstillinger!$B$28:$H$35,MATCH(YEAR('4 Egenandel'!P210),Innstillinger!$B$28:$B$35,0),MATCH('4 Egenandel'!F197,Innstillinger!$B$28:$H$28,0)) ->  | R210: 31 | T210: =IF(P210>F202,0,MIN(F202,EOMONTH(P210,0))-P210+1) -> 0 | U210: =ROUND(S210*T210,0)*Q198 ->  | Y210: Beredskapshjem og spesialiserte fosterhjem (plassert 31.12.2021 eller før) | Z210: Tidsrommet flyktningen har oppholdt seg i beredskapshjem/ fosterhjem i tilskuddsperioden:
E211: =IF(Q193="nei","",IF(T211>0,TEXT(P211,"mmm åååÅ")&" : "&TEXT(S211,"# ###")&" kr døgnsats x "&T211&" dag"&IF(T211>1,"er","")&IF(Q198=1,""," x "&Q198&" sats"),"-")) ->  | F211: =IF(Q193="nei","",IF(T211>0,U211,"")) ->  | O211: 6 | P211: =EOMONTH(F201,-1+O210)+1 -> 1900-06-01 | Q211: =INDEX(Innstillinger!$B$28:$H$35,MATCH(YEAR('4 Egenandel'!P211),Innstillinger!$B$28:$B$35,0),MATCH('4 Egenandel'!F197,Innstillinger!$B$28:$H$28,0)) ->  | R211: 30 | T211: =IF(P211>F202,0,MIN(F202,EOMONTH(P211,0))-P211+1) -> 0 | U211: =ROUND(S211*T211,0)*Q198 ->  | Y211: MST (Multisystemisk terapi) / FFT (Funksjonell familieterapi) | Z211: Tiltaksperiode:
E212: =IF(Q193="nei","",IF(T212>0,TEXT(P212,"mmm åååÅ")&" : "&TEXT(S212,"# ###")&" kr døgnsats x "&T212&" dag"&IF(T212>1,"er","")&IF(Q198=1,""," x "&Q198&" sats"),"-")) ->  | F212: =IF(Q193="nei","",IF(T212>0,U212,"")) ->  | O212: 7 | P212: =EOMONTH(F201,-1+O211)+1 -> 1900-07-01 | Q212: =INDEX(Innstillinger!$B$28:$H$35,MATCH(YEAR('4 Egenandel'!P212),Innstillinger!$B$28:$B$35,0),MATCH('4 Egenandel'!F197,Innstillinger!$B$28:$H$28,0)) ->  | R212: 31 | T212: =IF(P212>F202,0,MIN(F202,EOMONTH(P212,0))-P212+1) -> 0 | U212: =ROUND(S212*T212,0)*Q198 -> 
E213: =IF(Q193="nei","",IF(T213>0,TEXT(P213,"mmm åååÅ")&" : "&TEXT(S213,"# ###")&" kr døgnsats x "&T213&" dag"&IF(T213>1,"er","")&IF(Q198=1,""," x "&Q198&" sats"),"-")) ->  | F213: =IF(Q193="nei","",IF(T213>0,U213,"")) ->  | O213: 8 | P213: =EOMONTH(F201,-1+O212)+1 -> 1900-08-01 | Q213: =INDEX(Innstillinger!$B$28:$H$35,MATCH(YEAR('4 Egenandel'!P213),Innstillinger!$B$28:$B$35,0),MATCH('4 Egenandel'!F197,Innstillinger!$B$28:$H$28,0)) ->  | R213: 31 | T213: =IF(P213>F202,0,MIN(F202,EOMONTH(P213,0))-P213+1) -> 0 | U213: =ROUND(S213*T213,0)*Q198 -> 
E214: =IF(Q193="nei","",IF(T214>0,TEXT(P214,"mmm åååÅ")&" : "&TEXT(S214,"# ###")&" kr døgnsats x "&T214&" dag"&IF(T214>1,"er","")&IF(Q198=1,""," x "&Q198&" sats"),"-")) ->  | F214: =IF(Q193="nei","",IF(T214>0,U214,"")) ->  | O214: 9 | P214: =EOMONTH(F201,-1+O213)+1 -> 1900-09-01 | Q214: =INDEX(Innstillinger!$B$28:$H$35,MATCH(YEAR('4 Egenandel'!P214),Innstillinger!$B$28:$B$35,0),MATCH('4 Egenandel'!F197,Innstillinger!$B$28:$H$28,0)) ->  | R214: 30 | T214: =IF(P214>F202,0,MIN(F202,EOMONTH(P214,0))-P214+1) -> 0 | U214: =ROUND(S214*T214,0)*Q198 -> 
E215: =IF(Q193="nei","",IF(T215>0,TEXT(P215,"mmm åååÅ")&" : "&TEXT(S215,"# ###")&" kr døgnsats x "&T215&" dag"&IF(T215>1,"er","")&IF(Q198=1,""," x "&Q198&" sats"),"-")) ->  | F215: =IF(Q193="nei","",IF(T215>0,U215,"")) ->  | O215: 10 | P215: =EOMONTH(F201,-1+O214)+1 -> 1900-10-01 | Q215: =INDEX(Innstillinger!$B$28:$H$35,MATCH(YEAR('4 Egenandel'!P215),Innstillinger!$B$28:$B$35,0),MATCH('4 Egenandel'!F197,Innstillinger!$B$28:$H$28,0)) ->  | R215: 31 | T215: =IF(P215>F202,0,MIN(F202,EOMONTH(P215,0))-P215+1) -> 0 | U215: =ROUND(S215*T215,0)*Q198 -> 
E216: =IF(Q193="nei","",IF(T216>0,TEXT(P216,"mmm åååÅ")&" : "&TEXT(S216,"# ###")&" kr døgnsats x "&T216&" dag"&IF(T216>1,"er","")&IF(Q198=1,""," x "&Q198&" sats"),"-")) ->  | F216: =IF(Q193="nei","",IF(T216>0,U216,"")) ->  | O216: 11 | P216: =EOMONTH(F201,-1+O215)+1 -> 1900-11-01 | Q216: =INDEX(Innstillinger!$B$28:$H$35,MATCH(YEAR('4 Egenandel'!P216),Innstillinger!$B$28:$B$35,0),MATCH('4 Egenandel'!F197,Innstillinger!$B$28:$H$28,0)) ->  | R216: 30 | T216: =IF(P216>F202,0,MIN(F202,EOMONTH(P216,0))-P216+1) -> 0 | U216: =ROUND(S216*T216,0)*Q198 -> 
E217: =IF(Q193="nei","",IF(T217>0,TEXT(P217,"mmm åååÅ")&" : "&TEXT(S217,"# ###")&" kr døgnsats x "&T217&" dag"&IF(T217>1,"er","")&IF(Q198=1,""," x "&Q198&" sats"),"-")) ->  | F217: =IF(Q193="nei","",IF(T217>0,U217,"")) ->  | O217: 12 | P217: =EOMONTH(F201,-1+O216)+1 -> 1900-12-01 | Q217: =INDEX(Innstillinger!$B$28:$H$35,MATCH(YEAR('4 Egenandel'!P217),Innstillinger!$B$28:$B$35,0),MATCH('4 Egenandel'!F197,Innstillinger!$B$28:$H$28,0)) ->  | R217: 31 | T217: =IF(P217>F202,0,MIN(F202,EOMONTH(P217,0))-P217+1) -> 0 | U217: =ROUND(S217*T217,0)*Q198 -> 
E218: =IF(Q193="nei","",IF(T218>0,TEXT(P218,"mmm åååÅ")&" : "&TEXT(S218,"# ###")&" kr døgnsats x "&T218&" dag"&IF(T218>1,"er","")&IF(Q198=1,""," x "&Q198&" sats"),"-")) ->  | F218: =IF(Q193="nei","",IF(T218>0,U218,"")) ->  | O218: 13 | P218: =EOMONTH(F201,-1+O217)+1 -> 1901-01-01 | Q218: =INDEX(Innstillinger!$B$28:$H$35,MATCH(YEAR('4 Egenandel'!P218),Innstillinger!$B$28:$B$35,0),MATCH('4 Egenandel'!F197,Innstillinger!$B$28:$H$28,0)) ->  | R218: 31 | T218: =IF(P218>F202,0,MIN(F202,EOMONTH(P218,0))-P218+1) -> 0 | U218: =ROUND(S218*T218,0)*Q198 -> 
E221: Totalkostnad | F221: =IF(Q193="nei","",SUMPRODUCT(S206:S218,T206:T218)) ->  | P221: =E221 -> Totalkostnad | U221: =IF(Q193="NEI","",SUMPRODUCT(S206:S218,T206:T218)) -> 
E224: =IF(E225="","Skriv kommentar:","") -> Skriv kommentar:
D232: Navn og rolle - ansvarlig for kostnadsberegningen | I232: Sted | J232: Dato

Sheet 5 Fakturabaserte kostnader
C2: 5 | E2: Fakturabaserte kostnader | K2: ='1 Lønn'!K2 -> (ver. 3.4)
E3: ="- som lønn til privat psykolog og fysioterapeut, privat tolk og transport" -> - som lønn til privat psykolog og fysioterapeut, privat tolk og transport
E6: Dekkes av ekstratilskuddet: | H6: Dekkes ikke av ekstratilskuddet:
E7: þDirekte oppfølgingstid: Lønn for den tiden den ansatte har direkte oppfølging med flyktningen, altså "ansikt-til-ansikt" þTolkeutgifter: når tolken har blitt brukt i andre tiltak det søkes om ekstratilskudd til þTransport til og fra barnehage eller skole: som ikke dekkes av fylkeskommunen. I saker der flyktningen har vedtak om spesialundervisning, er hovedregelen at fylkeskommunen dekker kostnader til transport til og fra skole og barnehage. þKommunens egenandel til: transport til og fra barnehage eller skole, som fylkeskommunen dekker. | H7: xMVA: Merverdiavgift xArbeidstid uten direkte oppfølging: Administrative kostnader/ arbeidstid xTolk: reisetid for oppmøtetolk xTransportutgifter til og fra skole, eller barnehage: som dekkes av fylkeskommunen eller transportutgifter tilknyttet TT-kort. xTransport for kommunale tjenester: som hjemmetjeneste, barnevern og flyktningtjeneste.
E20: Transport
E22: Dato fra (dd.mm.åååå) | F22: Dato til (dd.mm.åååå) | G22: Transportmiddel (velg fra nedtrekksmeny) | H22: Takst per reise | I22: Antall reiser | K22: Beløp
C23: 1 | G23: Velg fra liste…. | K23: =ROUNDUP((H23*I23),0) -> 0
C24: 2 | G24: Velg fra liste…. | K24: =ROUNDUP((H24*I24),0) -> 0
C25: 3 | G25: Velg fra liste…. | K25: =ROUNDUP((H25*I25),0) -> 0
C26: 4 | G26: Velg fra liste…. | K26: =ROUNDUP((H26*I26),0) -> 0
C27: 5 | G27: Velg fra liste…. | K27: =ROUNDUP((H27*I27),0) -> 0
K29: =SUM(K23:K27) -> 0
E43: Andre eksterne leverandører
E45: Ekstern leverandør | G45: Hvis tolk: hvilket tiltak er tolken brukt i? | H45: Pris | I45: Enhet | J45: Antall i tilskuddsperiode | K45: Beløp
C46: 1 | K46: =ROUNDUP((H46*J46),0) -> 0
C47: 2 | K47: 0
C48: 3 | K48: 0
C49: 4 | K49: 0
C50: 5 | K50: 0
C51: 6 | K51: 0
C52: 7 | K52: 0
C53: 8 | K53: 0
C54: 9 | K54: 0
C55: 10 | K55: 0
K57: =SUM(K46:K55) -> 0
E59: =IF(E60="","Skriv kommentar:","") -> Skriv kommentar:
D70: Navn og rolle - ansvarlig for kostnadsberegningen | I70: Sted | K70: Dato

Sheet 6 Ansvarsgruppemøter
C2: 6 | E2: Ansvarsgruppemøter/ sakkyndig arbeid fra PPT | P2: ='1 Lønn'!K2 -> (ver. 3.4)
E3: =" - dokumenterte utgifter på inntil 30 000 kroner" -> - dokumenterte utgifter på inntil 30 000 kroner
D6: Dekkes av ekstratilskuddet: | M6: Dekkes ikke av ekstratilskuddet:
D7: þAnsvarsgruppemøter: Utgifter for antall møtedeltakere per gang og antall timer per møte. Beregn kun møter der flyktningen selv, eller en representant deltar. þSakkyndig arbeid fra: Dokumenterte utgifter fra Pedagogisk-psykologisk tjeneste (PPT) | M7: xSakkyndig utredning fra: andre instanser enn PPT xFør- og etterarbeid: av ansvarsgruppemøter xKoordinerende møter: uten at flyktningen selv, foreldre, eller verge deltar xPensjonsutgifter til: arbeidstakers andel, og reguleringspremie, eller andre størrelser etter aktuarberegninger og administrative påslag. Eksempler er premiefond, utjevning, selvrisiko, egenbetaling pensjon, eller fremtidig avsetning.
E18: Ansvarsgruppemøter
E20: Antall deltakere | F20: Årslønn / gjennomsnittslønn | G20: Feriepenger (%) | H20: Pensjon (%) | K20: (fratrekk) ansattes andel | L20: AGA (%) | M20: Timelønn inkl. sosiale utg | N20: Antall timer per møte | O20: Antall møter | P20: Beløp
C21: 1 | H21: 0.11 | K21: -0.02 | M21: =((F21*(1+G21+(H21+K21)+(G21*(H21+K21))))*(1+L21))/1950 -> 0 | P21: =ROUNDUP(E21*M21*N21*O21,0) -> 0
C22: 2 | H22: 0.11 | K22: -0.02 | M22: 0 | P22: =ROUNDUP(E22*M22*N22*O22,0) -> 0
C23: 3 | H23: 0.11 | K23: -0.02 | M23: 0 | P23: 0
C24: 4 | H24: 0.11 | K24: -0.02 | M24: =((F24*(1+G24+(H24+K24)+(G24*(H24+K24))))*(1+L24))/1950 -> 0 | P24: =ROUNDUP(E24*M24*N24*O24,0) -> 0
C25: 5 | H25: 0.11 | K25: -0.02 | M25: 0 | P25: 0
C26: 6 | H26: 0.11 | K26: -0.02 | M26: 0 | P26: 0
C27: 7 | H27: 0.11 | K27: -0.02 | M27: 0 | P27: 0
C28: 8 | H28: 0.11 | K28: -0.02 | M28: 0 | P28: 0
C29: 9 | H29: 0.11 | K29: -0.02 | M29: 0 | P29: 0
C30: 10 | H30: 0.11 | K30: -0.02 | M30: 0 | P30: 0
E35: Sakkyndig arbeid fra PPT
E37: Årslønn / gjennomsnittslønn | G37: Feriepenger (%) | H37: Pensjon (%) | K37: (fratrekk) ansattes andel | L37: AGA (%) | M37: Timelønn inkl. sosiale utg | N37: Antall timer | P37: Beløp
C38: 1 | H38: 0.11 | K38: -0.02 | M38: =((E38*(1+G38+(H38+K38)+(G38*(H38+K38))))*(1+L38))/1950 -> 0 | P38: =ROUNDUP(N38*M38,0) -> 0
C39: 2 | H39: 0.11 | K39: -0.02 | M39: =((E39*(1+G39+(H39+K39)+(G39*(H39+K39))))*(1+L39))/1950 -> 0 | P39: =ROUNDUP(N39*M39,0) -> 0
C40: 3 | H40: 0.11 | K40: -0.02 | M40: =((E40*(1+G40+(H40+K40)+(G40*(H40+K40))))*(1+L40))/1950 -> 0 | P40: =ROUNDUP(N40*M40,0) -> 0
C41: 4 | H41: 0.11 | K41: -0.02 | M41: 0 | P41: 0
C42: 5 | H42: 0.11 | K42: -0.02 | M42: 0 | P42: 0
E48: =IF(E49="","Skriv kommentar:","") -> Skriv kommentar: | K48: =IF(X51&X52&X53="","","⚠️Vi trenger mer informasjon") ->  | P48: =MIN(SUM(P21:P42),30000) -> 0
K49: =_xlfn.TEXTJOIN(CHAR(10)&CHAR(10),TRUE,W51&X51,W52&X52,W53&X53) ->  | P49: =IF(P48<30000,"","Dere kan søke på maks 30 000 kroner for dette tiltaket.") -> 
W50: =3-COUNTIF(X51:X53,"") -> 0
V51: Hvis timelønn er over 650 kroner | W51: =IF(X51="","",IF(W50=1,"","1. ")) ->  | X51: =IF(Y51>0,'1 Lønn'!$X$6,"") ->  | Y51: =COUNTIF(M21:M42,">"&'1 Lønn'!$R$5) -> 0
V52: Hvis grunnpremie for pensjon er over 11% | W52: =IF(X52="","",IF(W50=1,"",IF(X51="","1. ","2. "))) ->  | X52: =IF(Y52>0,'1 Lønn'!$X$7,"") ->  | Y52: =COUNTIFS(H21:H42,">11%",M21:M42,">0") -> 0
V53: Hvis ansattes egenandel for pensjon er 0% | W53: =IF(X53="","",IF(W50=1,"",IF(W50=2,"2.",IF(W52="1. ","2. ","3. ")))) ->  | X53: =IF(Y53>0,'1 Lønn'!$X$8,"") ->  | Y53: =COUNTIFS(K21:K42,0,M21:M42,">0") -> 0
D59: Navn og rolle - ansvarlig for kostnadsberegningen | M59: Sted | N59: Dato
F305: x
F314: 0
F315: 0
F317: 0
F318: 0
F319: 0
F324: x
F325: Velg fra liste….
F329: 0
F330: 0
F331: 0
F332: 0
F336: Velg fra liste….
F337: 0.11
F338: -0.02
F339: Velg fra liste….

Sheet Innstillinger (hidden)
B4: INNSTILLINGER
B7: Lønn
B8: Velg fra liste…. | E8: n/a
B9: årslønn
B10: timelønn
B13: Område | E13: Utredning
B14: Velg fra liste…. | E14: Velg fra liste….
B15: KS-området (utenom Oslo) | E15: Døgnopphold på senteret
B16: Oslo kommune | E16: Hjemme/poliklinisk
B19: Årsramme | E19: Plasseringsdato
B20: Velg fra liste…. | C20: 0 | E20: Velg fra liste….
B21: 741 - Barnetrinnet | C21: 741 | E21: =E27 -> 0
B22: 606 - Ungdomstrinnet (norsk) | C22: 606 | E22: =D27 -> 0
B23: 635 - Ungdomstrinnet (engelsk, mat) | C23: 635
B24: 664 - Ungdomstrinnet (øvrige fag) | C24: 664
B25: Oppgi egen årsramme
B28: Egenbetaling | C28: Barnevernsinstitusjoner | D28: Senter for foreldre og barn (døgnopphold på senter) | E28: Senter for foreldre og barn (hjemmebasert/poliklinisk) | F28: Beredskapshjem og spesialiserte fosterhjem (plassert 01.01.2022 eller etter) | G28: Beredskapshjem og spesialiserte fosterhjem (plassert 31.12.2021 eller før) | H28: MST (Multisystemisk terapi) / FFT (Funksjonell familieterapi) | I28: Notat | J28: Lenk
B29: 2022 | C29: 170000 | D29: 71000 | E29: 11000 | F29: 85000 | G29: 37100 | H29: 15000 | J29: https://www.regjeringen.no/no/dokumenter/satser-for-kommunal-egenbetaling-for-barnevernstiltak-2022/id2902438/
B30: 2023 | C30: 175000 | D30: 73000 | E30: 11500 | F30: 87500 | G30: 38100 | H30: 15500 | J30: https://www.regjeringen.no/no/dokumenter/satser-for-kommunal-egenbetaling-for-statlige-barnevernstiltak-2023/id2953174/
B31: 2024 | C31: 182700 | D31: 76210 | E31: 13085 | F31: 91350 | G31: 39780 | H31: 16180 | J31: https://www.regjeringen.no/no/dokumenter/satser-for-kommunal-egenbetaling-for-statlige-barnevernstiltak-2024/id3020128/
B32: 2025 | C32: 190190 | D32: 79335 | E32: 13620 | F32: 95095 | G32: 41410 | H32: 16845 | J32: https://www.regjeringen.no/no/dokumenter/satser-for-kommunal-egenbetaling-for-statlige-barnevernstiltak-2025/id3080096/
B33: 2026 | C33: 197225 | D33: 82270 | E33: 14125 | F33: 98615 | G33: 98615 | H33: 17470 | J33: https://www.regjeringen.no/no/dokumenter/satser-for-kommunal-egenbetaling-for-statlige-barnevernstiltak-2026/id3144528/
B34: 2027 | C34: 190190 | D34: 82270 | E34: 14125 | F34: 95095 | G34: 98615 | H34: 16845 | I34: *Satsen fra 2027 er ennå ikke fastsatt og videreføres derfor fra 2025. | J34: -
B35: 2028 | C35: 197225 | D35: 82270 | E35: 14125 | F35: 98615 | G35: 98615 | H35: 16845 | I35: *Satsen fra 2028 er ennå ikke fastsatt og videreføres derfor fra 2025. | J35: -
C37: Grunnstøtte | D37: Besøksjem | I37: Notat | J37: Lenk
B38: 2022 | C38: 9383 | D38: 922 | J38: https://www.ks.no/arkiv/veiledende-satser-for-fosterhjem-og-besokshjem-2022/
B39: 2023 | C39: 9885 | D39: 981 | J39: https://www.ks.no/arkiv/veiledende-satser-for-fosterhjem-og-besokshjem-2023/
B40: 2024 | C40: 10336 | D40: 1026 | J40: https://www.ks.no/fagomrader/barn-og-unge/barnevern/veiledende-satser-for-fosterhjem-og-besokshjem-2024/
B41: 2025 | C41: 10847 | D41: 1077 | J41: https://www.ks.no/fagomrader/barn-og-unge/barnevern/veiledende-satser-for-fosterhjem-og-besokshjem-2025/
B42: 2026 | C42: =C41 -> 10847 | D42: 1077 | I42: ="*Satsen fra "&B42&" er ennå ikke fastsatt og videreføres derfor fra 2025." -> *Satsen fra 2026 er ennå ikke fastsatt og videreføres derfor fra 2025. | J42: -
B43: 2027 | C43: =C41 -> 10847 | D43: 1077 | I43: ="*Satsen fra "&B43&" er ennå ikke fastsatt og videreføres derfor fra 2025." -> *Satsen fra 2027 er ennå ikke fastsatt og videreføres derfor fra 2025. | J43: -
B44: 2028 | C44: =C42 -> 10847 | D44: 1077 | I44: ="*Satsen fra "&B44&" er ennå ikke fastsatt og videreføres derfor fra 2025." -> *Satsen fra 2028 er ennå ikke fastsatt og videreføres derfor fra 2025. | J44: -
B47: Alminnelig arbeidstid
B48: Velg fra liste…. | C48: 0
B49: 33,6 timer/uke | C49: 33.6
B50: 35,5 timer/uke | C50: 35.5
B51: 36 timer/uke | C51: 36
B52: 37,5 timer/uke | C52: 37.5
B53: 40 timer/uke | C53: 40
B54: 42 timer/uke | C54: 42
B57: Arbeidsgiversavgift
B58: Velg fra liste….
B59: 0.141 | C59: I
B60: 0.106 | C60: II
B61: 0.064 | C61: III
B62: 0.051 | C62: IV
B63: 0.079 | C63: IVa
B64: 0 | C64: V
B67: Sats feriepenger | E67: Sats feriepenger
B68: Velg fra liste…. | E68: Velg fra liste….
B69: 0.143 | E69: taxi
B70: 0.12 | E70: buss
B71: 0 | E71: annet
B75: Godtgjørelser
B76: Velg fra liste….
B77: Avlastning
B78: Støttekontakt
B79: Omsorgsstønad
B80: Frikjøp av fosterforeldre
B81: Annet tiltak
